Workbook

Sheet Sverigeranking
B1: Svenska Hästskokastarförbundets Sverigeranking | X1: Antal kastare som deltagit i samtliga tävlingar senaste 12 månaderna: | Y1: =COUNTIF(F5:F199,15) -> 3 | AF1: Antal starter senaste 12 månaderna föruton DM: | AG1: =SUM(I2:AA2)+(AI1)-(M2+R2+X2+Y2) -> 838 | AI1: =Miniorranking!$AC$1 -> 9
B2: SLUTSTÄLLNING | I2: =COUNT(I5:I220) -> 0 | J2: =COUNT(J5:J220) -> 78 | K2: 74 | L2: 75 | M2: 38 | N2: 80 | O2: 22 | P2: 20 | Q2: 87 | R2: 39 | S2: 63 | T2: 71 | U2: 68 | V2: 64 | W2: 0 | X2: 32 | Y2: 49 | Z2: 69 | AA2: 58
B3: Säsong 2018 / 2019 | I3: =IF(SUM(I5:I400)>100,1,"") ->  | J3: 1 | K3: 1 | L3: 1 | M3: 1 | N3: 1 | O3: 1 | P3: 1 | Q3: 1 | R3: 1 | S3: 1 | T3: 1 | U3: 1 | V3: 1 | X3: 1 | Y3: 1 | Z3: 1 | AA3: 1 | AF3: Snitt / tävling förutom DM : | AG3: =SUM(AG1/13) -> 64.46153846
A4: Plac. | B4: Kastare | C4: Klubb | D4: Rankingpoäng | F4: Antal tävlingar | G4: Snitt per serie | I4: Växjö Open | J4: Björkenäs Open | K4: Utomhus-SM Dag 1 | L4: Utomhus-SM Dag 2 | M4: Utomhus Smålandsmästaren | N4: Carlskrona Cup | O4: Gotland Open | P4: Cementa open | Q4: Dynapac Open | R4: Blekinge-DM Ute | S4: Åseda Open | T4: Höstskon Nybro | U4: Novemberkampen | V4: Inomhus-SM | X4: Inomhus Smålandsmästaren | Y4: Blekinge DM inne | Z4: Värendspokalen | AA4: Tingsryds Open | AB4: Antal arrangerade tävlingar | AC4: Ej medräknat resultat | AD4: Ej medräknat resultat | AE4: Ej medräknat resultat | BI4: 1 | BJ4: 2 | BK4: 3 | BL4: 4 | BM4: 5 | BN4: 6 | BO4: 7 | BP4: 8 | BQ4: 9 | BR4: 10 | BS4: 11 | BT4: 12 | BU4: 13 | BV4: 14 | BW4: 15 | BX4: 16 | BY4: ej medräknad | CB4: missade tävlingar
A5: =IF(BF5>1,AG5&" ("&AF5&")",AG5&" ("&AH5&")") -> 1 (1) | B5: Kent Sundahl | C5: Carlskrona | D5: =SUM(BI5:BU5) -> 4623 | F5: =COUNT(I5:AA5) -> 13 | G5: =SUM((CD5)/(F5*2)) -> 177.8076923 | J5: 300 | K5: 396 | L5: 384 | N5: 424 | Q5: 385 | R5: 264 | S5: 407 | T5: 457 | U5: 267 | V5: 298 | Y5: 418 | Z5: 369 | AA5: 254 | AB5: =SUM($I$3:$AA$3) -> 17 | AC5: =BY5 -> - | AD5: =BZ5 -> - | AE5: =CA5 -> - | AF5: 1 | AG5: 1 | AH5: =IF(F5>1,ROW(1:1),"-") -> 1 | AI5: 1 | AL5: =COUNT($I$3,I5,H5) -> 0 | AM5: =COUNT($J$3,J5,I5) -> 2 | AN5: =COUNT($K$3,K5,J5) -> 3 | AO5: =COUNT($L$3,L5,K5) -> 3 | AP5: =COUNT($M$3,M5,L5) -> 2 | AQ5: =COUNT($N$3,N5,M5) -> 2 | AR5: =COUNT($O$3,O5,N5) -> 2 | AS5: =COUNT($P$3,P5,O5) -> 1 | AT5: =COUNT($Q$3,Q5,P5) -> 2 | AU5: =COUNT($R$3,R5,Q5) -> 3 | AV5: =COUNT($S$3,S5,R5) -> 3 | AW5: =COUNT($T$3,T5,S5) -> 3 | AX5: =COUNT($U$3,U5,T5) -> 3 | AY5: =COUNT($V$3,V5,U5) -> 3 | AZ5: =COUNT($W$3,W5,V5) -> 1 | BA5: =COUNT($X$3,X5,W5) -> 1 | BB5: =COUNT($Y$3,Y5,X5) -> 2 | BC5: =COUNT($Z$3,Z5,Y5) -> 3 | BD5: =COUNT($AA$3,AA5,Z5) -> 3 | BF5: =IF(H5="x",1,2) -> 2 | BI5: =IF($F5>0,LARGE($I5:$AA5,1),"") -> 457 | BJ5: =IF($F5>1,LARGE($I5:$AA5,2),"") -> 424 | BK5: =IF($F5>2,LARGE($I5:$AA5,3),"") -> 418 | BL5: =IF($F5>3,LARGE($I5:$AA5,4),"") -> 407 | BM5: =IF($F5>4,LARGE($I5:$AA5,5),"") -> 396 | BN5: =IF($F5>5,LARGE($I5:$AA5,6),"") -> 385 | BO5: =IF($F5>6,LARGE($I5:$AA5,7),"") -> 384 | BP5: =IF($F5>7,LARGE($I5:$AA5,8),"") -> 369 | BQ5: =IF($F5>8,LARGE($I5:$AA5,9),"") -> 300 | BR5: =IF($F5>9,LARGE($I5:$AA5,10),"") -> 298 | BS5: =IF($F5>10,LARGE($I5:$AA5,11),"") -> 267 | BT5: =IF($F5>11,LARGE($I5:$AA5,12),"") -> 264 | BU5: =IF($F5>12,LARGE($I5:$AA5,13),"") -> 254 | BV5: =IF($F5>13,LARGE($I5:$AA5,14),"") ->  | BW5: =IF($F5>14,LARGE($I5:$AA5,15),"") ->  | BX5: =IF($F5>15,LARGE($I5:$AA5,16),"") ->  | BY5: =IF($F5>13,LARGE($I5:$AA5,14),"-") -> - | BZ5: =IF($F5>14,LARGE($I5:$AA5,15),"-") -> - | CA5: =IF($F5>15,LARGE($I5:$AA5,16),"-") -> - | CB5: =SUM(AB5-F5)-2 -> 2 | CD5: =SUM(BI5:BX5) -> 4623 | EO5: 1 | EQ5: =IF(BF5>=1,AG5,"") -> 1 | ER5: =IF(BF5>1,"("&AF5&")","("&AH5&")") -> (1)
A6: =IF(BF6>1,AG6&" ("&AF6&")",AG6&" ("&AH6&")") -> 2 (2) | B6: Sandor Bodi | C6: Växjö | D6: 4227 | F6: 11 | G6: 192.1363636 | J6: 402 | K6: 358 | L6: 401 | M6: 422 | Q6: 399 | S6: 453 | T6: 422 | U6: 222 | V6: 280 | X6: 397 | Z6: 471 | AB6: 17 | AC6: - | AD6: - | AE6: - | AF6: 2 | AG6: =IF(D6<D5,AI6,AG5) -> 2 | AH6: 2 | AI6: 2 | AL6: 0 | AM6: 2 | AN6: 3 | AO6: 3 | AP6: 3 | AQ6: 2 | AR6: 1 | AS6: 1 | AT6: 2 | AU6: 2 | AV6: 2 | AW6: 3 | AX6: 3 | AY6: 3 | AZ6: 1 | BA6: 2 | BB6: 2 | BC6: 2 | BD6: 2 | BF6: 2 | BI6: =IF($F6>0,LARGE($I6:$AA6,1),"") -> 471 | BJ6: =IF($F6>1,LARGE($I6:$AA6,2),"") -> 453 | BK6: =IF($F6>2,LARGE($I6:$AA6,3),"") -> 422 | BL6: =IF($F6>3,LARGE($I6:$AA6,4),"") -> 422 | BM6: =IF($F6>4,LARGE($I6:$AA6,5),"") -> 402 | BN6: =IF($F6>5,LARGE($I6:$AA6,6),"") -> 401 | BO6: =IF($F6>6,LARGE($I6:$AA6,7),"") -> 399 | BP6: =IF($F6>7,LARGE($I6:$AA6,8),"") -> 397 | BQ6: =IF($F6>8,LARGE($I6:$AA6,9),"") -> 358 | BR6: =IF($F6>9,LARGE($I6:$AA6,10),"") -> 280 | BS6: =IF($F6>10,LARGE($I6:$AA6,11),"") -> 222 | BT6: =IF($F6>11,LARGE($I6:$AA6,12),"") ->  | BU6: =IF($F6>12,LARGE($I6:$AA6,13),"") ->  | BV6: =IF($F6>13,LARGE($I6:$AA6,14),"") ->  | BW6: =IF($F6>14,LARGE($I6:$AA6,15),"") ->  | BX6: =IF($F6>15,LARGE($I6:$AA6,16),"") ->  | BY6: =IF($F6>13,LARGE($I6:$AA6,14),"-") -> - | BZ6: =IF($F6>14,LARGE($I6:$AA6,15),"-") -> - | CA6: =IF($F6>15,LARGE($I6:$AA6,16),"-") -> - | CB6: =SUM(AB6-F6)-2 -> 4 | CD6: 4227 | EO6: 2 | EQ6: 2 | ER6: (2)
A7: 3 (3) | B7: Ingvar Eriksson | C7: Carlskrona | D7: 4204 | F7: 13 | G7: 161.6923077 | J7: 293 | K7: 335 | L7: 307 | N7: 422 | Q7: 334 | R7: 244 | S7: 370 | T7: 320 | U7: 226 | V7: 273 | Y7: 418 | Z7: 338 | AA7: 324 | AB7: 17 | AC7: - | AD7: - | AE7: - | AF7: 3 | AG7: 3 | AH7: 3 | AI7: 3 | AL7: 0 | AM7: 2 | AN7: 3 | AO7: 3 | AP7: 2 | AQ7: 2 | AR7: 2 | AS7: 1 | AT7: 2 | AU7: 3 | AV7: 3 | AW7: 3 | AX7: 3 | AY7: 3 | AZ7: 1 | BA7: 1 | BB7: 2 | BC7: 3 | BD7: 3 | BF7: 2 | BI7: =IF($F7>0,LARGE($I7:$AA7,1),"") -> 422 | BJ7: =IF($F7>1,LARGE($I7:$AA7,2),"") -> 418 | BK7: =IF($F7>2,LARGE($I7:$AA7,3),"") -> 370 | BL7: =IF($F7>3,LARGE($I7:$AA7,4),"") -> 338 | BM7: =IF($F7>4,LARGE($I7:$AA7,5),"") -> 335 | BN7: =IF($F7>5,LARGE($I7:$AA7,6),"") -> 334 | BO7: =IF($F7>6,LARGE($I7:$AA7,7),"") -> 324 | BP7: =IF($F7>7,LARGE($I7:$AA7,8),"") -> 320 | BQ7: =IF($F7>8,LARGE($I7:$AA7,9),"") -> 307 | BR7: =IF($F7>9,LARGE($I7:$AA7,10),"") -> 293 | BS7: =IF($F7>10,LARGE($I7:$AA7,11),"") -> 273 | BT7: =IF($F7>11,LARGE($I7:$AA7,12),"") -> 244 | BU7: =IF($F7>12,LARGE($I7:$AA7,13),"") -> 226 | BY7: - | BZ7: - | CA7: - | CB7: 2 | CD7: 4204 | EO7: 3 | EQ7: 3 | ER7: (3)
A8: 4 (4) | B8: Gert Karlsson | C8: Korpen Åseda | D8: 4085 | F8: 15 | G8: 152.1 | J8: 334 | K8: 241 | L8: 298 | M8: 380 | N8: 365 | O8: 237 | P8: 262 | Q8: 339 | S8: 277 | T8: 365 | U8: 252 | V8: 249 | X8: 303 | Z8: 370 | AA8: 291 | AB8: 17 | AC8: 241 | AD8: 237 | AE8: - | AF8: 4 | AG8: 4 | AH8: 4 | AI8: 4 | AL8: 0 | AM8: 2 | AN8: 3 | AO8: 3 | AP8: 3 | AQ8: 3 | AR8: 3 | AS8: 3 | AT8: 3 | AU8: 2 | AV8: 2 | AW8: 3 | AX8: 3 | AY8: 3 | AZ8: 1 | BA8: 2 | BB8: 2 | BC8: 2 | BD8: 3 | BF8: 2 | BI8: =IF($F8>0,LARGE($I8:$AA8,1),"") -> 380 | BJ8: =IF($F8>1,LARGE($I8:$AA8,2),"") -> 370 | BK8: =IF($F8>2,LARGE($I8:$AA8,3),"") -> 365 | BL8: =IF($F8>3,LARGE($I8:$AA8,4),"") -> 365 | BM8: =IF($F8>4,LARGE($I8:$AA8,5),"") -> 339 | BN8: =IF($F8>5,LARGE($I8:$AA8,6),"") -> 334 | BO8: =IF($F8>6,LARGE($I8:$AA8,7),"") -> 303 | BP8: =IF($F8>7,LARGE($I8:$AA8,8),"") -> 298 | BQ8: =IF($F8>8,LARGE($I8:$AA8,9),"") -> 291 | BR8: =IF($F8>9,LARGE($I8:$AA8,10),"") -> 277 | BS8: =IF($F8>10,LARGE($I8:$AA8,11),"") -> 262 | BT8: =IF($F8>11,LARGE($I8:$AA8,12),"") -> 252 | BU8: =IF($F8>12,LARGE($I8:$AA8,13),"") -> 249 | BV8: =IF($F8>13,LARGE($I8:$AA8,14),"") -> 241 | BW8: =IF($F8>14,LARGE($I8:$AA8,15),"") -> 237 | BY8: 241 | BZ8: 237 | CA8: - | CB8: 0 | CD8: 4563 | EO8: 4 | EQ8: 4 | ER8: (4)
A9: 5 (5) | B9: Leo Andersson | C9: Carlskrona | D9: 3823 | F9: 14 | G9: 143.8214286 | J9: 220 | K9: 248 | L9: 280 | N9: 311 | O9: 267 | P9: 398 | Q9: 356 | S9: 299 | T9: 308 | U9: 239 | V9: 204 | Y9: 345 | Z9: 308 | AA9: 244 | AB9: 17 | AC9: 204 | AD9: - | AE9: - | AF9: 5 | AG9: 5 | AH9: 5 | AI9: 5 | AL9: 0 | AM9: 2 | AN9: 3 | AO9: 3 | AP9: 2 | AQ9: 2 | AR9: 3 | AS9: 3 | AT9: 3 | AU9: 2 | AV9: 2 | AW9: 3 | AX9: 3 | AY9: 3 | AZ9: 1 | BA9: 1 | BB9: 2 | BC9: 3 | BD9: 3 | BF9: 2 | BI9: =IF($F9>0,LARGE($I9:$AA9,1),"") -> 398 | BJ9: =IF($F9>1,LARGE($I9:$AA9,2),"") -> 356 | BK9: =IF($F9>2,LARGE($I9:$AA9,3),"") -> 345 | BL9: =IF($F9>3,LARGE($I9:$AA9,4),"") -> 311 | BM9: =IF($F9>4,LARGE($I9:$AA9,5),"") -> 308 | BN9: =IF($F9>5,LARGE($I9:$AA9,6),"") -> 308 | BO9: =IF($F9>6,LARGE($I9:$AA9,7),"") -> 299 | BP9: =IF($F9>7,LARGE($I9:$AA9,8),"") -> 280 | BQ9: =IF($F9>8,LARGE($I9:$AA9,9),"") -> 267 | BR9: =IF($F9>9,LARGE($I9:$AA9,10),"") -> 248 | BS9: =IF($F9>10,LARGE($I9:$AA9,11),"") -> 244 | BT9: =IF($F9>11,LARGE($I9:$AA9,12),"") -> 239 | BU9: =IF($F9>12,LARGE($I9:$AA9,13),"") -> 220 | BV9: =IF($F9>13,LARGE($I9:$AA9,14),"") -> 204 | BW9: =IF($F9>14,LARGE($I9:$AA9,15),"") ->  | BY9: 204 | BZ9: - | CA9: - | CB9: 1 | CD9: 4027 | EO9: 5 | EQ9: 5 | ER9: (5)
A10: 6 (6) | B10: Gebriela Kostantinos | C10: Korpen Åseda | D10: 3717 | F10: 12 | G10: 154.875 | J10: 296 | K10: 326 | L10: 347 | M10: 365 | N10: 294 | Q10: 275 | S10: 371 | T10: 373 | U10: 192 | X10: 279 | Z10: 302 | AA10: 297 | AB10: 17 | AC10: - | AD10: - | AE10: - | AF10: 6 | AG10: 6 | AH10: 6 | AI10: 6 | AL10: 0 | AM10: 2 | AN10: 3 | AO10: 3 | AP10: 3 | AQ10: 3 | AR10: 2 | AS10: 1 | AT10: 2 | AU10: 2 | AV10: 2 | AW10: 3 | AX10: 3 | AY10: 2 | AZ10: 0 | BA10: 2 | BB10: 2 | BC10: 2 | BD10: 3 | BF10: 2 | BI10: =IF($F10>0,LARGE($I10:$AA10,1),"") -> 373 | BJ10: =IF($F10>1,LARGE($I10:$AA10,2),"") -> 371 | BK10: =IF($F10>2,LARGE($I10:$AA10,3),"") -> 365 | BL10: =IF($F10>3,LARGE($I10:$AA10,4),"") -> 347 | BM10: =IF($F10>4,LARGE($I10:$AA10,5),"") -> 326 | BN10: =IF($F10>5,LARGE($I10:$AA10,6),"") -> 302 | BO10: =IF($F10>6,LARGE($I10:$AA10,7),"") -> 297 | BP10: =IF($F10>7,LARGE($I10:$AA10,8),"") -> 296 | BQ10: =IF($F10>8,LARGE($I10:$AA10,9),"") -> 294 | BR10: =IF($F10>9,LARGE($I10:$AA10,10),"") -> 279 | BS10: =IF($F10>10,LARGE($I10:$AA10,11),"") -> 275 | BT10: =IF($F10>11,LARGE($I10:$AA10,12),"") -> 192 | BU10: =IF($F10>12,LARGE($I10:$AA10,13),"") ->  | BV10: =IF($F10>13,LARGE($I10:$AA10,14),"") ->  | BW10: =IF($F10>14,LARGE($I10:$AA10,15),"") ->  | BY10: - | BZ10: - | CA10: - | CB10: 3 | CD10: 3717 | EO10: 6 | EQ10: 6 | ER10: (6)
A11: 7 (7) | B11: Matz Karlsson | C11: Korpen Åseda | D11: 3705 | F11: 12 | G11: 154.375 | J11: 351 | K11: 306 | L11: 328 | M11: 334 | N11: 345 | Q11: 269 | S11: 372 | U11: 139 | V11: 268 | X11: 333 | Z11: 362 | AA11: 298 | AB11: 17 | AC11: - | AD11: - | AE11: - | AF11: 7 | AG11: 7 | AH11: 7 | AI11: 7 | AL11: 0 | AM11: 2 | AN11: 3 | AO11: 3 | AP11: 3 | AQ11: 3 | AR11: 2 | AS11: 1 | AT11: 2 | AU11: 2 | AV11: 2 | AW11: 2 | AX11: 2 | AY11: 3 | AZ11: 1 | BA11: 2 | BB11: 2 | BC11: 2 | BD11: 3 | BF11: 2 | BI11: 372 | BJ11: 362 | BK11: 351 | BL11: 345 | BM11: 334 | BN11: 333 | BO11: 328 | BP11: 306 | BQ11: 298 | BR11: 269 | BS11: 268 | BT11: 139 | BY11: - | BZ11: - | CA11: - | CB11: 3 | CD11: 3705 | EO11: 7 | EQ11: 7 | ER11: (7)
A12: 8 (8) | B12: Peter Olsson | C12: Dynapac | D12: 3559 | F12: 13 | G12: 136.8846154 | J12: 296 | K12: 228 | L12: 256 | N12: 342 | Q12: 191 | R12: 307 | S12: 246 | T12: 261 | U12: 197 | V12: 351 | Y12: 285 | Z12: 318 | AA12: 281 | AB12: 17 | AC12: - | AD12: - | AE12: - | AF12: 8 | AG12: 8 | AH12: 8 | AI12: 8 | AL12: 0 | AM12: 2 | AN12: 3 | AO12: 3 | AP12: 2 | AQ12: 2 | AR12: 2 | AS12: 1 | AT12: 2 | AU12: 3 | AV12: 3 | AW12: 3 | AX12: 3 | AY12: 3 | AZ12: 1 | BA12: 1 | BB12: 2 | BC12: 3 | BD12: 3 | BF12: 2 | BI12: 351 | BJ12: 342 | BK12: 318 | BL12: 307 | BM12: 296 | BN12: 285 | BO12: 281 | BP12: 261 | BQ12: 256 | BR12: 246 | BS12: 228 | BT12: 197 | BU12: 191 | BY12: - | BZ12: - | CA12: - | CB12: 2 | CD12: 3559 | EO12: 8 | EQ12: 8 | ER12: (8)
A13: 9 (9) | B13: Maire Johansson | C13: Växjö | D13: 3377 | F13: 13 | G13: 129.8846154 | J13: 203 | K13: 231 | L13: 305 | M13: 257 | N13: 319 | Q13: 243 | S13: 344 | T13: 302 | U13: 144 | V13: 189 | X13: 278 | Z13: 340 | AA13: 222 | AB13: 17 | AC13: - | AD13: - | AE13: - | AF13: 9 | AG13: 9 | AH13: 9 | AI13: 9 | AL13: 0 | AM13: 2 | AN13: 3 | AO13: 3 | AP13: 3 | AQ13: 3 | AR13: 2 | AS13: 1 | AT13: 2 | AU13: 2 | AV13: 2 | AW13: 3 | AX13: 3 | AY13: 3 | AZ13: 1 | BA13: 2 | BB13: 2 | BC13: 2 | BD13: 3 | BF13: 2 | BI13: 344 | BJ13: 340 | BK13: 319 | BL13: 305 | BM13: 302 | BN13: 278 | BO13: 257 | BP13: 243 | BQ13: 231 | BR13: 222 | BS13: 203 | BT13: 189 | BU13: 144 | BY13: - | BZ13: - | CA13: - | CB13: 2 | CD13: 3377 | EO13: 9 | EQ13: 9 | ER13: (9)
A14: 10 (14) | B14: Mattias Gneupel | C14: Sibbamåla | D14: 3370 | F14: 13 | G14: 129.6153846 | J14: 236 | K14: 213 | L14: 213 | N14: 206 | Q14: 277 | R14: 277 | S14: 330 | T14: 247 | U14: 180 | V14: 273 | Y14: 377 | Z14: 292 | AA14: 249 | AB14: 17 | AC14: - | AD14: - | AE14: - | AF14: 14 | AG14: 10 | AH14: 10 | AI14: 10 | AL14: 0 | AM14: 2 | AN14: 3 | AO14: 3 | AP14: 2 | AQ14: 2 | AR14: 2 | AS14: 1 | AT14: 2 | AU14: 3 | AV14: 3 | AW14: 3 | AX14: 3 | AY14: 3 | AZ14: 1 | BA14: 1 | BB14: 2 | BC14: 3 | BD14: 3 | BF14: 2 | BI14: 377 | BJ14: 330 | BK14: 292 | BL14: 277 | BM14: 277 | BN14: 273 | BO14: 249 | BP14: 247 | BQ14: 236 | BR14: 213 | BS14: 213 | BT14: 206 | BU14: 180 | BY14: - | BZ14: - | CA14: - | CB14: 2 | CD14: 3370 | EO14: 10 | EQ14: 10 | ER14: (14)
A15: 11 (18) | B15: Magnus Israelsson | C15: Sibbamåla | D15: 3254 | F15: 13 | G15: 125.1538462 | J15: 231 | K15: 305 | L15: 237 | N15: 276 | Q15: 181 | R15: 239 | S15: 229 | T15: 248 | U15: 101 | V15: 291 | Y15: 280 | Z15: 321 | AA15: 315 | AB15: 17 | AC15: - | AD15: - | AE15: - | AF15: 18 | AG15: 11 | AH15: 11 | AI15: 11 | AL15: 0 | AM15: 2 | AN15: 3 | AO15: 3 | AP15: 2 | AQ15: 2 | AR15: 2 | AS15: 1 | AT15: 2 | AU15: 3 | AV15: 3 | AW15: 3 | AX15: 3 | AY15: 3 | AZ15: 1 | BA15: 1 | BB15: 2 | BC15: 3 | BD15: 3 | BF15: 2 | BI15: 321 | BJ15: 315 | BK15: 305 | BL15: 291 | BM15: 280 | BN15: 276 | BO15: 248 | BP15: 239 | BQ15: 237 | BR15: 231 | BS15: 229 | BT15: 181 | BU15: 101 | BY15: - | BZ15: - | CA15: - | CB15: 2 | CD15: 3254 | EO15: 11 | EQ15: 11 | ER15: (18)
A16: 12 (11) | B16: Tobias Gneupel | C16: Sibbamåla | D16: 3228 | F16: 9 | G16: 179.3333333 | J16: 318 | K16: 361 | L16: 279 | N16: 468 | Q16: 212 | R16: 396 | S16: 402 | Y16: 405 | Z16: 387 | AB16: 17 | AC16: - | AD16: - | AE16: - | AF16: 11 | AG16: 12 | AH16: 12 | AI16: 12 | AL16: 0 | AM16: 2 | AN16: 3 | AO16: 3 | AP16: 2 | AQ16: 2 | AR16: 2 | AS16: 1 | AT16: 2 | AU16: 3 | AV16: 3 | AW16: 2 | AX16: 1 | AY16: 1 | AZ16: 0 | BA16: 1 | BB16: 2 | BC16: 3 | BD16: 2 | BF16: 2 | BI16: 468 | BJ16: 405 | BK16: 402 | BL16: 396 | BM16: 387 | BN16: 361 | BO16: 318 | BP16: 279 | BQ16: 212 | BY16: - | BZ16: - | CA16: - | CB16: 6 | CD16: 3228 | EO16: 12 | EQ16: 12 | ER16: (11)
A17: 13 (16) | B17: Göran Olofsson | C17: Korpen Nybro | D17: 3091 | F17: 13 | G17: 118.8846154 | J17: 227 | K17: 275 | L17: 247 | M17: 282 | N17: 250 | Q17: 246 | S17: 220 | T17: 181 | U17: 188 | V17: 215 | X17: 249 | Z17: 280 | AA17: 231 | AB17: 17 | AC17: - | AD17: - | AE17: - | AF17: 16 | AG17: 13 | AH17: 13 | AI17: 13 | AL17: 0 | AM17: 2 | AN17: 3 | AO17: 3 | AP17: 3 | AQ17: 3 | AR17: 2 | AS17: 1 | AT17: 2 | AU17: 2 | AV17: 2 | AW17: 3 | AX17: 3 | AY17: 3 | AZ17: 1 | BA17: 2 | BB17: 2 | BC17: 2 | BD17: 3 | BF17: 2 | BI17: 282 | BJ17: 280 | BK17: 275 | BL17: 250 | BM17: 249 | BN17: 247 | BO17: 246 | BP17: 231 | BQ17: 227 | BR17: 220 | BS17: 215 | BT17: 188 | BU17: 181 | BY17: - | BZ17: - | CA17: - | CB17: 2 | CD17: 3091 | EO17: 13 | EQ17: 13 | ER17: (16)
A18: 14 (12) | B18: Joel Sundahl | C18: Carlskrona | D18: 3074 | F18: 11 | G18: 139.7272727 | J18: 209 | K18: 221 | L18: 249 | N18: 284 | R18: 290 | S18: 281 | U18: 341 | V18: 270 | Y18: 308 | Z18: 288 | AA18: 333 | AB18: 17 | AC18: - | AD18: - | AE18: - | AF18: 12 | AG18: 14 | AH18: 14 | AI18: 14 | AL18: 0 | AM18: 2 | AN18: 3 | AO18: 3 | AP18: 2 | AQ18: 2 | AR18: 2 | AS18: 1 | AT18: 1 | AU18: 2 | AV18: 3 | AW18: 2 | AX18: 2 | AY18: 3 | AZ18: 1 | BA18: 1 | BB18: 2 | BC18: 3 | BD18: 3 | BF18: 2 | BI18: 341 | BJ18: 333 | BK18: 308 | BL18: 290 | BM18: 288 | BN18: 284 | BO18: 281 | BP18: 270 | BQ18: 249 | BR18: 221 | BS18: 209 | BY18: - | BZ18: - | CA18: - | CB18: 4 | CD18: 3074 | EO18: 14 | EQ18: 14 | ER18: (12)
A19: 15 (10) | B19: Lasse Brincner | C19: Värends Hsk | D19: 3073 | F19: 12 | G19: 128.0416667 | J19: 302 | K19: 185 | L19: 289 | M19: 203 | N19: 327 | O19: 278 | P19: 198 | Q19: 210 | S19: 298 | T19: 290 | U19: 221 | X19: 272 | AB19: 17 | AC19: - | AD19: - | AE19: - | AF19: 10 | AG19: 15 | AH19: 15 | AI19: 15 | AL19: 0 | AM19: 2 | AN19: 3 | AO19: 3 | AP19: 3 | AQ19: 3 | AR19: 3 | AS19: 3 | AT19: 3 | AU19: 2 | AV19: 2 | AW19: 3 | AX19: 3 | AY19: 2 | AZ19: 0 | BA19: 2 | BB19: 2 | BC19: 1 | BD19: 1 | BF19: 2 | BI19: 327 | BJ19: 302 | BK19: 298 | BL19: 290 | BM19: 289 | BN19: 278 | BO19: 272 | BP19: 221 | BQ19: 210 | BR19: 203 | BS19: 198 | BT19: 185 | BY19: - | BZ19: - | CA19: - | CB19: 3 | CD19: 3073 | EO19: 15 | EQ19: 15 | ER19: (10)
A20: 16 (13) | B20: Christer Blomgren | C20: Lanternan | D20: 2922 | F20: 12 | G20: 121.75 | J20: 234 | K20: 301 | L20: 285 | N20: 292 | Q20: 195 | R20: 263 | S20: 251 | T20: 224 | U20: 195 | V20: 252 | Y20: 257 | Z20: 173 | AB20: 17 | AC20: - | AD20: - | AE20: - | AF20: 13 | AG20: 16 | AH20: 16 | AI20: 16 | AL20: 0 | AM20: 2 | AN20: 3 | AO20: 3 | AP20: 2 | AQ20: 2 | AR20: 2 | AS20: 1 | AT20: 2 | AU20: 3 | AV20: 3 | AW20: 3 | AX20: 3 | AY20: 3 | AZ20: 1 | BA20: 1 | BB20: 2 | BC20: 3 | BD20: 2 | BF20: 2 | BI20: 301 | BJ20: 292 | BK20: 285 | BL20: 263 | BM20: 257 | BN20: 252 | BO20: 251 | BP20: 234 | BQ20: 224 | BR20: 195 | BS20: 195 | BT20: 173 | BY20: - | BZ20: - | CA20: - | CB20: 3 | CD20: 2922 | EO20: 16 | EQ20: 16 | ER20: (13)
A21: 17 (17) | B21: Dan Hallstan | C21: Växjö | D21: 2896 | F21: 15 | G21: 104.9 | J21: 123 | K21: 189 | L21: 238 | M21: 234 | N21: 222 | O21: 250 | P21: 198 | Q21: 128 | S21: 212 | T21: 244 | U21: 162 | V21: 222 | X21: 276 | Z21: 281 | AA21: 168 | AB21: 17 | AC21: 128 | AD21: 123 | AE21: - | AF21: 17 | AG21: 17 | AH21: 17 | AI21: 17 | AL21: 0 | AM21: 2 | AN21: 3 | AO21: 3 | AP21: 3 | AQ21: 3 | AR21: 3 | AS21: 3 | AT21: 3 | AU21: 2 | AV21: 2 | AW21: 3 | AX21: 3 | AY21: 3 | AZ21: 1 | BA21: 2 | BB21: 2 | BC21: 2 | BD21: 3 | BF21: 2 | BI21: 281 | BJ21: 276 | BK21: 250 | BL21: 244 | BM21: 238 | BN21: 234 | BO21: 222 | BP21: 222 | BQ21: 212 | BR21: 198 | BS21: 189 | BT21: 168 | BU21: 162 | BV21: 128 | BW21: 123 | BY21: 128 | BZ21: 123 | CA21: - | CB21: 0 | CD21: 3147 | EO21: 17 | EQ21: 17 | ER21: (17)
A22: 18 (15) | B22: Olle Ottosson | C22: Dynapac | D22: 2885 | F22: 9 | G22: 160.2777778 | J22: 250 | K22: 289 | L22: 289 | N22: 404 | Q22: 245 | R22: 285 | S22: 379 | T22: 393 | U22: 351 | AB22: 17 | AC22: - | AD22: - | AE22: - | AF22: 15 | AG22: 18 | AH22: 18 | AI22: 18 | AL22: 0 | AM22: 2 | AN22: 3 | AO22: 3 | AP22: 2 | AQ22: 2 | AR22: 2 | AS22: 1 | AT22: 2 | AU22: 3 | AV22: 3 | AW22: 3 | AX22: 3 | AY22: 2 | AZ22: 0 | BA22: 1 | BB22: 1 | BC22: 1 | BD22: 1 | BF22: 2 | BI22: 404 | BJ22: 393 | BK22: 379 | BL22: 351 | BM22: 289 | BN22: 289 | BO22: 285 | BP22: 250 | BQ22: 245 | BY22: - | BZ22: - | CA22: - | CB22: 6 | CD22: 2885 | EO22: 18 | EQ22: 18 | ER22: (15)
A23: 19 (19) | B23: Ingegerd Pettersson | C23: Lanternan | D23: 2833 | F23: 13 | G23: 108.9615385 | J23: 197 | K23: 271 | L23: 276 | N23: 164 | Q23: 229 | R23: 279 | S23: 216 | T23: 197 | U23: 221 | V23: 180 | Y23: 199 | Z23: 185 | AA23: 219 | AB23: 17 | AC23: - | AD23: - | AE23: - | AF23: 19 | AG23: 19 | AH23: 19 | AI23: 19 | AL23: 0 | AM23: 2 | AN23: 3 | AO23: 3 | AP23: 2 | AQ23: 2 | AR23: 2 | AS23: 1 | AT23: 2 | AU23: 3 | AV23: 3 | AW23: 3 | AX23: 3 | AY23: 3 | AZ23: 1 | BA23: 1 | BB23: 2 | BC23: 3 | BD23: 3 | BF23: 2 | BI23: 279 | BJ23: 276 | BK23: 271 | BL23: 229 | BM23: 221 | BN23: 219 | BO23: 216 | BP23: 199 | BQ23: 197 | BR23: 197 | BS23: 185 | BT23: 180 | BU23: 164 | BY23: - | BZ23: - | CA23: - | CB23: 2 | CD23: 2833 | EO23: 19 | EQ23: 19 | ER23: (19)
A24: 20 (20) | B24: Anita Fabbeke | C24: Dynapac | D24: 2723 | F24: 12 | G24: 113.4583333 | J24: 229 | K24: 278 | L24: 253 | N24: 224 | Q24: 181 | R24: 156 | T24: 195 | U24: 171 | V24: 283 | Y24: 230 | Z24: 333 | AA24: 190 | AB24: 17 | AC24: - | AD24: - | AE24: - | AF24: 20 | AG24: 20 | AH24: 20 | AI24: 20 | AL24: 0 | AM24: 2 | AN24: 3 | AO24: 3 | AP24: 2 | AQ24: 2 | AR24: 2 | AS24: 1 | AT24: 2 | AU24: 3 | AV24: 2 | AW24: 2 | AX24: 3 | AY24: 3 | AZ24: 1 | BA24: 1 | BB24: 2 | BC24: 3 | BD24: 3 | BF24: 2 | BI24: 333 | BJ24: 283 | BK24: 278 | BL24: 253 | BM24: 230 | BN24: 229 | BO24: 224 | BP24: 195 | BQ24: 190 | BR24: 181 | BS24: 171 | BT24: 156 | BY24: - | BZ24: - | CA24: - | CB24: 3 | CD24: 2723 | EO24: 20 | EQ24: 20 | ER24: (20)
A25: 21 (22) | B25: Tomas Lindahl | C25: Korpen Åseda | D25: 2661 | F25: 13 | G25: 102.3461538 | J25: 174 | K25: 200 | L25: 262 | M25: 223 | N25: 298 | O25: 166 | P25: 195 | Q25: 150 | S25: 268 | T25: 165 | U25: 179 | X25: 203 | AA25: 178 | AB25: 17 | AC25: - | AD25: - | AE25: - | AF25: 22 | AG25: 21 | AH25: 21 | AI25: 21 | AL25: 0 | AM25: 2 | AN25: 3 | AO25: 3 | AP25: 3 | AQ25: 3 | AR25: 3 | AS25: 3 | AT25: 3 | AU25: 2 | AV25: 2 | AW25: 3 | AX25: 3 | AY25: 2 | AZ25: 0 | BA25: 2 | BB25: 2 | BC25: 1 | BD25: 2 | BF25: 2 | BI25: 298 | BJ25: 268 | BK25: 262 | BL25: 223 | BM25: 203 | BN25: 200 | BO25: 195 | BP25: 179 | BQ25: 178 | BR25: 174 | BS25: 166 | BT25: 165 | BU25: 150 | BY25: - | BZ25: - | CA25: - | CB25: 2 | CD25: 2661 | EO25: 21 | EQ25: 21 | ER25: (22)
A26: 22 (23) | B26: Carina Gneupel | C26: Sibbamåla | D26: 2656 | F26: 11 | G26: 120.7272727 | J26: 101 | K26: 306 | L26: 260 | N26: 315 | Q26: 244 | R26: 297 | S26: 255 | T26: 170 | U26: 238 | V26: 217 | Y26: 253 | AB26: 17 | AC26: - | AD26: - | AE26: - | AF26: 23 | AG26: 22 | AH26: 22 | AI26: 22 | AL26: 0 | AM26: 2 | AN26: 3 | AO26: 3 | AP26: 2 | AQ26: 2 | AR26: 2 | AS26: 1 | AT26: 2 | AU26: 3 | AV26: 3 | AW26: 3 | AX26: 3 | AY26: 3 | AZ26: 1 | BA26: 1 | BB26: 2 | BC26: 2 | BD26: 1 | BF26: 2 | BI26: 315 | BJ26: 306 | BK26: 297 | BL26: 260 | BM26: 255 | BN26: 253 | BO26: 244 | BP26: 238 | BQ26: 217 | BR26: 170 | BS26: 101 | BY26: - | BZ26: - | CA26: - | CB26: 4 | CD26: 2656 | EO26: 22 | EQ26: 22 | ER26: (23)
A27: 23 (21) | B27: Anders Johansson | C27: Dynapac | D27: 2617 | F27: 11 | G27: 118.9545455 | J27: 265 | K27: 278 | L27: 213 | N27: 257 | Q27: 210 | R27: 290 | T27: 131 | U27: 228 | V27: 230 | Y27: 289 | AA27: 226 | AB27: 17 | AC27: - | AD27: - | AE27: - | AF27: 21 | AG27: 23 | AH27: 23 | AI27: 23 | AL27: 0 | AM27: 2 | AN27: 3 | AO27: 3 | AP27: 2 | AQ27: 2 | AR27: 2 | AS27: 1 | AT27: 2 | AU27: 3 | AV27: 2 | AW27: 2 | AX27: 3 | AY27: 3 | AZ27: 1 | BA27: 1 | BB27: 2 | BC27: 2 | BD27: 2 | BF27: 2 | BI27: 290 | BJ27: 289 | BK27: 278 | BL27: 265 | BM27: 257 | BN27: 230 | BO27: 228 | BP27: 226 | BQ27: 213 | BR27: 210 | BS27: 131 | BY27: - | BZ27: - | CA27: - | CB27: 4 | CD27: 2617 | EO27: 23 | EQ27: 23 | ER27: (21)
A28: 23 (24) | B28: Hathaichonlanee Phaengphui | C28: Växjö Hsk | D28: 2617 | F28: 10 | G28: 130.85 | L28: 202 | M28: 250 | N28: 328 | Q28: 227 | S28: 222 | T28: 230 | U28: 198 | V28: 259 | X28: 339 | Z28: 362 | AB28: 17 | AC28: - | AD28: - | AE28: - | AF28: 24 | AG28: 23 | AH28: 24 | AI28: 24 | AL28: 0 | AM28: 1 | AN28: 1 | AO28: 2 | AP28: 3 | AQ28: 3 | AR28: 2 | AS28: 1 | AT28: 2 | AU28: 2 | AV28: 2 | AW28: 3 | AX28: 3 | AY28: 3 | AZ28: 1 | BA28: 2 | BB28: 2 | BC28: 2 | BD28: 2 | BF28: 2 | BI28: 362 | BJ28: 339 | BK28: 328 | BL28: 259 | BM28: 250 | BN28: 230 | BO28: 227 | BP28: 222 | BQ28: 202 | BR28: 198 | BY28: - | BZ28: - | CA28: - | CB28: 5 | CD28: 2617 | EO28: 24 | EQ28: 23 | ER28: (24)
A29: 25 (28) | B29: Berndt Pettersson | C29: Lanternan | D29: 2615 | F29: 13 | G29: 100.5769231 | J29: 207 | K29: 259 | L29: 128 | N29: 209 | Q29: 164 | R29: 177 | S29: 207 | T29: 208 | U29: 162 | V29: 227 | Y29: 205 | Z29: 180 | AA29: 282 | AB29: 17 | AC29: - | AD29: - | AE29: - | AF29: 28 | AG29: 25 | AH29: 25 | AI29: 25 | AL29: 0 | AM29: 2 | AN29: 3 | AO29: 3 | AP29: 2 | AQ29: 2 | AR29: 2 | AS29: 1 | AT29: 2 | AU29: 3 | AV29: 3 | AW29: 3 | AX29: 3 | AY29: 3 | AZ29: 1 | BA29: 1 | BB29: 2 | BC29: 3 | BD29: 3 | BF29: 2 | BI29: 282 | BJ29: 259 | BK29: 227 | BL29: 209 | BM29: 208 | BN29: 207 | BO29: 207 | BP29: 205 | BQ29: 180 | BR29: 177 | BS29: 164 | BT29: 162 | BU29: 128 | BY29: - | BZ29: - | CA29: - | CB29: 2 | CD29: 2615 | EO29: 25 | EQ29: 25 | ER29: (28)
A30: 26 (32) | B30: Ronny Lundberg | C30: Lanternan | D30: 2547 | F30: 12 | G30: 106.125 | J30: 226 | K30: 248 | L30: 218 | N30: 191 | Q30: 227 | R30: 200 | S30: 229 | T30: 226 | U30: 170 | Y30: 197 | Z30: 154 | AA30: 261 | AB30: 17 | AC30: - | AD30: - | AE30: - | AF30: 32 | AG30: 26 | AH30: 26 | AI30: 26 | AL30: 0 | AM30: 2 | AN30: 3 | AO30: 3 | AP30: 2 | AQ30: 2 | AR30: 2 | AS30: 1 | AT30: 2 | AU30: 3 | AV30: 3 | AW30: 3 | AX30: 3 | AY30: 2 | AZ30: 0 | BA30: 1 | BB30: 2 | BC30: 3 | BD30: 3 | BF30: 2 | BI30: 261 | BJ30: 248 | BK30: 229 | BL30: 227 | BM30: 226 | BN30: 226 | BO30: 218 | BP30: 200 | BQ30: 197 | BR30: 191 | BS30: 170 | BT30: 154 | BY30: - | BZ30: - | CA30: - | CB30: 3 | CD30: 2547 | EO30: 26 | EQ30: 26 | ER30: (32)
A31: 27 (25) | B31: Jan Petersson | C31: Lanternan | D31: 2544 | F31: 13 | G31: 97.84615385 | J31: 205 | K31: 251 | L31: 202 | N31: 210 | Q31: 187 | R31: 259 | S31: 170 | T31: 212 | U31: 161 | V31: 196 | Y31: 205 | Z31: 140 | AA31: 146 | AB31: 17 | AC31: - | AD31: - | AE31: - | AF31: 25 | AG31: 27 | AH31: 27 | AI31: 27 | AL31: 0 | AM31: 2 | AN31: 3 | AO31: 3 | AP31: 2 | AQ31: 2 | AR31: 2 | AS31: 1 | AT31: 2 | AU31: 3 | AV31: 3 | AW31: 3 | AX31: 3 | AY31: 3 | AZ31: 1 | BA31: 1 | BB31: 2 | BC31: 3 | BD31: 3 | BF31: 2 | BI31: 259 | BJ31: 251 | BK31: 212 | BL31: 210 | BM31: 205 | BN31: 205 | BO31: 202 | BP31: 196 | BQ31: 187 | BR31: 170 | BS31: 161 | BT31: 146 | BU31: 140 | BY31: - | BZ31: - | CA31: - | CB31: 2 | CD31: 2544 | EO31: 27 | EQ31: 27 | ER31: (25)
A32: 28 (33) | B32: Alf Svensson | C32: Korpen Åseda | D32: 2539 | F32: 13 | G32: 97.65384615 | J32: 149 | K32: 181 | L32: 183 | M32: 207 | N32: 150 | Q32: 276 | S32: 302 | T32: 240 | U32: 151 | V32: 177 | X32: 194 | Z32: 106 | AA32: 223 | AB32: 17 | AC32: - | AD32: - | AE32: - | AF32: 33 | AG32: 28 | AH32: 28 | AI32: 28 | AL32: 0 | AM32: 2 | AN32: 3 | AO32: 3 | AP32: 3 | AQ32: 3 | AR32: 2 | AS32: 1 | AT32: 2 | AU32: 2 | AV32: 2 | AW32: 3 | AX32: 3 | AY32: 3 | AZ32: 1 | BA32: 2 | BB32: 2 | BC32: 2 | BD32: 3 | BF32: 2 | BI32: 302 | BJ32: 276 | BK32: 240 | BL32: 223 | BM32: 207 | BN32: 194 | BO32: 183 | BP32: 181 | BQ32: 177 | BR32: 151 | BS32: 150 | BT32: 149 | BU32: 106 | BY32: - | BZ32: - | CA32: - | CB32: 2 | CD32: 2539 | EO32: 28 | EQ32: 28 | ER32: (33)
A33: 29 (34) | B33: Bengt Fabbeke | C33: Dynapac | D33: 2501 | F33: 12 | G33: 104.2083333 | J33: 164 | K33: 241 | L33: 180 | N33: 228 | Q33: 210 | R33: 147 | T33: 213 | U33: 142 | V33: 221 | Y33: 229 | Z33: 238 | AA33: 288 | AB33: 17 | AC33: - | AD33: - | AE33: - | AF33: 34 | AG33: 29 | AH33: 29 | AI33: 29 | AL33: 0 | AM33: 2 | AN33: 3 | AO33: 3 | AP33: 2 | AQ33: 2 | AR33: 2 | AS33: 1 | AT33: 2 | AU33: 3 | AV33: 2 | AW33: 2 | AX33: 3 | AY33: 3 | AZ33: 1 | BA33: 1 | BB33: 2 | BC33: 3 | BD33: 3 | BF33: 2 | BI33: 288 | BJ33: 241 | BK33: 238 | BL33: 229 | BM33: 228 | BN33: 221 | BO33: 213 | BP33: 210 | BQ33: 180 | BR33: 164 | BS33: 147 | BT33: 142 | BY33: - | BZ33: - | CA33: - | CB33: 3 | CD33: 2501 | EO33: 29 | EQ33: 29 | ER33: (34)
A34: 30 (31) | B34: Bo Petersson | C34: Korpen Nybro | D34: 2490 | F34: 11 | G34: 113.1818182 | K34: 223 | L34: 237 | M34: 241 | N34: 245 | Q34: 178 | S34: 299 | T34: 212 | U34: 139 | V34: 195 | X34: 262 | Z34: 259 | AB34: 17 | AC34: - | AD34: - | AE34: - | AF34: 31 | AG34: 30 | AH34: 30 | AI34: 30 | AL34: 0 | AM34: 1 | AN34: 2 | AO34: 3 | AP34: 3 | AQ34: 3 | AR34: 2 | AS34: 1 | AT34: 2 | AU34: 2 | AV34: 2 | AW34: 3 | AX34: 3 | AY34: 3 | AZ34: 1 | BA34: 2 | BB34: 2 | BC34: 2 | BD34: 2 | BF34: 2 | BI34: 299 | BJ34: 262 | BK34: 259 | BL34: 245 | BM34: 241 | BN34: 237 | BO34: 223 | BP34: 212 | BQ34: 195 | BR34: 178 | BS34: 139 | BY34: - | BZ34: - | CA34: - | CB34: 4 | CD34: 2490 | EO34: 30 | EQ34: 30 | ER34: (31)
A35: 31 (29) | B35: Nathalie Sundahl | C35: Carlskrona | D35: 2474 | F35: 12 | G35: 103.0833333 | J35: 125 | K35: 218 | L35: 244 | N35: 267 | Q35: 208 | R35: 277 | S35: 205 | U35: 162 | V35: 124 | Y35: 220 | Z35: 209 | AA35: 215 | AB35: 17 | AC35: - | AD35: - | AE35: - | AF35: 29 | AG35: 31 | AH35: 31 | AI35: 31 | AL35: 0 | AM35: 2 | AN35: 3 | AO35: 3 | AP35: 2 | AQ35: 2 | AR35: 2 | AS35: 1 | AT35: 2 | AU35: 3 | AV35: 3 | AW35: 2 | AX35: 2 | AY35: 3 | AZ35: 1 | BA35: 1 | BB35: 2 | BC35: 3 | BD35: 3 | BF35: 2 | BI35: 277 | BJ35: 267 | BK35: 244 | BL35: 220 | BM35: 218 | BN35: 215 | BO35: 209 | BP35: 208 | BQ35: 205 | BR35: 162 | BS35: 125 | BT35: 124 | BY35: - | BZ35: - | CA35: - | CB35: 3 | CD35: 2474 | EO35: 31 | EQ35: 31 | ER35: (29)
A36: 32 (36) | B36: Peter Edlund | C36: Dynapac | D36: 2450 | F36: 10 | G36: 122.5 | J36: 224 | K36: 244 | L36: 367 | N36: 291 | Q36: 170 | R36: 262 | U36: 211 | V36: 270 | Y36: 252 | AA36: 159 | AB36: 17 | AC36: - | AD36: - | AE36: - | AF36: 36 | AG36: 32 | AH36: 32 | AI36: 32 | AL36: 0 | AM36: 2 | AN36: 3 | AO36: 3 | AP36: 2 | AQ36: 2 | AR36: 2 | AS36: 1 | AT36: 2 | AU36: 3 | AV36: 2 | AW36: 1 | AX36: 2 | AY36: 3 | AZ36: 1 | BA36: 1 | BB36: 2 | BC36: 2 | BD36: 2 | BF36: 2 | BI36: 367 | BJ36: 291 | BK36: 270 | BL36: 262 | BM36: 252 | BN36: 244 | BO36: 224 | BP36: 211 | BQ36: 170 | BR36: 159 | BY36: - | BZ36: - | CA36: - | CB36: 5 | CD36: 2450 | EO36: 32 | EQ36: 32 | ER36: (36)
A37: 33 (27) | B37: Kerstin Svensson | C37: Växjö Hsk | D37: 2439 | F37: 15 | G37: 90.7 | J37: 159 | K37: 170 | L37: 158 | M37: 224 | N37: 176 | O37: 173 | P37: 163 | Q37: 185 | S37: 181 | T37: 193 | U37: 247 | V37: 162 | X37: 211 | Z37: 195 | AA37: 124 | AB37: 17 | AC37: 158 | AD37: 124 | AE37: - | AF37: 27 | AG37: 33 | AH37: 33 | AI37: 33 | AL37: =COUNT($I$3,I37,H37) -> 0 | AM37: =COUNT($J$3,J37,I37) -> 2 | AN37: =COUNT($K$3,K37,J37) -> 3 | AO37: =COUNT($L$3,L37,K37) -> 3 | AP37: =COUNT($M$3,M37,L37) -> 3 | AQ37: =COUNT($N$3,N37,M37) -> 3 | AR37: =COUNT($O$3,O37,N37) -> 3 | AS37: =COUNT($P$3,P37,O37) -> 3 | AT37: =COUNT($Q$3,Q37,P37) -> 3 | AU37: =COUNT($R$3,R37,Q37) -> 2 | AV37: =COUNT($S$3,S37,R37) -> 2 | AW37: =COUNT($T$3,T37,S37) -> 3 | AX37: =COUNT($U$3,U37,T37) -> 3 | AY37: =COUNT($V$3,V37,U37) -> 3 | AZ37: =COUNT($W$3,W37,V37) -> 1 | BA37: =COUNT($X$3,X37,W37) -> 2 | BB37: =COUNT($Y$3,Y37,X37) -> 2 | BC37: =COUNT($Z$3,Z37,Y37) -> 2 | BD37: =COUNT($AA$3,AA37,Z37) -> 3 | BF37: =IF(H37="x",1,2) -> 2 | BI37: 247 | BJ37: 224 | BK37: 211 | BL37: 195 | BM37: 193 | BN37: 185 | BO37: 181 | BP37: 176 | BQ37: 173 | BR37: 170 | BS37: 163 | BT37: 162 | BU37: 159 | BV37: 158 | BW37: 124 | BY37: 158 | BZ37: 124 | CA37: - | CB37: 0 | CD37: 2721 | EO37: 33 | EQ37: =IF(BF37>=1,AG37,"") -> 33 | ER37: (27)
A38: 34 (30) | B38: Nils-Åke Hansson | C38: Korpen Nybro | D38: 2412 | F38: 13 | G38: 92.76923077 | J38: 214 | K38: 192 | L38: 191 | M38: 217 | N38: 143 | Q38: 149 | S38: 195 | T38: 171 | U38: 164 | V38: 214 | X38: 201 | Z38: 212 | AA38: 149 | AB38: 17 | AC38: - | AD38: - | AE38: - | AF38: 30 | AG38: =IF(D38<D37,AI38,AG37) -> 34 | AH38: 34 | AI38: 34 | AL38: 0 | AM38: 2 | AN38: 3 | AO38: 3 | AP38: 3 | AQ38: 3 | AR38: 2 | AS38: 1 | AT38: 2 | AU38: 2 | AV38: 2 | AW38: 3 | AX38: 3 | AY38: 3 | AZ38: 1 | BA38: 2 | BB38: 2 | BC38: 2 | BD38: 3 | BF38: 2 | BI38: 217 | BJ38: 214 | BK38: 214 | BL38: 212 | BM38: 201 | BN38: 195 | BO38: 192 | BP38: 191 | BQ38: 171 | BR38: 164 | BS38: 149 | BT38: 149 | BU38: 143 | BY38: - | BZ38: - | CA38: - | CB38: 2 | CD38: 2412 | EO38: 34 | EQ38: 34 | ER38: (30)
A39: 35 (26) | B39: Roy Dahlén | C39: Dynapac | D39: 2353 | F39: 10 | G39: 117.65 | J39: 301 | K39: 232 | L39: 294 | R39: 351 | S39: 235 | T39: 225 | U39: 129 | V39: 236 | Y39: 221 | AA39: 129 | AB39: 17 | AC39: - | AD39: - | AE39: - | AF39: 26 | AG39: 35 | AH39: 35 | AI39: 35 | AL39: 0 | AM39: 2 | AN39: 3 | AO39: 3 | AP39: 2 | AQ39: 1 | AR39: 1 | AS39: 1 | AT39: 1 | AU39: 2 | AV39: 3 | AW39: 3 | AX39: 3 | AY39: 3 | AZ39: 1 | BA39: 1 | BB39: 2 | BC39: 2 | BD39: 2 | BF39: 2 | BI39: 351 | BJ39: 301 | BK39: 294 | BL39: 236 | BM39: 235 | BN39: 232 | BO39: 225 | BP39: 221 | BQ39: 129 | BR39: 129 | BY39: - | BZ39: - | CA39: - | CB39: 5 | CD39: 2353 | EO39: 35 | EQ39: 35 | ER39: (26)
A40: 36 (41) | B40: Göran Mårtensson | C40: Jämjö Hsk | D40: 2258 | F40: 10 | G40: 112.9 | J40: 184 | K40: 225 | L40: 190 | N40: 250 | Q40: 219 | R40: 247 | V40: 226 | Y40: 204 | Z40: 265 | AA40: 248 | AB40: 17 | AC40: - | AD40: - | AE40: - | AF40: 41 | AG40: 36 | AH40: 36 | AI40: 36 | AL40: 0 | AM40: 2 | AN40: 3 | AO40: 3 | AP40: 2 | AQ40: 2 | AR40: 2 | AS40: 1 | AT40: 2 | AU40: 3 | AV40: 2 | AW40: 1 | AX40: 1 | AY40: 2 | AZ40: 1 | BA40: 1 | BB40: 2 | BC40: 3 | BD40: 3 | BF40: 2 | BI40: 265 | BJ40: 250 | BK40: 248 | BL40: 247 | BM40: 226 | BN40: 225 | BO40: 219 | BP40: 204 | BQ40: 190 | BR40: 184 | BY40: - | BZ40: - | CA40: - | CB40: 5 | CD40: 2258 | EO40: 36 | EQ40: 36 | ER40: (41)
A41: 37 (38) | B41: Yamolada Damnoegam | C41: Växjö Hsk | D41: 2237 | F41: 12 | G41: 93.20833333 | J41: 100 | K41: 148 | L41: 176 | M41: 203 | N41: 187 | Q41: 176 | S41: 196 | T41: 162 | U41: 155 | V41: 272 | X41: 216 | Z41: 246 | AB41: 17 | AC41: - | AD41: - | AE41: - | AF41: 38 | AG41: 37 | AH41: 37 | AI41: 37 | AL41: 0 | AM41: 2 | AN41: 3 | AO41: 3 | AP41: 3 | AQ41: 3 | AR41: 2 | AS41: 1 | AT41: 2 | AU41: 2 | AV41: 2 | AW41: 3 | AX41: 3 | AY41: 3 | AZ41: 1 | BA41: 2 | BB41: 2 | BC41: 2 | BD41: 2 | BF41: 2 | BI41: 272 | BJ41: 246 | BK41: 216 | BL41: 203 | BM41: 196 | BN41: 187 | BO41: 176 | BP41: 176 | BQ41: 162 | BR41: 155 | BS41: 148 | BT41: 100 | BY41: - | BZ41: - | CA41: - | CB41: 3 | CD41: 2237 | EO41: 37 | EQ41: 37 | ER41: (38)
A42: 38 (40) | B42: Ewa Malmqvist | C42: Jämjö Hsk | D42: 2178 | F42: 10 | G42: 108.9 | K42: 216 | L42: 200 | N42: 244 | Q42: 246 | R42: 196 | S42: 206 | V42: 152 | Y42: 286 | Z42: 172 | AA42: 260 | AB42: 17 | AC42: - | AD42: - | AE42: - | AF42: 40 | AG42: 38 | AH42: 38 | AI42: 38 | AL42: 0 | AM42: 1 | AN42: 2 | AO42: 3 | AP42: 2 | AQ42: 2 | AR42: 2 | AS42: 1 | AT42: 2 | AU42: 3 | AV42: 3 | AW42: 2 | AX42: 1 | AY42: 2 | AZ42: 1 | BA42: 1 | BB42: 2 | BC42: 3 | BD42: 3 | BF42: 2 | BI42: 286 | BJ42: 260 | BK42: 246 | BL42: 244 | BM42: 216 | BN42: 206 | BO42: 200 | BP42: 196 | BQ42: 172 | BR42: 152 | BY42: - | BZ42: - | CA42: - | CB42: 5 | CD42: 2178 | EO42: 38 | EQ42: 38 | ER42: (40)
A43: 39 (43) | B43: Åke Bergqvist | C43: Tingsryd | D43: 2175 | F43: 11 | G43: 98.86363636 | J43: 168 | K43: 159 | L43: 358 | M43: 186 | N43: 246 | S43: 162 | T43: 237 | U43: 84 | V43: 181 | Z43: 204 | AA43: 190 | AB43: 17 | AC43: - | AD43: - | AE43: - | AF43: 43 | AG43: 39 | AH43: 39 | AI43: 39 | AL43: 0 | AM43: 2 | AN43: 3 | AO43: 3 | AP43: 3 | AQ43: 3 | AR43: 2 | AS43: 1 | AT43: 1 | AU43: 1 | AV43: 2 | AW43: 3 | AX43: 3 | AY43: 3 | AZ43: 1 | BA43: 1 | BB43: 1 | BC43: 2 | BD43: 3 | BF43: 2 | BI43: 358 | BJ43: 246 | BK43: 237 | BL43: 204 | BM43: 190 | BN43: 186 | BO43: 181 | BP43: 168 | BQ43: 162 | BR43: 159 | BS43: 84 | BY43: - | BZ43: - | CA43: - | CB43: 4 | CD43: 2175 | EO43: 39 | EQ43: 39 | ER43: (43)
A44: 40 (37) | B44: Johan Johansson | C44: Tingsryd | D44: 2171 | F44: 7 | G44: 155.0714286 | K44: 375 | L44: 305 | M44: 291 | T44: 306 | U44: 282 | V44: 320 | AA44: 292 | AB44: 17 | AC44: - | AD44: - | AE44: - | AF44: 37 | AG44: 40 | AH44: 40 | AI44: 40 | AL44: 0 | AM44: 1 | AN44: 2 | AO44: 3 | AP44: 3 | AQ44: 2 | AR44: 1 | AS44: 1 | AT44: 1 | AU44: 1 | AV44: 1 | AW44: 2 | AX44: 3 | AY44: 3 | AZ44: 1 | BA44: 1 | BB44: 1 | BC44: 1 | BD44: 2 | BF44: 2 | BI44: 375 | BJ44: 320 | BK44: 306 | BL44: 305 | BM44: 292 | BN44: 291 | BO44: 282 | BY44: - | BZ44: - | CA44: - | CB44: 8 | CD44: 2171 | EO44: 40 | EQ44: 40 | ER44: (37)
A45: 41 (42) | B45: Marianne Karlsson | C45: Jämjö Hsk | D45: 2107 | F45: 9 | G45: 117.0555556 | J45: 207 | K45: 207 | L45: 254 | N45: 289 | Q45: 253 | R45: 183 | S45: 241 | Z45: 230 | AA45: 243 | AB45: 17 | AC45: - | AD45: - | AE45: - | AF45: 42 | AG45: 41 | AH45: 41 | AI45: 41 | AL45: 0 | AM45: 2 | AN45: 3 | AO45: 3 | AP45: 2 | AQ45: 2 | AR45: 2 | AS45: 1 | AT45: 2 | AU45: 3 | AV45: 3 | AW45: 2 | AX45: 1 | AY45: 1 | AZ45: 0 | BA45: 1 | BB45: 1 | BC45: 2 | BD45: 3 | BF45: 2 | BI45: 289 | BJ45: 254 | BK45: 253 | BL45: 243 | BM45: 241 | BN45: 230 | BO45: 207 | BP45: 207 | BQ45: 183 | BY45: - | BZ45: - | CA45: - | CB45: 6 | CD45: 2107 | EO45: 41 | EQ45: 41 | ER45: (42)
A46: 42 (35) | B46: Dan Madayang | C46: Korpen Åseda | D46: 2060 | F46: 8 | G46: 128.75 | J46: 213 | K46: 331 | L46: 266 | M46: 195 | N46: 262 | S46: 307 | T46: 188 | X46: 298 | AB46: 17 | AC46: - | AD46: - | AE46: - | AF46: 35 | AG46: 42 | AH46: 42 | AI46: 42 | AL46: 0 | AM46: 2 | AN46: 3 | AO46: 3 | AP46: 3 | AQ46: 3 | AR46: 2 | AS46: 1 | AT46: 1 | AU46: 1 | AV46: 2 | AW46: 3 | AX46: 2 | AY46: 1 | AZ46: 0 | BA46: 2 | BB46: 2 | BC46: 1 | BD46: 1 | BF46: 2 | BI46: 331 | BJ46: 307 | BK46: 298 | BL46: 266 | BM46: 262 | BN46: 213 | BO46: 195 | BP46: 188 | BY46: - | BZ46: - | CA46: - | CB46: 7 | CD46: 2060 | EO46: 42 | EQ46: 42 | ER46: (35)
A47: 43 (45) | B47: Sune Olsson | C47: Korpen Nybro | D47: 2019 | F47: 10 | G47: 100.95 | K47: 267 | L47: 204 | N47: 231 | Q47: 159 | S47: 173 | T47: 193 | U47: 145 | V47: 245 | Z47: 172 | AA47: 230 | AB47: 17 | AC47: - | AD47: - | AE47: - | AF47: 45 | AG47: 43 | AH47: 43 | AI47: 43 | AL47: 0 | AM47: 1 | AN47: 2 | AO47: 3 | AP47: 2 | AQ47: 2 | AR47: 2 | AS47: 1 | AT47: 2 | AU47: 2 | AV47: 2 | AW47: 3 | AX47: 3 | AY47: 3 | AZ47: 1 | BA47: 1 | BB47: 1 | BC47: 2 | BD47: 3 | BF47: 2 | BI47: 267 | BJ47: 245 | BK47: 231 | BL47: 230 | BM47: 204 | BN47: 193 | BO47: 173 | BP47: 172 | BQ47: 159 | BR47: 145 | BY47: - | BZ47: - | CA47: - | CB47: 5 | CD47: 2019 | EO47: 43 | EQ47: 43 | ER47: (45)
A48: 44 (39) | B48: Stefan Tollstam | C48: Dynapac | D48: 2009 | F48: 10 | G48: 100.45 | J48: 167 | K48: 197 | L48: 150 | N48: 273 | Q48: 185 | R48: 209 | S48: 149 | T48: 223 | U48: 183 | Y48: 273 | AB48: 17 | AC48: - | AD48: - | AE48: - | AF48: 39 | AG48: 44 | AH48: 44 | AI48: 44 | AL48: 0 | AM48: 2 | AN48: 3 | AO48: 3 | AP48: 2 | AQ48: 2 | AR48: 2 | AS48: 1 | AT48: 2 | AU48: 3 | AV48: 3 | AW48: 3 | AX48: 3 | AY48: 2 | AZ48: 0 | BA48: 1 | BB48: 2 | BC48: 2 | BD48: 1 | BF48: 2 | BI48: 273 | BJ48: 273 | BK48: 223 | BL48: 209 | BM48: 197 | BN48: 185 | BO48: 183 | BP48: 167 | BQ48: 150 | BR48: 149 | BY48: - | BZ48: - | CA48: - | CB48: 5 | CD48: 2009 | EO48: 44 | EQ48: 44 | ER48: (39)
A49: 45 (46) | B49: Klara Larsson | C49: Värends Hsk | D49: 1947 | F49: 11 | G49: 88.5 | J49: 185 | K49: 183 | L49: 205 | M49: 234 | N49: 146 | Q49: 98 | S49: 96 | T49: 215 | U49: 205 | V49: 171 | AA49: 209 | AB49: 17 | AC49: - | AD49: - | AE49: - | AF49: 46 | AG49: 45 | AH49: 45 | AI49: 45 | AL49: 0 | AM49: 2 | AN49: 3 | AO49: 3 | AP49: 3 | AQ49: 3 | AR49: 2 | AS49: 1 | AT49: 2 | AU49: 2 | AV49: 2 | AW49: 3 | AX49: 3 | AY49: 3 | AZ49: 1 | BA49: 1 | BB49: 1 | BC49: 1 | BD49: 2 | BF49: 2 | BI49: 234 | BJ49: 215 | BK49: 209 | BL49: 205 | BM49: 205 | BN49: 185 | BO49: 183 | BP49: 171 | BQ49: 146 | BR49: 98 | BS49: 96 | BY49: - | BZ49: - | CA49: - | CB49: 4 | CD49: 1947 | EO49: 45 | EQ49: 45 | ER49: (46)
A50: 46 (47) | B50: Leif Sundahl | C50: Carlskrona | D50: 1928 | F50: 10 | G50: 96.4 | J50: 196 | K50: 166 | L50: 228 | N50: 207 | Q50: 123 | R50: 362 | T50: 198 | U50: 111 | Y50: 185 | Z50: 152 | AB50: 17 | AC50: - | AD50: - | AE50: - | AF50: 47 | AG50: 46 | AH50: 46 | AI50: 46 | AL50: 0 | AM50: 2 | AN50: 3 | AO50: 3 | AP50: 2 | AQ50: 2 | AR50: 2 | AS50: 1 | AT50: 2 | AU50: 3 | AV50: 2 | AW50: 2 | AX50: 3 | AY50: 2 | AZ50: 0 | BA50: 1 | BB50: 2 | BC50: 3 | BD50: 2 | BF50: 2 | BI50: 362 | BJ50: 228 | BK50: 207 | BL50: 198 | BM50: 196 | BN50: 185 | BO50: 166 | BP50: 152 | BQ50: 123 | BR50: 111 | BY50: - | BZ50: - | CA50: - | CB50: 5 | CD50: 1928 | EO50: 46 | EQ50: 46 | ER50: (47)
A51: 47 (44) | B51: Bengt Andersson | C51: Växjö Hsk | D51: 1875 | F51: 10 | G51: 93.75 | J51: 211 | K51: 201 | L51: 148 | M51: 185 | N51: 199 | Q51: 211 | T51: 140 | V51: 169 | X51: 236 | Z51: 175 | AB51: 17 | AC51: - | AD51: - | AE51: - | AF51: 44 | AG51: 47 | AH51: 47 | AI51: 47 | AL51: 0 | AM51: 2 | AN51: 3 | AO51: 3 | AP51: 3 | AQ51: 3 | AR51: 2 | AS51: 1 | AT51: 2 | AU51: 2 | AV51: 1 | AW51: 2 | AX51: 2 | AY51: 2 | AZ51: 1 | BA51: 2 | BB51: 2 | BC51: 2 | BD51: 2 | BF51: 2 | BI51: 236 | BJ51: 211 | BK51: 211 | BL51: 201 | BM51: 199 | BN51: 185 | BO51: 175 | BP51: 169 | BQ51: 148 | BR51: 140 | BY51: - | BZ51: - | CA51: - | CB51: 5 | CD51: 1875 | EO51: 47 | EQ51: 47 | ER51: (44)
A52: 48 (49) | B52: Bernt Olsson | C52: Jämjö Hsk | D52: 1772 | F52: 10 | G52: 88.6 | K52: 180 | L52: 172 | N52: 155 | Q52: 178 | R52: 234 | S52: 188 | V52: 135 | Y52: 159 | Z52: 208 | AA52: 163 | AB52: 17 | AC52: - | AD52: - | AE52: - | AF52: 49 | AG52: 48 | AH52: 48 | AI52: 48 | AL52: 0 | AM52: 1 | AN52: 2 | AO52: 3 | AP52: 2 | AQ52: 2 | AR52: 2 | AS52: 1 | AT52: 2 | AU52: 3 | AV52: 3 | AW52: 2 | AX52: 1 | AY52: 2 | AZ52: 1 | BA52: 1 | BB52: 2 | BC52: 3 | BD52: 3 | BF52: 2 | BI52: 234 | BJ52: 208 | BK52: 188 | BL52: 180 | BM52: 178 | BN52: 172 | BO52: 163 | BP52: 159 | BQ52: 155 | BR52: 135 | BY52: - | BZ52: - | CA52: - | CB52: 5 | CD52: 1772 | EO52: 48 | EQ52: 48 | ER52: (49)
A53: 49 (51) | B53: Maj-Britt Jarl | C53: Växjö | D53: 1736 | F53: 7 | G53: 124 | M53: 230 | N53: 314 | Q53: 224 | S53: 232 | T53: 254 | U53: 185 | AA53: 297 | AB53: 17 | AC53: - | AD53: - | AE53: - | AF53: 51 | AG53: 49 | AH53: 49 | AI53: 49 | AL53: 0 | AM53: 1 | AN53: 1 | AO53: 1 | AP53: 2 | AQ53: 3 | AR53: 2 | AS53: 1 | AT53: 2 | AU53: 2 | AV53: 2 | AW53: 3 | AX53: 3 | AY53: 2 | AZ53: 0 | BA53: 1 | BB53: 1 | BC53: 1 | BD53: 2 | BF53: 2 | BI53: 314 | BJ53: 297 | BK53: 254 | BL53: 232 | BM53: 230 | BN53: 224 | BO53: 185 | BY53: - | BZ53: - | CA53: - | CB53: 8 | CD53: 1736 | EO53: 49 | EQ53: 49 | ER53: (51)
A54: 50 (53) | B54: Martin Antic | C54: Värends Hsk | D54: 1705 | F54: 10 | G54: 85.25 | K54: 131 | L54: 151 | M54: 250 | N54: 221 | Q54: 120 | S54: 186 | U54: 130 | X54: 185 | Z54: 152 | AA54: 179 | AB54: 17 | AC54: - | AD54: - | AE54: - | AF54: 53 | AG54: 50 | AH54: 50 | AI54: 50 | AL54: 0 | AM54: 1 | AN54: 2 | AO54: 3 | AP54: 3 | AQ54: 3 | AR54: 2 | AS54: 1 | AT54: 2 | AU54: 2 | AV54: 2 | AW54: 2 | AX54: 2 | AY54: 2 | AZ54: 0 | BA54: 2 | BB54: 2 | BC54: 2 | BD54: 3 | BF54: 2 | BI54: 250 | BJ54: 221 | BK54: 186 | BL54: 185 | BM54: 179 | BN54: 152 | BO54: 151 | BP54: 131 | BQ54: 130 | BR54: 120 | BY54: - | BZ54: - | CA54: - | CB54: 5 | CD54: 1705 | EO54: 50 | EQ54: 50 | ER54: (53)
A55: 51 (52) | B55: Anne-Marie Larsson | C55: Tingsryd | D55: 1683 | F55: 9 | G55: 93.5 | J55: 126 | K55: 185 | L55: 225 | N55: 210 | S55: 177 | T55: 125 | V55: 224 | Z55: 202 | AA55: 209 | AB55: 17 | AC55: - | AD55: - | AE55: - | AF55: 52 | AG55: 51 | AH55: 51 | AI55: 51 | AL55: 0 | AM55: 2 | AN55: 3 | AO55: 3 | AP55: 2 | AQ55: 2 | AR55: 2 | AS55: 1 | AT55: 1 | AU55: 1 | AV55: 2 | AW55: 3 | AX55: 2 | AY55: 2 | AZ55: 1 | BA55: 1 | BB55: 1 | BC55: 2 | BD55: 3 | BF55: 2 | BI55: 225 | BJ55: 224 | BK55: 210 | BL55: 209 | BM55: 202 | BN55: 185 | BO55: 177 | BP55: 126 | BQ55: 125 | BY55: - | BZ55: - | CA55: - | CB55: 6 | CD55: 1683 | EO55: 51 | EQ55: 51 | ER55: (52)
A56: 52 (50) | B56: Anders Karlsson | C56: Värends Hsk | D56: 1667 | F56: 10 | G56: 83.35 | J56: 82 | N56: 233 | O56: 92 | P56: 137 | Q56: 147 | S56: 325 | T56: 193 | U56: 111 | V56: 159 | Z56: 188 | AB56: 17 | AC56: - | AD56: - | AE56: - | AF56: 50 | AG56: 52 | AH56: 52 | AI56: 52 | AL56: 0 | AM56: 2 | AN56: 2 | AO56: 1 | AP56: 1 | AQ56: 2 | AR56: 3 | AS56: 3 | AT56: 3 | AU56: 2 | AV56: 2 | AW56: 3 | AX56: 3 | AY56: 3 | AZ56: 1 | BA56: 1 | BB56: 1 | BC56: 2 | BD56: 2 | BF56: 2 | BI56: 325 | BJ56: 233 | BK56: 193 | BL56: 188 | BM56: 159 | BN56: 147 | BO56: 137 | BP56: 111 | BQ56: 92 | BR56: 82 | BY56: - | BZ56: - | CA56: - | CB56: 5 | CD56: 1667 | EO56: 52 | EQ56: 52 | ER56: (50)
A57: 53 (54) | B57: Lars-Åke Karlsson | C57: Jämjö Hsk | D57: 1614 | F57: 10 | G57: 80.7 | J57: 115 | K57: 140 | L57: 162 | N57: 183 | Q57: 149 | R57: 155 | S57: 141 | V57: 201 | Z57: 206 | AA57: 162 | AB57: 17 | AC57: - | AD57: - | AE57: - | AF57: 54 | AG57: 53 | AH57: 53 | AI57: 53 | AL57: 0 | AM57: 2 | AN57: 3 | AO57: 3 | AP57: 2 | AQ57: 2 | AR57: 2 | AS57: 1 | AT57: 2 | AU57: 3 | AV57: 3 | AW57: 2 | AX57: 1 | AY57: 2 | AZ57: 1 | BA57: 1 | BB57: 1 | BC57: 2 | BD57: 3 | BF57: 2 | BI57: 206 | BJ57: 201 | BK57: 183 | BL57: 162 | BM57: 162 | BN57: 155 | BO57: 149 | BP57: 141 | BQ57: 140 | BR57: 115 | BY57: - | BZ57: - | CA57: - | CB57: 5 | CD57: 1614 | EO57: 53 | EQ57: 53 | ER57: (54)
A58: 54 (48) | B58: Bela Bodi | C58: Växjö | D58: 1588 | F58: 10 | G58: 79.4 | J58: 108 | K58: 165 | L58: 137 | M58: 182 | S58: 148 | T58: 183 | U58: 113 | V58: 178 | X58: 192 | Z58: 182 | AB58: 17 | AC58: - | AD58: - | AE58: - | AF58: 48 | AG58: 54 | AH58: 54 | AI58: 54 | AL58: 0 | AM58: 2 | AN58: 3 | AO58: 3 | AP58: 3 | AQ58: 2 | AR58: 1 | AS58: 1 | AT58: 1 | AU58: 1 | AV58: 2 | AW58: 3 | AX58: 3 | AY58: 3 | AZ58: 1 | BA58: 2 | BB58: 2 | BC58: 2 | BD58: 2 | BF58: 2 | BI58: 192 | BJ58: 183 | BK58: 182 | BL58: 182 | BM58: 178 | BN58: 165 | BO58: 148 | BP58: 137 | BQ58: 113 | BR58: 108 | BY58: - | BZ58: - | CA58: - | CB58: 5 | CD58: 1588 | EO58: 54 | EQ58: 54 | ER58: (48)
A59: 55 (55) | B59: Thomas Dahl | C59: Växjö | D59: 1561 | F59: 12 | G59: 65.04166667 | J59: 119 | K59: 184 | L59: 203 | M59: 120 | N59: 122 | Q59: 127 | S59: 102 | T59: 115 | U59: 102 | V59: 129 | X59: 138 | Z59: 100 | AB59: 17 | AC59: - | AD59: - | AE59: - | AF59: 55 | AG59: 55 | AH59: 55 | AI59: 55 | AL59: 0 | AM59: 2 | AN59: 3 | AO59: 3 | AP59: 3 | AQ59: 3 | AR59: 2 | AS59: 1 | AT59: 2 | AU59: 2 | AV59: 2 | AW59: 3 | AX59: 3 | AY59: 3 | AZ59: 1 | BA59: 2 | BB59: 2 | BC59: 2 | BD59: 2 | BF59: 2 | BI59: 203 | BJ59: 184 | BK59: 138 | BL59: 129 | BM59: 127 | BN59: 122 | BO59: 120 | BP59: 119 | BQ59: 115 | BR59: 102 | BS59: 102 | BT59: 100 | BY59: - | BZ59: - | CA59: - | CB59: 3 | CD59: 1561 | EO59: 55 | EQ59: 55 | ER59: (55)
A60: 56 (57) | B60: Alf Johansson | C60: Värends Hsk | D60: 1525 | F60: 13 | G60: 58.65384615 | J60: 130 | K60: 104 | L60: 75 | M60: 209 | N60: 123 | Q60: 85 | S60: 169 | T60: 110 | U60: 130 | V60: 44 | X60: 161 | Z60: 76 | AA60: 109 | AB60: 17 | AC60: - | AD60: - | AE60: - | AF60: 57 | AG60: 56 | AH60: 56 | AI60: 56 | AL60: 0 | AM60: 2 | AN60: 3 | AO60: 3 | AP60: 3 | AQ60: 3 | AR60: 2 | AS60: 1 | AT60: 2 | AU60: 2 | AV60: 2 | AW60: 3 | AX60: 3 | AY60: 3 | AZ60: 1 | BA60: 2 | BB60: 2 | BC60: 2 | BD60: 3 | BF60: 2 | BI60: 209 | BJ60: 169 | BK60: 161 | BL60: 130 | BM60: 130 | BN60: 123 | BO60: 110 | BP60: 109 | BQ60: 104 | BR60: 85 | BS60: 76 | BT60: 75 | BU60: 44 | BY60: - | BZ60: - | CA60: - | CB60: 2 | CD60: 1525 | EO60: 56 | EQ60: 56 | ER60: (57)
A61: 57 (60) | B61: Gilbert Pettersson | C61: Lanternan | D61: 1507 | F61: 7 | G61: 107.6428571 | J61: 191 | L61: 234 | N61: 207 | R61: 234 | T61: 253 | U61: 95 | Y61: 293 | AB61: 17 | AC61: - | AD61: - | AE61: - | AF61: 60 | AG61: 57 | AH61: 57 | AI61: 57 | AL61: 0 | AM61: 2 | AN61: 2 | AO61: 2 | AP61: 2 | AQ61: 2 | AR61: 2 | AS61: 1 | AT61: 1 | AU61: 2 | AV61: 2 | AW61: 2 | AX61: 3 | AY61: 2 | AZ61: 0 | BA61: 1 | BB61: 2 | BC61: 2 | BD61: 1 | BF61: 2 | BI61: 293 | BJ61: 253 | BK61: 234 | BL61: 234 | BM61: 207 | BN61: 191 | BO61: 95 | BY61: - | BZ61: - | CA61: - | CB61: 8 | CD61: 1507 | EO61: 57 | EQ61: 57 | ER61: (60)
A62: 58 (59) | B62: Lisbeth Nygaard-Karlsson | C62: Tingsryd | D62: 1472 | F62: 6 | G62: 122.6666667 | J62: 214 | K62: 284 | L62: 206 | T62: 308 | V62: 241 | AA62: 219 | AB62: 17 | AC62: - | AD62: - | AE62: - | AF62: 59 | AG62: 58 | AH62: 58 | AI62: 58 | AL62: 0 | AM62: 2 | AN62: 3 | AO62: 3 | AP62: 2 | AQ62: 1 | AR62: 1 | AS62: 1 | AT62: 1 | AU62: 1 | AV62: 1 | AW62: 2 | AX62: 2 | AY62: 2 | AZ62: 1 | BA62: 1 | BB62: 1 | BC62: 1 | BD62: 2 | BF62: 2 | BI62: 308 | BJ62: 284 | BK62: 241 | BL62: 219 | BM62: 214 | BN62: 206 | BY62: - | BZ62: - | CA62: - | CB62: 9 | CD62: 1472 | EO62: 58 | EQ62: 58 | ER62: (59)
A63: 59 (61) | B63: Sandra Widlund | C63: Växjö Hsk | D63: 1434 | F63: 6 | G63: 119.5 | N63: 220 | T63: 176 | U63: 158 | V63: 292 | X63: 237 | Z63: 351 | AB63: 17 | AC63: - | AD63: - | AE63: - | AF63: 61 | AG63: 59 | AH63: 59 | AI63: 59 | AL63: 0 | AM63: 1 | AN63: 1 | AO63: 1 | AP63: 1 | AQ63: 2 | AR63: 2 | AS63: 1 | AT63: 1 | AU63: 1 | AV63: 1 | AW63: 2 | AX63: 3 | AY63: 3 | AZ63: 1 | BA63: 2 | BB63: 2 | BC63: 2 | BD63: 2 | BF63: 2 | BI63: 351 | BJ63: 292 | BK63: 237 | BL63: 220 | BM63: 176 | BN63: 158 | BY63: - | BZ63: - | CA63: - | CB63: 9 | CD63: 1434 | EO63: 59 | EQ63: 59 | ER63: (61)
A64: 60 (56) | B64: Roland Sjöstrand | C64: Hsk Tingzås | D64: 1430 | F64: 11 | G64: 65 | J64: 116 | K64: 118 | L64: 100 | N64: 182 | O64: 100 | P64: 166 | Q64: 120 | S64: 140 | T64: 98 | U64: 135 | Z64: 155 | AB64: 17 | AC64: - | AD64: - | AE64: - | AF64: 56 | AG64: 60 | AH64: 60 | AI64: 60 | AL64: 0 | AM64: 2 | AN64: 3 | AO64: 3 | AP64: 2 | AQ64: 2 | AR64: 3 | AS64: 3 | AT64: 3 | AU64: 2 | AV64: 2 | AW64: 3 | AX64: 3 | AY64: 2 | AZ64: 0 | BA64: 1 | BB64: 1 | BC64: 2 | BD64: 2 | BF64: 2 | BI64: 182 | BJ64: 166 | BK64: 155 | BL64: 140 | BM64: 135 | BN64: 120 | BO64: 118 | BP64: 116 | BQ64: 100 | BR64: 100 | BS64: 98 | BY64: - | BZ64: - | CA64: - | CB64: 4 | CD64: 1430 | EO64: 60 | EQ64: 60 | ER64: (56)
A65: 61 (63) | B65: Mikael Grönskog | C65: Sibbamåla | D65: 1396 | F65: 8 | G65: 87.25 | J65: 132 | N65: 225 | Q65: 169 | T65: 180 | U65: 133 | V65: 145 | Y65: 188 | Z65: 224 | AB65: 17 | AC65: - | AD65: - | AE65: - | AF65: 63 | AG65: 61 | AH65: 61 | AI65: 61 | AL65: 0 | AM65: 2 | AN65: 2 | AO65: 1 | AP65: 1 | AQ65: 2 | AR65: 2 | AS65: 1 | AT65: 2 | AU65: 2 | AV65: 1 | AW65: 2 | AX65: 3 | AY65: 3 | AZ65: 1 | BA65: 1 | BB65: 2 | BC65: 3 | BD65: 2 | BF65: 2 | BI65: 225 | BJ65: 224 | BK65: 188 | BL65: 180 | BM65: 169 | BN65: 145 | BO65: 133 | BP65: 132 | BY65: - | BZ65: - | CA65: - | CB65: 7 | CD65: 1396 | EO65: 61 | EQ65: 61 | ER65: (63)
A66: 62 (64) | B66: Lukas Bern | C66: Dynapac | D66: 1390 | F66: 6 | G66: 115.8333333 | J66: 194 | L66: 216 | Q66: 255 | T66: 207 | U66: 202 | Z66: 316 | AB66: 17 | AC66: - | AD66: - | AE66: - | AF66: 64 | AG66: 62 | AH66: 62 | AI66: 62 | AL66: 0 | AM66: 2 | AN66: 2 | AO66: 2 | AP66: 2 | AQ66: 1 | AR66: 1 | AS66: 1 | AT66: 2 | AU66: 2 | AV66: 1 | AW66: 2 | AX66: 3 | AY66: 2 | AZ66: 0 | BA66: 1 | BB66: 1 | BC66: 2 | BD66: 2 | BF66: 2 | BI66: 316 | BJ66: 255 | BK66: 216 | BL66: 207 | BM66: 202 | BN66: 194 | BY66: - | BZ66: - | CA66: - | CB66: 9 | CD66: 1390 | EO66: 62 | EQ66: 62 | ER66: (64)
A67: 63 (65) | B67: Louise Tollstam | C67: Dynapac | D67: 1384 | F67: 7 | G67: 98.85714286 | J67: 216 | K67: 153 | L67: 270 | N67: 263 | Q67: 166 | R67: 103 | Y67: 213 | AB67: 17 | AC67: - | AD67: - | AE67: - | AF67: 65 | AG67: 63 | AH67: 63 | AI67: 63 | AL67: 0 | AM67: 2 | AN67: 3 | AO67: 3 | AP67: 2 | AQ67: 2 | AR67: 2 | AS67: 1 | AT67: 2 | AU67: 3 | AV67: 2 | AW67: 1 | AX67: 1 | AY67: 1 | AZ67: 0 | BA67: 1 | BB67: 2 | BC67: 2 | BD67: 1 | BF67: 2 | BI67: 270 | BJ67: 263 | BK67: 216 | BL67: 213 | BM67: 166 | BN67: 153 | BO67: 103 | BY67: - | BZ67: - | CA67: - | CB67: 8 | CD67: 1384 | EO67: 63 | EQ67: 63 | ER67: (65)
A68: 64 (66) | B68: Lennart Karlsson | C68: Tingsryd | D68: 1358 | F68: 6 | G68: 113.1666667 | J68: 220 | K68: 261 | L68: 231 | T68: 218 | V68: 190 | AA68: 238 | AB68: 17 | AC68: - | AD68: - | AE68: - | AF68: 66 | AG68: 64 | AH68: 64 | AI68: 64 | AL68: 0 | AM68: 2 | AN68: 3 | AO68: 3 | AP68: 2 | AQ68: 1 | AR68: 1 | AS68: 1 | AT68: 1 | AU68: 1 | AV68: 1 | AW68: 2 | AX68: 2 | AY68: 2 | AZ68: 1 | BA68: 1 | BB68: 1 | BC68: 1 | BD68: 2 | BF68: 2 | BI68: 261 | BJ68: 238 | BK68: 231 | BL68: 220 | BM68: 218 | BN68: 190 | BY68: - | BZ68: - | CA68: - | CB68: 9 | CD68: 1358 | EO68: 64 | EQ68: 64 | ER68: (66)
A69: =IF(BF69>1,AG69&" ("&AF69&")",AG69&" ("&AH69&")") -> 65 (67) | B69: Karin Gullbrand | C69: Värends Hsk | D69: =SUM(BI69:BU69) -> 1295 | F69: =COUNT(I69:AA69) -> 11 | G69: =SUM((CD69)/(F69*2)) -> 58.86363636 | J69: 134 | K69: 187 | L69: 133 | M69: 106 | N69: 91 | O69: 65 | P69: 119 | Q69: 154 | S69: 117 | X69: 103 | AA69: 86 | AB69: =SUM($I$3:$AA$3) -> 17 | AC69: =BY69 -> - | AD69: =BZ69 -> - | AE69: =CA69 -> - | AF69: 67 | AG69: 65 | AH69: =IF(F69>1,ROW(65:65),"-") -> 65 | AI69: 65 | AL69: =COUNT($I$3,I69,H69) -> 0 | AM69: =COUNT($J$3,J69,I69) -> 2 | AN69: =COUNT($K$3,K69,J69) -> 3 | AO69: =COUNT($L$3,L69,K69) -> 3 | AP69: =COUNT($M$3,M69,L69) -> 3 | AQ69: =COUNT($N$3,N69,M69) -> 3 | AR69: =COUNT($O$3,O69,N69) -> 3 | AS69: =COUNT($P$3,P69,O69) -> 3 | AT69: =COUNT($Q$3,Q69,P69) -> 3 | AU69: =COUNT($R$3,R69,Q69) -> 2 | AV69: =COUNT($S$3,S69,R69) -> 2 | AW69: =COUNT($T$3,T69,S69) -> 2 | AX69: =COUNT($U$3,U69,T69) -> 1 | AY69: =COUNT($V$3,V69,U69) -> 1 | AZ69: =COUNT($W$3,W69,V69) -> 0 | BA69: =COUNT($X$3,X69,W69) -> 2 | BB69: =COUNT($Y$3,Y69,X69) -> 2 | BC69: =COUNT($Z$3,Z69,Y69) -> 1 | BD69: =COUNT($AA$3,AA69,Z69) -> 2 | BF69: =IF(H69="x",1,2) -> 2 | BI69: 187 | BJ69: 154 | BK69: 134 | BL69: 133 | BM69: 119 | BN69: 117 | BO69: 106 | BP69: 103 | BQ69: 91 | BR69: 86 | BS69: 65 | BY69: - | BZ69: - | CA69: - | CB69: 4 | CD69: =SUM(BI69:BX69) -> 1295 | EO69: 65 | EQ69: =IF(BF69>=1,AG69,"") -> 65 | ER69: =IF(BF69>1,"("&AF69&")","("&AH69&")") -> (67)
A70: 66 (58) | B70: Christian Balsiger | C70: Värends Hsk | D70: 1280 | F70: 6 | G70: 106.6666667 | K70: 250 | L70: 237 | M70: 173 | Q70: 243 | X70: 217 | Z70: 160 | AB70: 17 | AC70: - | AD70: - | AE70: - | AF70: 58 | AG70: =IF(D70<D69,AI70,AG69) -> 66 | AH70: 66 | AI70: 66 | AL70: 0 | AM70: 1 | AN70: 2 | AO70: 3 | AP70: 3 | AQ70: 2 | AR70: 1 | AS70: 1 | AT70: 2 | AU70: 2 | AV70: 1 | AW70: 1 | AX70: 1 | AY70: 1 | AZ70: 0 | BA70: 2 | BB70: 2 | BC70: 2 | BD70: 2 | BF70: 2 | BI70: =IF($F70>0,LARGE($I70:$AA70,1),"") -> 250 | BJ70: =IF($F70>1,LARGE($I70:$AA70,2),"") -> 243 | BK70: =IF($F70>2,LARGE($I70:$AA70,3),"") -> 237 | BL70: =IF($F70>3,LARGE($I70:$AA70,4),"") -> 217 | BM70: =IF($F70>4,LARGE($I70:$AA70,5),"") -> 173 | BN70: =IF($F70>5,LARGE($I70:$AA70,6),"") -> 160 | BO70: =IF($F70>6,LARGE($I70:$AA70,7),"") ->  | BP70: =IF($F70>7,LARGE($I70:$AA70,8),"") ->  | BQ70: =IF($F70>8,LARGE($I70:$AA70,9),"") ->  | BR70: =IF($F70>9,LARGE($I70:$AA70,10),"") ->  | BS70: =IF($F70>10,LARGE($I70:$AA70,11),"") ->  | BT70: =IF($F70>11,LARGE($I70:$AA70,12),"") ->  | BU70: =IF($F70>12,LARGE($I70:$AA70,13),"") ->  | BV70: =IF($F70>13,LARGE($I70:$AA70,14),"") ->  | BW70: =IF($F70>14,LARGE($I70:$AA70,15),"") ->  | BX70: =IF($F70>15,LARGE($I70:$AA70,16),"") ->  | BY70: =IF($F70>13,LARGE($I70:$AA70,14),"-") -> - | BZ70: =IF($F70>14,LARGE($I70:$AA70,15),"-") -> - | CA70: =IF($F70>15,LARGE($I70:$AA70,16),"-") -> - | CB70: =SUM(AB70-F70)-2 -> 9 | CD70: 1280 | EO70: 66 | EQ70: 66 | ER70: (58)
A71: 67 (71) | B71: Solveig Axelsson | C71: Alvesta | D71: 1278 | F71: 9 | G71: 71 | M71: 128 | O71: 146 | P71: 67 | T71: 149 | U71: 122 | V71: 133 | X71: 183 | Z71: 140 | AA71: 210 | AB71: 17 | AC71: - | AD71: - | AE71: - | AF71: 71 | AG71: 67 | AH71: 67 | AI71: 67 | AL71: 0 | AM71: 1 | AN71: 1 | AO71: 1 | AP71: 2 | AQ71: 2 | AR71: 2 | AS71: 3 | AT71: 2 | AU71: 1 | AV71: 1 | AW71: 2 | AX71: 3 | AY71: 3 | AZ71: 1 | BA71: 2 | BB71: 2 | BC71: 2 | BD71: 3 | BF71: 2 | BI71: 210 | BJ71: 183 | BK71: 149 | BL71: 146 | BM71: 140 | BN71: 133 | BO71: 128 | BP71: 122 | BQ71: 67 | BY71: - | BZ71: - | CA71: - | CB71: 6 | CD71: 1278 | EO71: 67 | EQ71: 67 | ER71: (71)
A72: 68 (68) | B72: Elin Olsson | C72: Dynapac | D72: 1264 | F72: 7 | G72: 90.28571429 | J72: 115 | L72: 173 | N72: 217 | Q72: 148 | R72: 172 | V72: 170 | Y72: 269 | AB72: 17 | AC72: - | AD72: - | AE72: - | AF72: 68 | AG72: 68 | AH72: 68 | AI72: 68 | AL72: 0 | AM72: 2 | AN72: 2 | AO72: 2 | AP72: 2 | AQ72: 2 | AR72: 2 | AS72: 1 | AT72: 2 | AU72: 3 | AV72: 2 | AW72: 1 | AX72: 1 | AY72: 2 | AZ72: 1 | BA72: 1 | BB72: 2 | BC72: 2 | BD72: 1 | BF72: 2 | BI72: 269 | BJ72: 217 | BK72: 173 | BL72: 172 | BM72: 170 | BN72: 148 | BO72: 115 | BY72: - | BZ72: - | CA72: - | CB72: 8 | CD72: 1264 | EO72: 68 | EQ72: 68 | ER72: (68)
A73: 69 (69) | B73: Irené Pettersson | C73: Lanternan | D73: 1252 | F73: 9 | G73: 69.55555556 | J73: 101 | N73: 170 | Q73: 92 | R73: 84 | S73: 143 | T73: 151 | V73: 147 | Y73: 181 | Z73: 183 | AB73: 17 | AC73: - | AD73: - | AE73: - | AF73: 69 | AG73: 69 | AH73: 69 | AI73: 69 | AL73: 0 | AM73: 2 | AN73: 2 | AO73: 1 | AP73: 1 | AQ73: 2 | AR73: 2 | AS73: 1 | AT73: 2 | AU73: 3 | AV73: 3 | AW73: 3 | AX73: 2 | AY73: 2 | AZ73: 1 | BA73: 1 | BB73: 2 | BC73: 3 | BD73: 2 | BF73: 2 | BI73: 183 | BJ73: 181 | BK73: 170 | BL73: 151 | BM73: 147 | BN73: 143 | BO73: 101 | BP73: 92 | BQ73: 84 | BY73: - | BZ73: - | CA73: - | CB73: 6 | CD73: 1252 | EO73: 69 | EQ73: 69 | ER73: (69)
A74: 70 (73) | B74: Daniel Mårtensson | C74: Jämjö Hsk | D74: 1081 | F74: 7 | G74: 77.21428571 | J74: 174 | Q74: 185 | R74: 102 | V74: 158 | Y74: 190 | Z74: 108 | AA74: 164 | AB74: 17 | AC74: - | AD74: - | AE74: - | AF74: 73 | AG74: 70 | AH74: 70 | AI74: 70 | AL74: 0 | AM74: 2 | AN74: 2 | AO74: 1 | AP74: 1 | AQ74: 1 | AR74: 1 | AS74: 1 | AT74: 2 | AU74: 3 | AV74: 2 | AW74: 1 | AX74: 1 | AY74: 2 | AZ74: 1 | BA74: 1 | BB74: 2 | BC74: 3 | BD74: 3 | BF74: 2 | BI74: 190 | BJ74: 185 | BK74: 174 | BL74: 164 | BM74: 158 | BN74: 108 | BO74: 102 | BY74: - | BZ74: - | CA74: - | CB74: 8 | CD74: 1081 | EO74: 70 | EQ74: 70 | ER74: (73)
A75: 71 (62) | B75: Mathias Karlberg | C75: Jämjö Hsk | D75: 1070 | F75: 4 | G75: 133.75 | J75: 200 | K75: 250 | N75: 269 | Y75: 351 | AB75: 17 | AC75: - | AD75: - | AE75: - | AF75: 62 | AG75: 71 | AH75: 71 | AI75: 71 | AL75: 0 | AM75: 2 | AN75: 3 | AO75: 2 | AP75: 1 | AQ75: 2 | AR75: 2 | AS75: 1 | AT75: 1 | AU75: 1 | AV75: 1 | AW75: 1 | AX75: 1 | AY75: 1 | AZ75: 0 | BA75: 1 | BB75: 2 | BC75: 2 | BD75: 1 | BF75: 2 | BI75: 351 | BJ75: 269 | BK75: 250 | BL75: 200 | BY75: - | BZ75: - | CA75: - | CB75: 11 | CD75: 1070 | EO75: 71 | EQ75: 71 | ER75: (62)
A76: 72 (74) | B76: Per-Olof Johansson | C76: Dynapac | D76: 1031 | F76: 5 | G76: 103.1 | K76: 191 | N76: 239 | Q76: 202 | R76: 207 | S76: 192 | AB76: 17 | AC76: - | AD76: - | AE76: - | AF76: 74 | AG76: 72 | AH76: 72 | AI76: 72 | AL76: 0 | AM76: 1 | AN76: 2 | AO76: 2 | AP76: 1 | AQ76: 2 | AR76: 2 | AS76: 1 | AT76: 2 | AU76: 3 | AV76: 3 | AW76: 2 | AX76: 1 | AY76: 1 | AZ76: 0 | BA76: 1 | BB76: 1 | BC76: 1 | BD76: 1 | BF76: 2 | BI76: 239 | BJ76: 207 | BK76: 202 | BL76: 192 | BM76: 191 | BY76: - | BZ76: - | CA76: - | CB76: 10 | CD76: 1031 | EO76: 72 | EQ76: 72 | ER76: (74)
A77: 73 (75) | B77: Christer Brincner | C77: Värends Hsk | D77: 1017 | F77: 6 | G77: 84.75 | M77: 204 | O77: 200 | P77: 156 | S77: 180 | U77: 110 | Z77: 167 | AB77: 17 | AC77: - | AD77: - | AE77: - | AF77: 75 | AG77: 73 | AH77: 73 | AI77: 73 | AL77: 0 | AM77: 1 | AN77: 1 | AO77: 1 | AP77: 2 | AQ77: 2 | AR77: 2 | AS77: 3 | AT77: 2 | AU77: 1 | AV77: 2 | AW77: 2 | AX77: 2 | AY77: 2 | AZ77: 0 | BA77: 1 | BB77: 1 | BC77: 2 | BD77: 2 | BF77: 2 | BI77: 204 | BJ77: 200 | BK77: 180 | BL77: 167 | BM77: 156 | BN77: 110 | BY77: - | BZ77: - | CA77: - | CB77: 9 | CD77: 1017 | EO77: 73 | EQ77: 73 | ER77: (75)
A78: 74 (76) | B78: Fredrik Lundin | C78: Lanternan | D78: 1006 | F78: 4 | G78: 125.75 | J78: 195 | Q78: 188 | Y78: 347 | Z78: 276 | AB78: 17 | AC78: - | AD78: - | AE78: - | AF78: 76 | AG78: 74 | AH78: 74 | AI78: 74 | AL78: 0 | AM78: 2 | AN78: 2 | AO78: 1 | AP78: 1 | AQ78: 1 | AR78: 1 | AS78: 1 | AT78: 2 | AU78: 2 | AV78: 1 | AW78: 1 | AX78: 1 | AY78: 1 | AZ78: 0 | BA78: 1 | BB78: 2 | BC78: 3 | BD78: 2 | BF78: 2 | BI78: 347 | BJ78: 276 | BK78: 195 | BL78: 188 | BY78: - | BZ78: - | CA78: - | CB78: 11 | CD78: 1006 | EO78: 74 | EQ78: 74 | ER78: (76)
A79: 75 (70) | B79: Mattias Olsson | C79: Dynapac | D79: 980 | F79: 4 | G79: 122.5 | K79: 192 | L79: 281 | Q79: 264 | Y79: 243 | AB79: 17 | AC79: - | AD79: - | AE79: - | AF79: 70 | AG79: 75 | AH79: 75 | AI79: 75 | AL79: 0 | AM79: 1 | AN79: 2 | AO79: 3 | AP79: 2 | AQ79: 1 | AR79: 1 | AS79: 1 | AT79: 2 | AU79: 2 | AV79: 1 | AW79: 1 | AX79: 1 | AY79: 1 | AZ79: 0 | BA79: 1 | BB79: 2 | BC79: 2 | BD79: 1 | BF79: 2 | BI79: 281 | BJ79: 264 | BK79: 243 | BL79: 192 | BY79: - | BZ79: - | CA79: - | CB79: 11 | CD79: 980 | EO79: 75 | EQ79: 75 | ER79: (70)
A80: 76 (78) | B80: Ulrika Rydell | C80: Värends Hsk | D80: 928 | F80: 6 | G80: 77.33333333 | K80: 113 | L80: 171 | N80: 162 | T80: 198 | X80: 128 | Z80: 156 | AB80: 17 | AC80: - | AD80: - | AE80: - | AF80: 78 | AG80: 76 | AH80: 76 | AI80: 76 | AL80: 0 | AM80: 1 | AN80: 2 | AO80: 3 | AP80: 2 | AQ80: 2 | AR80: 2 | AS80: 1 | AT80: 1 | AU80: 1 | AV80: 1 | AW80: 2 | AX80: 2 | AY80: 1 | AZ80: 0 | BA80: 2 | BB80: 2 | BC80: 2 | BD80: 2 | BF80: 2 | BI80: 198 | BJ80: 171 | BK80: 162 | BL80: 156 | BM80: 128 | BN80: 113 | BY80: - | BZ80: - | CA80: - | CB80: 9 | CD80: 928 | EO80: 76 | EQ80: 76 | ER80: (78)
A81: 77 (80) | B81: Sebastian Israelsson | C81: Sibbamåla | D81: 895 | F81: 4 | G81: 111.875 | J81: 230 | K81: 179 | Q81: 213 | Y81: 273 | AB81: 17 | AC81: - | AD81: - | AE81: - | AF81: 80 | AG81: 77 | AH81: 77 | AI81: 77 | AL81: 0 | AM81: 2 | AN81: 3 | AO81: 2 | AP81: 1 | AQ81: 1 | AR81: 1 | AS81: 1 | AT81: 2 | AU81: 2 | AV81: 1 | AW81: 1 | AX81: 1 | AY81: 1 | AZ81: 0 | BA81: 1 | BB81: 2 | BC81: 2 | BD81: 1 | BF81: 2 | BI81: 273 | BJ81: 230 | BK81: 213 | BL81: 179 | BY81: - | BZ81: - | CA81: - | CB81: 11 | CD81: 895 | EO81: 77 | EQ81: 77 | ER81: (80)
A82: 78 (93) | B82: Bertil Westergren | C82: Växjö Hsk | D82: 882 | F82: 4 | G82: 110.25 | S82: 203 | T82: 162 | X82: 286 | AA82: 231 | AB82: 17 | AC82: - | AD82: - | AE82: - | AF82: 93 | AG82: 78 | AH82: 78 | AI82: 78 | AL82: 0 | AM82: 1 | AN82: 1 | AO82: 1 | AP82: 1 | AQ82: 1 | AR82: 1 | AS82: 1 | AT82: 1 | AU82: 1 | AV82: 2 | AW82: 3 | AX82: 2 | AY82: 1 | AZ82: 0 | BA82: 2 | BB82: 2 | BC82: 1 | BD82: 2 | BF82: 2 | BI82: 286 | BJ82: 231 | BK82: 203 | BL82: 162 | BY82: - | BZ82: - | CA82: - | CB82: 11 | CD82: 882 | EO82: 78 | EQ82: 78 | ER82: (93)
A83: 79 (72) | B83: Lasse Nilsson | C83: Värends Hsk | D83: 853 | F83: 5 | G83: 85.3 | N83: 199 | S83: 159 | U83: 104 | X83: 243 | Z83: 148 | AB83: 17 | AC83: - | AD83: - | AE83: - | AF83: 72 | AG83: 79 | AH83: 79 | AI83: 79 | AL83: 0 | AM83: 1 | AN83: 1 | AO83: 1 | AP83: 1 | AQ83: 2 | AR83: 2 | AS83: 1 | AT83: 1 | AU83: 1 | AV83: 2 | AW83: 2 | AX83: 2 | AY83: 2 | AZ83: 0 | BA83: 2 | BB83: 2 | BC83: 2 | BD83: 2 | BF83: 2 | BI83: 243 | BJ83: 199 | BK83: 159 | BL83: 148 | BM83: 104 | BY83: - | BZ83: - | CA83: - | CB83: 10 | CD83: 853 | EO83: 79 | EQ83: 79 | ER83: (72)
A84: 80 (83) | B84: Roland Andreasson | C84: Lanternan | D84: 811 | F84: 4 | G84: 101.375 | J84: 199 | N84: 207 | T84: 152 | Y84: 253 | AB84: 17 | AC84: - | AD84: - | AE84: - | AF84: 83 | AG84: 80 | AH84: 80 | AI84: 80 | AL84: 0 | AM84: 2 | AN84: 2 | AO84: 1 | AP84: 1 | AQ84: 2 | AR84: 2 | AS84: 1 | AT84: 1 | AU84: 1 | AV84: 1 | AW84: 2 | AX84: 2 | AY84: 1 | AZ84: 0 | BA84: 1 | BB84: 2 | BC84: 2 | BD84: 1 | BF84: 2 | BI84: 253 | BJ84: 207 | BK84: 199 | BL84: 152 | BY84: - | BZ84: - | CA84: - | CB84: 11 | CD84: 811 | EO84: 80 | EQ84: 80 | ER84: (83)
A85: 81 (89) | B85: Maria Andersson | C85: Team Småland Hsk | D85: 794 | F85: 6 | G85: 66.16666667 | K85: 124 | L85: 200 | Q85: 85 | X85: 47 | Z85: 153 | AA85: 185 | AB85: 17 | AC85: - | AD85: - | AE85: - | AF85: 89 | AG85: 81 | AH85: 81 | AI85: 81 | AL85: 0 | AM85: 1 | AN85: 2 | AO85: 3 | AP85: 2 | AQ85: 1 | AR85: 1 | AS85: 1 | AT85: 2 | AU85: 2 | AV85: 1 | AW85: 1 | AX85: 1 | AY85: 1 | AZ85: 0 | BA85: 2 | BB85: 2 | BC85: 2 | BD85: 3 | BF85: 2 | BI85: 200 | BJ85: 185 | BK85: 153 | BL85: 124 | BM85: 85 | BN85: 47 | BY85: - | BZ85: - | CA85: - | CB85: 9 | CD85: 794 | EO85: 81 | EQ85: 81 | ER85: (89)
A86: 82 (77) | B86: Hannah Karlberg | C86: Jämjö Hsk | D86: 788 | F86: 5 | G86: 78.8 | J86: 110 | K86: 212 | N86: 106 | Q86: 139 | Y86: 221 | AB86: 17 | AC86: - | AD86: - | AE86: - | AF86: 77 | AG86: 82 | AH86: 82 | AI86: 82 | AL86: 0 | AM86: 2 | AN86: 3 | AO86: 2 | AP86: 1 | AQ86: 2 | AR86: 2 | AS86: 1 | AT86: 2 | AU86: 2 | AV86: 1 | AW86: 1 | AX86: 1 | AY86: 1 | AZ86: 0 | BA86: 1 | BB86: 2 | BC86: 2 | BD86: 1 | BF86: 2 | BI86: 221 | BJ86: 212 | BK86: 139 | BL86: 110 | BM86: 106 | BY86: - | BZ86: - | CA86: - | CB86: 10 | CD86: 788 | EO86: 82 | EQ86: 82 | ER86: (77)
A87: 83 (84) | B87: Armin Sisic | C87: Värends Hsk | D87: 784 | F87: 2 | G87: 196 | X87: 412 | Z87: 372 | AB87: 17 | AC87: - | AD87: - | AE87: - | AF87: 84 | AG87: 83 | AH87: 83 | AI87: 83 | AL87: 0 | AM87: 1 | AN87: 1 | AO87: 1 | AP87: 1 | AQ87: 1 | AR87: 1 | AS87: 1 | AT87: 1 | AU87: 1 | AV87: 1 | AW87: 1 | AX87: 1 | AY87: 1 | AZ87: 0 | BA87: 2 | BB87: 2 | BC87: 2 | BD87: 2 | BF87: 2 | BI87: 412 | BJ87: 372 | BY87: - | BZ87: - | CA87: - | CB87: 13 | CD87: 784 | EO87: 83 | EQ87: 83 | ER87: (84)
A88: 84 (94) | B88: Inge Skoglöv | C88: Jämjö Hsk | D88: 782 | F88: 4 | G88: 97.75 | V88: 183 | Y88: 183 | Z88: 259 | AA88: 157 | AB88: 17 | AC88: - | AD88: - | AE88: - | AF88: 94 | AG88: 84 | AH88: 84 | AI88: 84 | AL88: 0 | AM88: 1 | AN88: 1 | AO88: 1 | AP88: 1 | AQ88: 1 | AR88: 1 | AS88: 1 | AT88: 1 | AU88: 1 | AV88: 1 | AW88: 1 | AX88: 1 | AY88: 2 | AZ88: 1 | BA88: 1 | BB88: 2 | BC88: 3 | BD88: 3 | BF88: 2 | BI88: 259 | BJ88: 183 | BK88: 183 | BL88: 157 | BY88: - | BZ88: - | CA88: - | CB88: 11 | CD88: 782 | EO88: 84 | EQ88: 84 | ER88: (94)
A89: 85 (82) | B89: Hans Johansson | C89: Tingsryd | D89: 778 | F89: 3 | G89: 129.6666667 | T89: 305 | V89: 265 | AA89: 208 | AB89: 17 | AC89: - | AD89: - | AE89: - | AF89: 82 | AG89: 85 | AH89: 85 | AI89: 85 | AL89: 0 | AM89: 1 | AN89: 1 | AO89: 1 | AP89: 1 | AQ89: 1 | AR89: 1 | AS89: 1 | AT89: 1 | AU89: 1 | AV89: 1 | AW89: 2 | AX89: 2 | AY89: 2 | AZ89: 1 | BA89: 1 | BB89: 1 | BC89: 1 | BD89: 2 | BF89: 2 | BI89: 305 | BJ89: 265 | BK89: 208 | BY89: - | BZ89: - | CA89: - | CB89: 12 | CD89: 778 | EO89: 85 | EQ89: 85 | ER89: (82)
A90: 86 (86) | B90: Jonas Klarström | C90: Team Småland Hsk | D90: 764 | F90: 6 | G90: 63.66666667 | K90: 129 | L90: 131 | Q90: 76 | X90: 120 | Z90: 173 | AA90: 135 | AB90: 17 | AC90: - | AD90: - | AE90: - | AF90: 86 | AG90: 86 | AH90: 86 | AI90: 86 | AL90: 0 | AM90: 1 | AN90: 2 | AO90: 3 | AP90: 2 | AQ90: 1 | AR90: 1 | AS90: 1 | AT90: 2 | AU90: 2 | AV90: 1 | AW90: 1 | AX90: 1 | AY90: 1 | AZ90: 0 | BA90: 2 | BB90: 2 | BC90: 2 | BD90: 3 | BF90: 2 | BI90: 173 | BJ90: 135 | BK90: 131 | BL90: 129 | BM90: 120 | BN90: 76 | BY90: - | BZ90: - | CA90: - | CB90: 9 | CD90: 764 | EO90: 86 | EQ90: 86 | ER90: (86)
A91: 87 (85) | B91: Lisbeth Blihd | C91: Lanternan | D91: 763 | F91: 5 | G91: 76.3 | J91: 109 | N91: 194 | Q91: 99 | R91: 140 | Y91: 221 | AB91: 17 | AC91: - | AD91: - | AE91: - | AF91: 85 | AG91: 87 | AH91: 87 | AI91: 87 | AL91: 0 | AM91: 2 | AN91: 2 | AO91: 1 | AP91: 1 | AQ91: 2 | AR91: 2 | AS91: 1 | AT91: 2 | AU91: 3 | AV91: 2 | AW91: 1 | AX91: 1 | AY91: 1 | AZ91: 0 | BA91: 1 | BB91: 2 | BC91: 2 | BD91: 1 | BF91: 2 | BI91: 221 | BJ91: 194 | BK91: 140 | BL91: 109 | BM91: 99 | BY91: - | BZ91: - | CA91: - | CB91: 10 | CD91: 763 | EO91: 87 | EQ91: 87 | ER91: (85)
A92: 88 (88) | B92: Morgan Atle | C92: Dynapac | D92: 715 | F92: 5 | G92: 71.5 | J92: 128 | K92: 77 | L92: 167 | R92: 178 | Y92: 165 | AB92: 17 | AC92: - | AD92: - | AE92: - | AF92: 88 | AG92: 88 | AH92: 88 | AI92: 88 | AL92: 0 | AM92: 2 | AN92: 3 | AO92: 3 | AP92: 2 | AQ92: 1 | AR92: 1 | AS92: 1 | AT92: 1 | AU92: 2 | AV92: 2 | AW92: 1 | AX92: 1 | AY92: 1 | AZ92: 0 | BA92: 1 | BB92: 2 | BC92: 2 | BD92: 1 | BF92: 2 | BI92: 178 | BJ92: 167 | BK92: 165 | BL92: 128 | BM92: 77 | BY92: - | BZ92: - | CA92: - | CB92: 10 | CD92: 715 | EO92: 88 | EQ92: 88 | ER92: (88)
A93: 89 (90) | B93: Stefan Olofsson | C93: Korpen Nybro | D93: 698 | F93: 3 | G93: 116.3333333 | M93: 238 | T93: 244 | X93: 216 | AB93: 17 | AC93: - | AD93: - | AE93: - | AF93: 90 | AG93: 89 | AH93: 89 | AI93: 89 | AL93: 0 | AM93: 1 | AN93: 1 | AO93: 1 | AP93: 2 | AQ93: 2 | AR93: 1 | AS93: 1 | AT93: 1 | AU93: 1 | AV93: 1 | AW93: 2 | AX93: 2 | AY93: 1 | AZ93: 0 | BA93: 2 | BB93: 2 | BC93: 1 | BD93: 1 | BF93: 2 | BI93: =IF($F93>0,LARGE($I93:$AA93,1),"") -> 244 | BJ93: =IF($F93>1,LARGE($I93:$AA93,2),"") -> 238 | BK93: =IF($F93>2,LARGE($I93:$AA93,3),"") -> 216 | BL93: =IF($F93>3,LARGE($I93:$AA93,4),"") ->  | BM93: =IF($F93>4,LARGE($I93:$AA93,5),"") ->  | BN93: =IF($F93>5,LARGE($I93:$AA93,6),"") ->  | BO93: =IF($F93>6,LARGE($I93:$AA93,7),"") ->  | BP93: =IF($F93>7,LARGE($I93:$AA93,8),"") ->  | BQ93: =IF($F93>8,LARGE($I93:$AA93,9),"") ->  | BR93: =IF($F93>9,LARGE($I93:$AA93,10),"") ->  | BS93: =IF($F93>10,LARGE($I93:$AA93,11),"") ->  | BT93: =IF($F93>11,LARGE($I93:$AA93,12),"") ->  | BU93: =IF($F93>12,LARGE($I93:$AA93,13),"") ->  | BV93: =IF($F93>13,LARGE($I93:$AA93,14),"") ->  | BW93: =IF($F93>14,LARGE($I93:$AA93,15),"") ->  | BY93: - | BZ93: - | CA93: - | CB93: 12 | CD93: 698 | EO93: 90 | EQ93: 89 | ER93: (90)
A94: 90 (87) | B94: Stephan Gervide | C94: Korpen Nybro | D94: 695 | F94: 4 | G94: 86.875 | J94: 139 | K94: 128 | T94: 228 | AA94: 200 | AB94: 17 | AC94: - | AD94: - | AE94: - | AF94: 87 | AG94: 90 | AH94: 90 | AI94: 90 | AL94: 0 | AM94: 2 | AN94: 3 | AO94: 2 | AP94: 1 | AQ94: 1 | AR94: 1 | AS94: 1 | AT94: 1 | AU94: 1 | AV94: 1 | AW94: 2 | AX94: 2 | AY94: 1 | AZ94: 0 | BA94: 1 | BB94: 1 | BC94: 1 | BD94: 2 | BF94: 2 | BI94: 228 | BJ94: 200 | BK94: 139 | BL94: 128 | BY94: - | BZ94: - | CA94: - | CB94: 11 | CD94: 695 | EO94: 91 | EQ94: 90 | ER94: (87)
A95: 91 (79) | B95: Gunnar Lundbeck | C95: Tingsryd | D95: 693 | F95: 4 | G95: 86.625 | N95: 185 | S95: 196 | T95: 161 | U95: 151 | AB95: 17 | AC95: - | AD95: - | AE95: - | AF95: 79 | AG95: 91 | AH95: 91 | AI95: 91 | AL95: 0 | AM95: 1 | AN95: 1 | AO95: 1 | AP95: 1 | AQ95: 2 | AR95: 2 | AS95: 1 | AT95: 1 | AU95: 1 | AV95: 2 | AW95: 3 | AX95: 3 | AY95: 2 | AZ95: 0 | BA95: 1 | BB95: 1 | BC95: 1 | BD95: 1 | BF95: 2 | BI95: 196 | BJ95: 185 | BK95: 161 | BL95: 151 | BY95: - | BZ95: - | CA95: - | CB95: 11 | CD95: 693 | EO95: 92 | EQ95: 91 | ER95: (79)
A96: 92 (91) | B96: Arne Blihd | C96: Lanternan | D96: 687 | F96: 6 | G96: 57.25 | J96: 107 | N96: 146 | Q96: 82 | R96: 141 | T96: 81 | Y96: 130 | AB96: 17 | AC96: - | AD96: - | AE96: - | AF96: 91 | AG96: 92 | AH96: 92 | AI96: 92 | AL96: 0 | AM96: 2 | AN96: 2 | AO96: 1 | AP96: 1 | AQ96: 2 | AR96: 2 | AS96: 1 | AT96: 2 | AU96: 3 | AV96: 2 | AW96: 2 | AX96: 2 | AY96: 1 | AZ96: 0 | BA96: 1 | BB96: 2 | BC96: 2 | BD96: 1 | BF96: 2 | BI96: 146 | BJ96: 141 | BK96: 130 | BL96: 107 | BM96: 82 | BN96: 81 | BY96: - | BZ96: - | CA96: - | CB96: 9 | CD96: 687 | EO96: 93 | EQ96: 92 | ER96: (91)
A97: 93 (92) | B97: Tommy Svensson | C97: Värends Hsk | D97: 671 | F97: 6 | G97: 55.91666667 | O97: 140 | P97: 136 | S97: 118 | T97: 100 | U97: 59 | Z97: 118 | AB97: 17 | AC97: - | AD97: - | AE97: - | AF97: 92 | AG97: 93 | AH97: 93 | AI97: 93 | AL97: 0 | AM97: 1 | AN97: 1 | AO97: 1 | AP97: 1 | AQ97: 1 | AR97: 2 | AS97: 3 | AT97: 2 | AU97: 1 | AV97: 2 | AW97: 3 | AX97: 3 | AY97: 2 | AZ97: 0 | BA97: 1 | BB97: 1 | BC97: 2 | BD97: 2 | BF97: 2 | BI97: 140 | BJ97: 136 | BK97: 118 | BL97: 118 | BM97: 100 | BN97: 59 | BY97: - | BZ97: - | CA97: - | CB97: 9 | CD97: 671 | EO97: 89 | EQ97: 93 | ER97: (92)
A98: 94 (81) | B98: Mats Mårtensson | C98: Jämjö Hsk | D98: 590 | F98: 3 | G98: 98.33333333 | K98: 173 | L98: 212 | R98: 205 | AB98: 17 | AC98: - | AD98: - | AE98: - | AF98: 81 | AG98: 94 | AH98: 94 | AI98: 94 | AL98: 0 | AM98: 1 | AN98: 2 | AO98: 3 | AP98: 2 | AQ98: 1 | AR98: 1 | AS98: 1 | AT98: 1 | AU98: 2 | AV98: 2 | AW98: 1 | AX98: 1 | AY98: 1 | AZ98: 0 | BA98: 1 | BB98: 1 | BC98: 1 | BD98: 1 | BF98: 2 | BI98: 212 | BJ98: 205 | BK98: 173 | BY98: - | BZ98: - | CA98: - | CB98: 12 | CD98: 590 | EO98: 94 | EQ98: 94 | ER98: (81)
A99: 95 (95) | B99: Jörgen Holmqvist | C99: Lessebo Hsk | D99: 534 | F99: 2 | G99: 133.5 | Q99: 309 | U99: 225 | AB99: 17 | AC99: - | AD99: - | AE99: - | AF99: 95 | AG99: 95 | AH99: 95 | AI99: 95 | AL99: 0 | AM99: 1 | AN99: 1 | AO99: 1 | AP99: 1 | AQ99: 1 | AR99: 1 | AS99: 1 | AT99: 2 | AU99: 2 | AV99: 1 | AW99: 1 | AX99: 2 | AY99: 2 | AZ99: 0 | BA99: 1 | BB99: 1 | BC99: 1 | BD99: 1 | BF99: 2 | BI99: 309 | BJ99: 225 | BY99: - | BZ99: - | CA99: - | CB99: 13 | CD99: 534 | EO99: 95 | EQ99: 95 | ER99: (95)
A100: 95 (95) | B100: Julius Gneupel | C100: Sibbamåla | D100: 534 | F100: 4 | G100: 66.75 | K100: 162 | L100: 166 | Q100: 88 | Y100: 118 | AB100: 17 | AC100: - | AD100: - | AE100: - | AF100: 95 | AG100: 95 | AH100: 96 | AI100: 96 | AL100: 0 | AM100: 1 | AN100: 2 | AO100: 3 | AP100: 2 | AQ100: 1 | AR100: 1 | AS100: 1 | AT100: 2 | AU100: 2 | AV100: 1 | AW100: 1 | AX100: 1 | AY100: 1 | AZ100: 0 | BA100: 1 | BB100: 2 | BC100: 2 | BD100: 1 | BF100: 2 | BI100: 166 | BJ100: 162 | BK100: 118 | BL100: 88 | BY100: - | BZ100: - | CA100: - | CB100: 11 | CD100: 534 | EO100: 96 | EQ100: 95 | ER100: (95)
A101: 97 (97) | B101: Lars Johanesson | C101: Jämjö Hsk | D101: 514 | F101: 4 | G101: 64.25 | N101: 126 | V101: 119 | Y101: 122 | Z101: 147 | AB101: 17 | AC101: - | AD101: - | AE101: - | AF101: 97 | AG101: 97 | AH101: 97 | AI101: 97 | AL101: =COUNT($I$3,I101,H101) -> 0 | AM101: =COUNT($J$3,J101,I101) -> 1 | AN101: =COUNT($K$3,K101,J101) -> 1 | AO101: =COUNT($L$3,L101,K101) -> 1 | AP101: =COUNT($M$3,M101,L101) -> 1 | AQ101: =COUNT($N$3,N101,M101) -> 2 | AR101: =COUNT($O$3,O101,N101) -> 2 | AS101: =COUNT($P$3,P101,O101) -> 1 | AT101: =COUNT($Q$3,Q101,P101) -> 1 | AU101: =COUNT($R$3,R101,Q101) -> 1 | AV101: =COUNT($S$3,S101,R101) -> 1 | AW101: =COUNT($T$3,T101,S101) -> 1 | AX101: =COUNT($U$3,U101,T101) -> 1 | AY101: =COUNT($V$3,V101,U101) -> 2 | AZ101: =COUNT($W$3,W101,V101) -> 1 | BA101: =COUNT($X$3,X101,W101) -> 1 | BB101: =COUNT($Y$3,Y101,X101) -> 2 | BC101: =COUNT($Z$3,Z101,Y101) -> 3 | BD101: =COUNT($AA$3,AA101,Z101) -> 2 | BF101: =IF(H101="x",1,2) -> 2 | BI101: 147 | BJ101: 126 | BK101: 122 | BL101: 119 | BY101: - | BZ101: - | CA101: - | CB101: 11 | CD101: 514 | EO101: 97 | EQ101: =IF(BF101>=1,AG101,"") -> 97 | ER101: (97)
A102: 98 (98) | B102: Christer Lööv | C102: Värends Hsk | D102: 513 | F102: 2 | G102: 128.25 | V102: 223 | Z102: 290 | AB102: 17 | AC102: - | AD102: - | AE102: - | AF102: 98 | AG102: =IF(D102<D101,AI102,AG101) -> 98 | AH102: 98 | AI102: 98 | AL102: 0 | AM102: 1 | AN102: 1 | AO102: 1 | AP102: 1 | AQ102: 1 | AR102: 1 | AS102: 1 | AT102: 1 | AU102: 1 | AV102: 1 | AW102: 1 | AX102: 1 | AY102: 2 | AZ102: 1 | BA102: 1 | BB102: 1 | BC102: 2 | BD102: 2 | BF102: 2 | BI102: 290 | BJ102: 223 | BY102: - | BZ102: - | CA102: - | CB102: 13 | CD102: 513 | EO102: 98 | EQ102: 98 | ER102: (98)
A103: 99 (102) | B103: Marcus Karlsson | C103: Jämjö Hsk | D103: 506 | F103: 3 | G103: 84.33333333 | J103: 101 | Q103: 199 | AA103: 206 | AB103: 17 | AC103: - | AD103: - | AE103: - | AF103: 102 | AG103: 99 | AH103: 99 | AI103: 99 | AL103: 0 | AM103: 2 | AN103: 2 | AO103: 1 | AP103: 1 | AQ103: 1 | AR103: 1 | AS103: 1 | AT103: 2 | AU103: 2 | AV103: 1 | AW103: 1 | AX103: 1 | AY103: 1 | AZ103: 0 | BA103: 1 | BB103: 1 | BC103: 1 | BD103: 2 | BF103: 2 | BI103: 206 | BJ103: 199 | BK103: 101 | BY103: - | BZ103: - | CA103: - | CB103: 12 | CD103: 506 | EO103: 99 | EQ103: 99 | ER103: (102)
A104: 100 (100) | B104: Björn Landberg | C104: Vaxholm Hsk | D104: 502 | F104: 2 | G104: 125.5 | V104: 222 | Z104: 280 | AB104: 17 | AC104: - | AD104: - | AE104: - | AF104: 100 | AG104: 100 | AH104: 100 | AI104: 100 | AL104: 0 | AM104: 1 | AN104: 1 | AO104: 1 | AP104: 1 | AQ104: 1 | AR104: 1 | AS104: 1 | AT104: 1 | AU104: 1 | AV104: 1 | AW104: 1 | AX104: 1 | AY104: 2 | AZ104: 1 | BA104: 1 | BB104: 1 | BC104: 2 | BD104: 2 | BF104: 2 | BI104: 280 | BJ104: 222 | BY104: - | BZ104: - | CA104: - | CB104: 13 | CD104: 502 | EO104: 100 | EQ104: 100 | ER104: (100)
A105: 101 (101) | B105: Rolf Johannesson | C105: Värends Hsk | D105: 499 | F105: 4 | G105: 62.375 | M105: 136 | T105: 88 | U105: 140 | V105: 135 | AB105: 17 | AC105: - | AD105: - | AE105: - | AF105: 101 | AG105: 101 | AH105: 101 | AI105: 101 | AL105: 0 | AM105: 1 | AN105: 1 | AO105: 1 | AP105: 2 | AQ105: 2 | AR105: 1 | AS105: 1 | AT105: 1 | AU105: 1 | AV105: 1 | AW105: 2 | AX105: 3 | AY105: 3 | AZ105: 1 | BA105: 1 | BB105: 1 | BC105: 1 | BD105: 1 | BF105: 2 | BI105: 140 | BJ105: 136 | BK105: 135 | BL105: 88 | BY105: - | BZ105: - | CA105: - | CB105: 11 | CD105: 499 | EO105: 101 | EQ105: 101 | ER105: (101)
A106: 102 (103) | B106: Bo Fransson | C106: Lessebo | D106: 472 | F106: 2 | G106: 118 | Q106: 276 | U106: 196 | AB106: 17 | AC106: - | AD106: - | AE106: - | AF106: 103 | AG106: 102 | AH106: 102 | AI106: 102 | AL106: 0 | AM106: 1 | AN106: 1 | AO106: 1 | AP106: 1 | AQ106: 1 | AR106: 1 | AS106: 1 | AT106: 2 | AU106: 2 | AV106: 1 | AW106: 1 | AX106: 2 | AY106: 2 | AZ106: 0 | BA106: 1 | BB106: 1 | BC106: 1 | BD106: 1 | BF106: 2 | BI106: 276 | BJ106: 196 | BY106: - | BZ106: - | CA106: - | CB106: 13 | CD106: 472 | EO106: 103 | EQ106: 102 | ER106: (103)
A107: 103 (104) | B107: Paul Karlsson | C107: Lessebo | D107: 461 | F107: 2 | G107: 115.25 | Q107: 260 | U107: 201 | AB107: 17 | AC107: - | AD107: - | AE107: - | AF107: 104 | AG107: 103 | AH107: 103 | AI107: 103 | AL107: 0 | AM107: 1 | AN107: 1 | AO107: 1 | AP107: 1 | AQ107: 1 | AR107: 1 | AS107: 1 | AT107: 2 | AU107: 2 | AV107: 1 | AW107: 1 | AX107: 2 | AY107: 2 | AZ107: 0 | BA107: 1 | BB107: 1 | BC107: 1 | BD107: 1 | BF107: 2 | BI107: 260 | BJ107: 201 | BY107: - | BZ107: - | CA107: - | CB107: 13 | CD107: 461 | EO107: 104 | EQ107: 103 | ER107: (104)
A108: 104 (105) | B108: Björn Gabrielsson | C108: Vaxholm Hsk | D108: 453 | F108: 2 | G108: 113.25 | V108: 243 | Z108: 210 | AB108: 17 | AC108: - | AD108: - | AE108: - | AF108: 105 | AG108: 104 | AH108: 104 | AI108: 104 | AL108: 0 | AM108: 1 | AN108: 1 | AO108: 1 | AP108: 1 | AQ108: 1 | AR108: 1 | AS108: 1 | AT108: 1 | AU108: 1 | AV108: 1 | AW108: 1 | AX108: 1 | AY108: 2 | AZ108: 1 | BA108: 1 | BB108: 1 | BC108: 2 | BD108: 2 | BF108: 2 | BI108: 243 | BJ108: 210 | BY108: - | BZ108: - | CA108: - | CB108: 13 | CD108: 453 | EO108: 105 | EQ108: 104 | ER108: (105)
A109: 105 (106) | B109: Kristian Jältsäter | C109: Vaxholm Hsk | D109: 408 | F109: 2 | G109: 102 | V109: 181 | Z109: 227 | AB109: 17 | AC109: - | AD109: - | AE109: - | AF109: 106 | AG109: 105 | AH109: 105 | AI109: 105 | AL109: 0 | AM109: 1 | AN109: 1 | AO109: 1 | AP109: 1 | AQ109: 1 | AR109: 1 | AS109: 1 | AT109: 1 | AU109: 1 | AV109: 1 | AW109: 1 | AX109: 1 | AY109: 2 | AZ109: 1 | BA109: 1 | BB109: 1 | BC109: 2 | BD109: 2 | BF109: 2 | BI109: 227 | BJ109: 181 | BY109: - | BZ109: - | CA109: - | CB109: 13 | CD109: 408 | EO109: 106 | EQ109: 105 | ER109: (106)
A110: 106 (107) | B110: Anders Alriksson | C110: Dynapac | D110: 397 | F110: 2 | G110: 99.25 | J110: 162 | Y110: 235 | AB110: 17 | AC110: - | AD110: - | AE110: - | AF110: 107 | AG110: 106 | AH110: 106 | AI110: 106 | AL110: 0 | AM110: 2 | AN110: 2 | AO110: 1 | AP110: 1 | AQ110: 1 | AR110: 1 | AS110: 1 | AT110: 1 | AU110: 1 | AV110: 1 | AW110: 1 | AX110: 1 | AY110: 1 | AZ110: 0 | BA110: 1 | BB110: 2 | BC110: 2 | BD110: 1 | BF110: 2 | BI110: 235 | BJ110: 162 | BY110: - | BZ110: - | CA110: - | CB110: 13 | CD110: 397 | EO110: 107 | EQ110: 106 | ER110: (107)
A111: 107 (108) | B111: Kjell Åkesson | C111: Lanternan | D111: 388 | F111: 3 | G111: 64.66666667 | J111: 112 | Q111: 146 | R111: 130 | AB111: 17 | AC111: - | AD111: - | AE111: - | AF111: 108 | AG111: 107 | AH111: 107 | AI111: 107 | AL111: 0 | AM111: 2 | AN111: 2 | AO111: 1 | AP111: 1 | AQ111: 1 | AR111: 1 | AS111: 1 | AT111: 2 | AU111: 3 | AV111: 2 | AW111: 1 | AX111: 1 | AY111: 1 | AZ111: 0 | BA111: 1 | BB111: 1 | BC111: 1 | BD111: 1 | BF111: 2 | BI111: 146 | BJ111: 130 | BK111: 112 | BY111: - | BZ111: - | CA111: - | CB111: 12 | CD111: 388 | EO111: 108 | EQ111: 107 | ER111: (108)
A112: 108 (130) | B112: Kerstin Petersen | C112: Växjö Hsk | D112: 379 | F112: 3 | G112: 63.16666667 | S112: 128 | U112: 89 | AA112: 162 | AB112: 17 | AC112: - | AD112: - | AE112: - | AF112: 130 | AG112: 108 | AH112: 108 | AI112: 108 | AL112: 0 | AM112: 1 | AN112: 1 | AO112: 1 | AP112: 1 | AQ112: 1 | AR112: 1 | AS112: 1 | AT112: 1 | AU112: 1 | AV112: 2 | AW112: 2 | AX112: 2 | AY112: 2 | AZ112: 0 | BA112: 1 | BB112: 1 | BC112: 1 | BD112: 2 | BF112: 2 | BI112: 162 | BJ112: 128 | BK112: 89 | BY112: - | BZ112: - | CA112: - | CB112: 12 | CD112: 379 | EO112: 102 | EQ112: 108 | ER112: (130)
A113: 109 (98) | B113: Ulrika Strandahl | C113: Växjö | D113: 377 | F113: 2 | G113: 94.25 | J113: 174 | M113: 203 | AB113: 17 | AC113: - | AD113: - | AE113: - | AF113: 98 | AG113: 109 | AH113: 109 | AI113: 109 | AL113: 0 | AM113: 2 | AN113: 2 | AO113: 1 | AP113: 2 | AQ113: 2 | AR113: 1 | AS113: 1 | AT113: 1 | AU113: 1 | AV113: 1 | AW113: 1 | AX113: 1 | AY113: 1 | AZ113: 0 | BA113: 1 | BB113: 1 | BC113: 1 | BD113: 1 | BF113: 2 | BI113: 203 | BJ113: 174 | BY113: - | BZ113: - | CA113: - | CB113: 13 | CD113: 377 | EO113: 109 | EQ113: 109 | ER113: (98)
A114: 110 (109) | B114: Susanne Simonsson | C114: Lanternan | D114: 374 | F114: 3 | G114: 62.33333333 | J114: 103 | N114: 152 | T114: 119 | AB114: 17 | AC114: - | AD114: - | AE114: - | AF114: 109 | AG114: 110 | AH114: 110 | AI114: 110 | AL114: 0 | AM114: 2 | AN114: 2 | AO114: 1 | AP114: 1 | AQ114: 2 | AR114: 2 | AS114: 1 | AT114: 1 | AU114: 1 | AV114: 1 | AW114: 2 | AX114: 2 | AY114: 1 | AZ114: 0 | BA114: 1 | BB114: 1 | BC114: 1 | BD114: 1 | BF114: 2 | BI114: 152 | BJ114: 119 | BK114: 103 | BY114: - | BZ114: - | CA114: - | CB114: 12 | CD114: 374 | EO114: 110 | EQ114: 110 | ER114: (109)
A115: 111 (111) | B115: Janne Johansson | C115: Tingsryd | D115: 368 | F115: 2 | G115: 92 | N115: 218 | T115: 150 | AB115: 17 | AC115: - | AD115: - | AE115: - | AF115: 111 | AG115: 111 | AH115: 111 | AI115: 111 | AL115: 0 | AM115: 1 | AN115: 1 | AO115: 1 | AP115: 1 | AQ115: 2 | AR115: 2 | AS115: 1 | AT115: 1 | AU115: 1 | AV115: 1 | AW115: 2 | AX115: 2 | AY115: 1 | AZ115: 0 | BA115: 1 | BB115: 1 | BC115: 1 | BD115: 1 | BF115: 2 | BI115: 218 | BJ115: 150 | BY115: - | BZ115: - | CA115: - | CB115: 13 | CD115: 368 | EO115: 116 | EQ115: 111 | ER115: (111)
A116: 112 (151) | B116: Annika Milsten | C116: Tingsryd | D116: 324 | F116: 2 | G116: 81 | Z116: 131 | AA116: 193 | AB116: 17 | AC116: - | AD116: - | AE116: - | AF116: 151 | AG116: 112 | AH116: 112 | AI116: 112 | AL116: 0 | AM116: 1 | AN116: 1 | AO116: 1 | AP116: 1 | AQ116: 1 | AR116: 1 | AS116: 1 | AT116: 1 | AU116: 1 | AV116: 1 | AW116: 1 | AX116: 1 | AY116: 1 | AZ116: 0 | BA116: 1 | BB116: 1 | BC116: 2 | BD116: 3 | BF116: 2 | BI116: 193 | BJ116: 131 | BY116: - | BZ116: - | CA116: - | CB116: 13 | CD116: 324 | EO116: 111 | EQ116: 112 | ER116: (151)
A117: 113 (113) | B117: Michael Karlsson | C117: Hsk Tingzås | D117: 320 | F117: 2 | G117: 80 | Q117: 135 | T117: 185 | AB117: 17 | AC117: - | AD117: - | AE117: - | AF117: 113 | AG117: 113 | AH117: 113 | AI117: 113 | AL117: 0 | AM117: 1 | AN117: 1 | AO117: 1 | AP117: 1 | AQ117: 1 | AR117: 1 | AS117: 1 | AT117: 2 | AU117: 2 | AV117: 1 | AW117: 2 | AX117: 2 | AY117: 1 | AZ117: 0 | BA117: 1 | BB117: 1 | BC117: 1 | BD117: 1 | BF117: 2 | BI117: 185 | BJ117: 135 | BY117: - | BZ117: - | CA117: - | CB117: 13 | CD117: 320 | EO117: 112 | EQ117: 113 | ER117: (113)
A118: 113 (154) | B118: Åke Bjaerregard | C118: Tingsryd | D118: 320 | F118: 2 | G118: 80 | V118: 130 | AA118: 190 | AB118: 17 | AC118: - | AD118: - | AE118: - | AF118: 154 | AG118: 113 | AH118: 114 | AI118: 114 | AL118: 0 | AM118: 1 | AN118: 1 | AO118: 1 | AP118: 1 | AQ118: 1 | AR118: 1 | AS118: 1 | AT118: 1 | AU118: 1 | AV118: 1 | AW118: 1 | AX118: 1 | AY118: 2 | AZ118: 1 | BA118: 1 | BB118: 1 | BC118: 1 | BD118: 2 | BF118: 2 | BI118: 190 | BJ118: 130 | BY118: - | BZ118: - | CA118: - | CB118: 13 | CD118: 320 | EO118: 114 | EQ118: 113 | ER118: (154)
A119: 115 (114) | B119: Mimmi Hansson | C119: Korpen Nybro | D119: 311 | F119: 2 | G119: 77.75 | L119: 166 | M119: 145 | AB119: 17 | AC119: - | AD119: - | AE119: - | AF119: 114 | AG119: 115 | AH119: 115 | AI119: 115 | AL119: 0 | AM119: 1 | AN119: 1 | AO119: 2 | AP119: 3 | AQ119: 2 | AR119: 1 | AS119: 1 | AT119: 1 | AU119: 1 | AV119: 1 | AW119: 1 | AX119: 1 | AY119: 1 | AZ119: 0 | BA119: 1 | BB119: 1 | BC119: 1 | BD119: 1 | BF119: 2 | BI119: 166 | BJ119: 145 | BY119: - | BZ119: - | CA119: - | CB119: 13 | CD119: 311 | EO119: 115 | EQ119: 115 | ER119: (114)
A120: 116 (142) | B120: Joakim Strand | C120: Korpen Åseda | D120: 304 | F120: 2 | G120: 76 | S120: 165 | V120: 139 | AB120: 17 | AC120: - | AD120: - | AE120: - | AF120: 142 | AG120: 116 | AH120: 116 | AI120: 116 | AL120: 0 | AM120: 1 | AN120: 1 | AO120: 1 | AP120: 1 | AQ120: 1 | AR120: 1 | AS120: 1 | AT120: 1 | AU120: 1 | AV120: 2 | AW120: 2 | AX120: 1 | AY120: 2 | AZ120: 1 | BA120: 1 | BB120: 1 | BC120: 1 | BD120: 1 | BF120: 2 | BI120: 165 | BJ120: 139 | BY120: - | BZ120: - | CA120: - | CB120: 13 | CD120: 304 | EO120: 117 | EQ120: 116 | ER120: (142)
A121: 117 (116) | B121: Linnea Gneupel | C121: Sibbamåla | D121: 296 | F121: 2 | G121: 74 | J121: 130 | Q121: 166 | AB121: 17 | AC121: - | AD121: - | AE121: - | AF121: 116 | AG121: 117 | AH121: 117 | AI121: 117 | AL121: 0 | AM121: 2 | AN121: 2 | AO121: 1 | AP121: 1 | AQ121: 1 | AR121: 1 | AS121: 1 | AT121: 2 | AU121: 2 | AV121: 1 | AW121: 1 | AX121: 1 | AY121: 1 | AZ121: 0 | BA121: 1 | BB121: 1 | BC121: 1 | BD121: 1 | BF121: 2 | BI121: 166 | BJ121: 130 | BY121: - | BZ121: - | CA121: - | CB121: 13 | CD121: 296 | EO121: 118 | EQ121: 117 | ER121: (116)
A122: 118 (117) | B122: Günter Irascho | C122: Växjö Hsk | D122: 295 | F122: 2 | G122: 73.75 | K122: 136 | L122: 159 | AB122: 17 | AC122: - | AD122: - | AE122: - | AF122: 117 | AG122: 118 | AH122: 118 | AI122: 118 | AL122: 0 | AM122: 1 | AN122: 2 | AO122: 3 | AP122: 2 | AQ122: 1 | AR122: 1 | AS122: 1 | AT122: 1 | AU122: 1 | AV122: 1 | AW122: 1 | AX122: 1 | AY122: 1 | AZ122: 0 | BA122: 1 | BB122: 1 | BC122: 1 | BD122: 1 | BF122: 2 | BI122: 159 | BJ122: 136 | BY122: - | BZ122: - | CA122: - | CB122: 13 | CD122: 295 | EO122: 119 | EQ122: 118 | ER122: (117)
A123: 119 (110) | B123: Hans Johansson | C123: Korpen Nybro | D123: 285 | F123: 4 | G123: 35.625 | J123: 93 | K123: 64 | L123: 10 | T123: 118 | AB123: 17 | AC123: - | AD123: - | AE123: - | AF123: 110 | AG123: 119 | AH123: 119 | AI123: 119 | AL123: 0 | AM123: 2 | AN123: 3 | AO123: 3 | AP123: 2 | AQ123: 1 | AR123: 1 | AS123: 1 | AT123: 1 | AU123: 1 | AV123: 1 | AW123: 2 | AX123: 2 | AY123: 1 | AZ123: 0 | BA123: 1 | BB123: 1 | BC123: 1 | BD123: 1 | BF123: 2 | BI123: 118 | BJ123: 93 | BK123: 64 | BL123: 10 | BY123: - | BZ123: - | CA123: - | CB123: 11 | CD123: 285 | EO123: 120 | EQ123: 119 | ER123: (110)
A124: 120 (118) | B124: Christina Holmberg | C124: Tingsryd | D124: 271 | F124: 1 | G124: 135.5 | M124: 271 | AB124: 17 | AC124: - | AD124: - | AE124: - | AF124: 118 | AG124: 120 | AH124: - | AI124: 120 | AL124: 0 | AM124: 1 | AN124: 1 | AO124: 1 | AP124: 2 | AQ124: 2 | AR124: 1 | AS124: 1 | AT124: 1 | AU124: 1 | AV124: 1 | AW124: 1 | AX124: 1 | AY124: 1 | AZ124: 0 | BA124: 1 | BB124: 1 | BC124: 1 | BD124: 1 | BF124: 2 | BI124: 271 | BY124: - | BZ124: - | CA124: - | CB124: 14 | CD124: 271 | EO124: 121 | EQ124: 120 | ER124: (118)
A125: 121 (119) | B125: Leif Ahlex | C125: Lessebo | D125: 260 | F125: 1 | G125: 130 | U125: 260 | AB125: 17 | AC125: - | AD125: - | AE125: - | AF125: 119 | AG125: 121 | AH125: - | AI125: 121 | AL125: 0 | AM125: 1 | AN125: 1 | AO125: 1 | AP125: 1 | AQ125: 1 | AR125: 1 | AS125: 1 | AT125: 1 | AU125: 1 | AV125: 1 | AW125: 1 | AX125: 2 | AY125: 2 | AZ125: 0 | BA125: 1 | BB125: 1 | BC125: 1 | BD125: 1 | BF125: 2 | BI125: =IF($F125>0,LARGE($I125:$AA125,1),"") -> 260 | BJ125: =IF($F125>1,LARGE($I125:$AA125,2),"") ->  | BK125: =IF($F125>2,LARGE($I125:$AA125,3),"") ->  | BL125: =IF($F125>3,LARGE($I125:$AA125,4),"") ->  | BM125: =IF($F125>4,LARGE($I125:$AA125,5),"") ->  | BN125: =IF($F125>5,LARGE($I125:$AA125,6),"") ->  | BO125: =IF($F125>6,LARGE($I125:$AA125,7),"") ->  | BP125: =IF($F125>7,LARGE($I125:$AA125,8),"") ->  | BQ125: =IF($F125>8,LARGE($I125:$AA125,9),"") ->  | BR125: =IF($F125>9,LARGE($I125:$AA125,10),"") ->  | BS125: =IF($F125>10,LARGE($I125:$AA125,11),"") ->  | BT125: =IF($F125>11,LARGE($I125:$AA125,12),"") ->  | BU125: =IF($F125>12,LARGE($I125:$AA125,13),"") ->  | BV125: =IF($F125>13,LARGE($I125:$AA125,14),"") ->  | BW125: =IF($F125>14,LARGE($I125:$AA125,15),"") ->  | BY125: - | BZ125: - | CA125: - | CB125: 14 | CD125: 260 | EO125: 127 | EQ125: 121 | ER125: (119)
A126: 122 (120) | B126: Bengt-Erik Holmberg | C126: Tingsryd | D126: 257 | F126: 1 | G126: 128.5 | M126: 257 | AB126: 17 | AC126: - | AD126: - | AE126: - | AF126: 120 | AG126: 122 | AH126: - | AI126: 122 | AL126: 0 | AM126: 1 | AN126: 1 | AO126: 1 | AP126: 2 | AQ126: 2 | AR126: 1 | AS126: 1 | AT126: 1 | AU126: 1 | AV126: 1 | AW126: 1 | AX126: 1 | AY126: 1 | AZ126: 0 | BA126: 1 | BB126: 1 | BC126: 1 | BD126: 1 | BF126: 2 | BI126: 257 | BY126: - | BZ126: - | CA126: - | CB126: 14 | CD126: 257 | EO126: 122 | EQ126: 122 | ER126: (120)
A127: 123 (121) | B127: Ivar Lindstedt | C127: Cementa IF | D127: 245 | F127: 2 | G127: 61.25 | O127: 78 | P127: 167 | AB127: 17 | AC127: - | AD127: - | AE127: - | AF127: 121 | AG127: 123 | AH127: 123 | AI127: 123 | AL127: 0 | AM127: 1 | AN127: 1 | AO127: 1 | AP127: 1 | AQ127: 1 | AR127: 2 | AS127: 3 | AT127: 2 | AU127: 1 | AV127: 1 | AW127: 1 | AX127: 1 | AY127: 1 | AZ127: 0 | BA127: 1 | BB127: 1 | BC127: 1 | BD127: 1 | BF127: 2 | BI127: 167 | BJ127: 78 | BY127: - | BZ127: - | CA127: - | CB127: 13 | CD127: 245 | EO127: 123 | EQ127: 123 | ER127: (121)
A128: 124 (112) | B128: Mikael Bodi | C128: Växjö Hsk | D128: 241 | F128: 2 | G128: 60.25 | J128: 48 | M128: 193 | AB128: 17 | AC128: - | AD128: - | AE128: - | AF128: 112 | AG128: 124 | AH128: 124 | AI128: 124 | AL128: 0 | AM128: 2 | AN128: 2 | AO128: 1 | AP128: 2 | AQ128: 2 | AR128: 1 | AS128: 1 | AT128: 1 | AU128: 1 | AV128: 1 | AW128: 1 | AX128: 1 | AY128: 1 | AZ128: 0 | BA128: 1 | BB128: 1 | BC128: 1 | BD128: 1 | BF128: 2 | BI128: 193 | BJ128: 48 | BY128: - | BZ128: - | CA128: - | CB128: 13 | CD128: 241 | EO128: 124 | EQ128: 124 | ER128: (112)
A129: 125 (122) | B129: Ingegärd Holmqvist | C129: Lanternan | D129: 234 | F129: 2 | G129: 58.5 | J129: 76 | Z129: 158 | AB129: 17 | AC129: - | AD129: - | AE129: - | AF129: 122 | AG129: 125 | AH129: 125 | AI129: 125 | AL129: 0 | AM129: 2 | AN129: 2 | AO129: 1 | AP129: 1 | AQ129: 1 | AR129: 1 | AS129: 1 | AT129: 1 | AU129: 1 | AV129: 1 | AW129: 1 | AX129: 1 | AY129: 1 | AZ129: 0 | BA129: 1 | BB129: 1 | BC129: 2 | BD129: 2 | BF129: 2 | BI129: 158 | BJ129: 76 | BY129: - | BZ129: - | CA129: - | CB129: 13 | CD129: 234 | EO129: 125 | EQ129: 125 | ER129: (122)
A130: 126 (123) | B130: Christer Collin | C130: Livsnjutarna | D130: 230 | F130: 2 | G130: 57.5 | N130: 52 | Q130: 178 | AB130: 17 | AC130: - | AD130: - | AE130: - | AF130: 123 | AG130: 126 | AH130: 126 | AI130: 126 | AL130: 0 | AM130: 1 | AN130: 1 | AO130: 1 | AP130: 1 | AQ130: 2 | AR130: 2 | AS130: 1 | AT130: 2 | AU130: 2 | AV130: 1 | AW130: 1 | AX130: 1 | AY130: 1 | AZ130: 0 | BA130: 1 | BB130: 1 | BC130: 1 | BD130: 1 | BF130: 2 | BI130: 178 | BJ130: 52 | BY130: - | BZ130: - | CA130: - | CB130: 13 | CD130: 230 | EO130: 126 | EQ130: 126 | ER130: (123)
A131: 127 (124) | B131: Solveig Brincner | C131: Värends Hsk | D131: 223 | F131: 4 | G131: 27.875 | M131: 113 | O131: 38 | P131: 10 | T131: 62 | AB131: 17 | AC131: - | AD131: - | AE131: - | AF131: 124 | AG131: 127 | AH131: 127 | AI131: 127 | AL131: 0 | AM131: 1 | AN131: 1 | AO131: 1 | AP131: 2 | AQ131: 2 | AR131: 2 | AS131: 3 | AT131: 2 | AU131: 1 | AV131: 1 | AW131: 2 | AX131: 2 | AY131: 1 | AZ131: 0 | BA131: 1 | BB131: 1 | BC131: 1 | BD131: 1 | BF131: 2 | BI131: 113 | BJ131: 62 | BK131: 38 | BL131: 10 | BY131: - | BZ131: - | CA131: - | CB131: 11 | CD131: 223 | EO131: 113 | EQ131: 127 | ER131: (124)
A132: 128 (125) | B132: Alexander Lundqvist | C132: Alvesta | D132: 222 | F132: 1 | G132: 111 | U132: 222 | AB132: 17 | AC132: - | AD132: - | AE132: - | AF132: 125 | AG132: 128 | AH132: - | AI132: 128 | AL132: 0 | AM132: 1 | AN132: 1 | AO132: 1 | AP132: 1 | AQ132: 1 | AR132: 1 | AS132: 1 | AT132: 1 | AU132: 1 | AV132: 1 | AW132: 1 | AX132: 2 | AY132: 2 | AZ132: 0 | BA132: 1 | BB132: 1 | BC132: 1 | BD132: 1 | BF132: 2 | BI132: 222 | BY132: - | BZ132: - | CA132: - | CB132: 14 | CD132: 222 | EO132: 128 | EQ132: 128 | ER132: (125)
A133: =IF(BF133>1,AG133&" ("&AF133&")",AG133&" ("&AH133&")") -> 129 (126) | B133: Eva Åkesson | C133: Lanternan | D133: =SUM(BI133:BU133) -> 220 | F133: =COUNT(I133:AA133) -> 2 | G133: =SUM((CD133)/(F133*2)) -> 55 | J133: 137 | Q133: 83 | AB133: =SUM($I$3:$AA$3) -> 17 | AC133: =BY133 -> - | AD133: =BZ133 -> - | AE133: =CA133 -> - | AF133: 126 | AG133: 129 | AH133: =IF(F133>1,ROW(129:129),"-") -> 129 | AI133: 129 | AL133: =COUNT($I$3,I133,H133) -> 0 | AM133: =COUNT($J$3,J133,I133) -> 2 | AN133: =COUNT($K$3,K133,J133) -> 2 | AO133: =COUNT($L$3,L133,K133) -> 1 | AP133: =COUNT($M$3,M133,L133) -> 1 | AQ133: =COUNT($N$3,N133,M133) -> 1 | AR133: =COUNT($O$3,O133,N133) -> 1 | AS133: =COUNT($P$3,P133,O133) -> 1 | AT133: =COUNT($Q$3,Q133,P133) -> 2 | AU133: =COUNT($R$3,R133,Q133) -> 2 | AV133: =COUNT($S$3,S133,R133) -> 1 | AW133: =COUNT($T$3,T133,S133) -> 1 | AX133: =COUNT($U$3,U133,T133) -> 1 | AY133: =COUNT($V$3,V133,U133) -> 1 | AZ133: =COUNT($W$3,W133,V133) -> 0 | BA133: =COUNT($X$3,X133,W133) -> 1 | BB133: =COUNT($Y$3,Y133,X133) -> 1 | BC133: =COUNT($Z$3,Z133,Y133) -> 1 | BD133: =COUNT($AA$3,AA133,Z133) -> 1 | BF133: =IF(H133="x",1,2) -> 2 | BI133: 137 | BJ133: 83 | BY133: - | BZ133: - | CA133: - | CB133: 13 | CD133: =SUM(BI133:BX133) -> 220 | EO133: 129 | EQ133: =IF(BF133>=1,AG133,"") -> 129 | ER133: =IF(BF133>1,"("&AF133&")","("&AH133&")") -> (126)
A134: 130 (127) | B134: Magnus Sundqvist | C134: Hsk Tingzås | D134: 219 | F134: 1 | G134: 109.5 | O134: 219 | AB134: 17 | AC134: - | AD134: - | AE134: - | AF134: 127 | AG134: =IF(D134<D133,AI134,AG133) -> 130 | AH134: - | AI134: 130 | AL134: 0 | AM134: 1 | AN134: 1 | AO134: 1 | AP134: 1 | AQ134: 1 | AR134: 2 | AS134: 2 | AT134: 1 | AU134: 1 | AV134: 1 | AW134: 1 | AX134: 1 | AY134: 1 | AZ134: 0 | BA134: 1 | BB134: 1 | BC134: 1 | BD134: 1 | BF134: 2 | BI134: 219 | BX134: =IF($F134>15,LARGE($I134:$AA134,16),"") ->  | BY134: =IF($F134>13,LARGE($I134:$AA134,14),"-") -> - | BZ134: =IF($F134>14,LARGE($I134:$AA134,15),"-") -> - | CA134: =IF($F134>15,LARGE($I134:$AA134,16),"-") -> - | CB134: =SUM(AB134-F134)-2 -> 14 | CD134: 219 | EO134: 130 | EQ134: 130 | ER134: (127)
A135: 131 (128) | B135: Per-Åke Södergren | C135: Cementa IF | D135: 218 | F135: 2 | G135: 54.5 | O135: 129 | P135: 89 | AB135: 17 | AC135: - | AD135: - | AE135: - | AF135: 128 | AG135: 131 | AH135: 131 | AI135: 131 | AL135: 0 | AM135: 1 | AN135: 1 | AO135: 1 | AP135: 1 | AQ135: 1 | AR135: 2 | AS135: 3 | AT135: 2 | AU135: 1 | AV135: 1 | AW135: 1 | AX135: 1 | AY135: 1 | AZ135: 0 | BA135: 1 | BB135: 1 | BC135: 1 | BD135: 1 | BF135: 2 | BI135: 129 | BJ135: 89 | BY135: - | BZ135: - | CA135: - | CB135: 13 | CD135: 218 | EO135: 131 | EQ135: 131 | ER135: (128)
A136: 131 (128) | B136: Andreas Gundersen | C136: Vaxholm Hsk | D136: 218 | F136: 1 | G136: 109 | Z136: 218 | AB136: 17 | AC136: - | AD136: - | AE136: - | AF136: 128 | AG136: 131 | AH136: - | AI136: 132 | AL136: 0 | AM136: 1 | AN136: 1 | AO136: 1 | AP136: 1 | AQ136: 1 | AR136: 1 | AS136: 1 | AT136: 1 | AU136: 1 | AV136: 1 | AW136: 1 | AX136: 1 | AY136: 1 | AZ136: 0 | BA136: 1 | BB136: 1 | BC136: 2 | BD136: 2 | BF136: 2 | BI136: 218 | BY136: - | BZ136: - | CA136: - | CB136: 14 | CD136: 218 | EO136: 132 | EQ136: 131 | ER136: (128)
A137: 133 (131) | B137: Lena Johansson | C137: Tingsryd | D137: 216 | F137: 1 | G137: 108 | V137: 216 | AB137: 17 | AC137: - | AD137: - | AE137: - | AF137: 131 | AG137: 133 | AH137: - | AI137: 133 | AL137: 0 | AM137: 1 | AN137: 1 | AO137: 1 | AP137: 1 | AQ137: 1 | AR137: 1 | AS137: 1 | AT137: 1 | AU137: 1 | AV137: 1 | AW137: 1 | AX137: 1 | AY137: 2 | AZ137: 1 | BA137: 1 | BB137: 1 | BC137: 1 | BD137: 1 | BF137: 2 | BI137: 216 | BY137: - | BZ137: - | CA137: - | CB137: 14 | CD137: 216 | EO137: 133 | EQ137: 133 | ER137: (131)
A138: 134 (-) | B138: Joseph Attenberger | C138: Tingsryd | D138: 212 | F138: 1 | G138: 106 | H138: x | AA138: 212 | AB138: 17 | AC138: - | AD138: - | AE138: - | AF138: 115 | AG138: 134 | AH138: - | AI138: 134 | AL138: 0 | AM138: 1 | AN138: 1 | AO138: 1 | AP138: 1 | AQ138: 1 | AR138: 1 | AS138: 1 | AT138: 1 | AU138: 1 | AV138: 1 | AW138: 1 | AX138: 1 | AY138: 1 | AZ138: 0 | BA138: 1 | BB138: 1 | BC138: 1 | BD138: 2 | BF138: 1 | BI138: 212 | BY138: - | BZ138: - | CA138: - | CB138: 14 | CD138: 212 | EO138: 135 | EQ138: 134 | ER138: (-)
A139: 135 (132) | B139: Linus Israelsson-Ed | C139: Sibbamåla | D139: 206 | F139: 2 | G139: 51.5 | K139: 104 | L139: 102 | AB139: 17 | AC139: - | AD139: - | AE139: - | AF139: 132 | AG139: 135 | AH139: 135 | AI139: 135 | AL139: 0 | AM139: 1 | AN139: 2 | AO139: 3 | AP139: 2 | AQ139: 1 | AR139: 1 | AS139: 1 | AT139: 1 | AU139: 1 | AV139: 1 | AW139: 1 | AX139: 1 | AY139: 1 | AZ139: 0 | BA139: 1 | BB139: 1 | BC139: 1 | BD139: 1 | BF139: 2 | BI139: 104 | BJ139: 102 | BY139: - | BZ139: - | CA139: - | CB139: 13 | CD139: 206 | EO139: 136 | EQ139: 135 | ER139: (132)
A140: 136 (133) | B140: Jerry Viksten | C140: Korpen Åseda | D140: 197 | F140: 1 | G140: 98.5 | S140: 197 | AB140: 17 | AC140: - | AD140: - | AE140: - | AF140: 133 | AG140: 136 | AH140: - | AI140: 136 | AL140: 0 | AM140: 1 | AN140: 1 | AO140: 1 | AP140: 1 | AQ140: 1 | AR140: 1 | AS140: 1 | AT140: 1 | AU140: 1 | AV140: 2 | AW140: 2 | AX140: 1 | AY140: 1 | AZ140: 0 | BA140: 1 | BB140: 1 | BC140: 1 | BD140: 1 | BF140: 2 | BI140: 197 | BY140: - | BZ140: - | CA140: - | CB140: 14 | CD140: 197 | EO140: 137 | EQ140: 136 | ER140: (133)
A141: 137 (134) | B141: Helene Andersson | C141: Carlskrona | D141: 196 | F141: 1 | G141: 98 | Y141: 196 | AB141: 17 | AC141: - | AD141: - | AE141: - | AF141: 134 | AG141: 137 | AH141: - | AI141: 137 | AL141: 0 | AM141: 1 | AN141: 1 | AO141: 1 | AP141: 1 | AQ141: 1 | AR141: 1 | AS141: 1 | AT141: 1 | AU141: 1 | AV141: 1 | AW141: 1 | AX141: 1 | AY141: 1 | AZ141: 0 | BA141: 1 | BB141: 2 | BC141: 2 | BD141: 1 | BF141: 2 | BI141: 196 | BY141: - | BZ141: - | CA141: - | CB141: 14 | CD141: 196 | EO141: 138 | EQ141: 137 | ER141: (134)
A142: 138 (135) | B142: Roger Frost | C142: Sibbamåla | D142: 194 | F142: 1 | G142: 97 | N142: 194 | AB142: 17 | AC142: - | AD142: - | AE142: - | AF142: 135 | AG142: 138 | AH142: - | AI142: 138 | AL142: 0 | AM142: 1 | AN142: 1 | AO142: 1 | AP142: 1 | AQ142: 2 | AR142: 2 | AS142: 1 | AT142: 1 | AU142: 1 | AV142: 1 | AW142: 1 | AX142: 1 | AY142: 1 | AZ142: 0 | BA142: 1 | BB142: 1 | BC142: 1 | BD142: 1 | BF142: 2 | BI142: 194 | BY142: - | BZ142: - | CA142: - | CB142: 14 | CD142: 194 | EO142: 167 | EQ142: 167 | ER142: (135)
A143: 138 (135) | B143: Christer Grahn | C143: Lanternan | D143: 194 | F143: 1 | G143: 97 | Y143: 194 | AB143: 17 | AC143: - | AD143: - | AE143: - | AF143: 135 | AG143: 138 | AH143: - | AI143: 139 | AL143: 0 | AM143: 1 | AN143: 1 | AO143: 1 | AP143: 1 | AQ143: 1 | AR143: 1 | AS143: 1 | AT143: 1 | AU143: 1 | AV143: 1 | AW143: 1 | AX143: 1 | AY143: 1 | AZ143: 0 | BA143: 1 | BB143: 2 | BC143: 2 | BD143: 1 | BF143: 2 | BI143: 194 | BY143: - | BZ143: - | CA143: - | CB143: 14 | CD143: 194 | EO143: 139 | EQ143: =IF(BF143>=1,AG143,"") -> 138 | ER143: (135)
A144: 140 (137) | B144: Göran Olsson | C144: Cementa IF | D144: 193 | F144: 2 | G144: 48.25 | O144: 52 | P144: 141 | AB144: 17 | AC144: - | AD144: - | AE144: - | AF144: 137 | AG144: 140 | AH144: 140 | AI144: 140 | AL144: 0 | AM144: 1 | AN144: 1 | AO144: 1 | AP144: 1 | AQ144: 1 | AR144: 2 | AS144: 3 | AT144: 2 | AU144: 1 | AV144: 1 | AW144: 1 | AX144: 1 | AY144: 1 | AZ144: 0 | BA144: 1 | BB144: 1 | BC144: 1 | BD144: 1 | BF144: 2 | BI144: 141 | BJ144: 52 | BY144: - | BZ144: - | CA144: - | CB144: 13 | CD144: 193 | EO144: 140 | EQ144: =IF(BF144>1,AG144,"") -> 140 | ER144: (137)
A145: 141 (138) | B145: Ulf Jörgensen | C145: Växjö Hsk | D145: 177 | F145: 1 | G145: 88.5 | U145: 177 | AB145: 17 | AC145: - | AD145: - | AE145: - | AF145: 138 | AG145: 141 | AH145: - | AI145: 141 | AL145: 0 | AM145: 1 | AN145: 1 | AO145: 1 | AP145: 1 | AQ145: 1 | AR145: 1 | AS145: 1 | AT145: 1 | AU145: 1 | AV145: 1 | AW145: 1 | AX145: 2 | AY145: 2 | AZ145: 0 | BA145: 1 | BB145: 1 | BC145: 1 | BD145: 1 | BF145: 2 | BI145: 177 | BY145: - | BZ145: - | CA145: - | CB145: 14 | CD145: 177 | EO145: 141 | EQ145: =IF(BF145>=1,AG145,"") -> 141 | ER145: (138)
A146: 142 (139) | B146: Kjell Rydh | C146: Korpen Nybro | D146: 169 | F146: 1 | G146: 84.5 | T146: 169 | AB146: 17 | AC146: - | AD146: - | AE146: - | AF146: 139 | AG146: 142 | AH146: - | AI146: 142 | AL146: 0 | AM146: 1 | AN146: 1 | AO146: 1 | AP146: 1 | AQ146: 1 | AR146: 1 | AS146: 1 | AT146: 1 | AU146: 1 | AV146: 1 | AW146: 2 | AX146: 2 | AY146: 1 | AZ146: 0 | BA146: 1 | BB146: 1 | BC146: 1 | BD146: 1 | BF146: 2 | BI146: 169 | BY146: - | BZ146: - | CA146: - | CB146: 14 | CD146: 169 | EO146: 142 | EQ146: =IF(BF146>=1,AG146,"") -> 142 | ER146: (139)
A147: 143 (140) | B147: Ted Svensson | C147: Cementa IF | D147: 167 | F147: 1 | G147: 83.5 | P147: 167 | AB147: 17 | AC147: - | AD147: - | AE147: - | AF147: 140 | AG147: 143 | AH147: - | AI147: 143 | AL147: 0 | AM147: 1 | AN147: 1 | AO147: 1 | AP147: 1 | AQ147: 1 | AR147: 1 | AS147: 2 | AT147: 2 | AU147: 1 | AV147: 1 | AW147: 1 | AX147: 1 | AY147: 1 | AZ147: 0 | BA147: 1 | BB147: 1 | BC147: 1 | BD147: 1 | BF147: 2 | BI147: 167 | BY147: - | BZ147: - | CA147: - | CB147: 14 | CD147: 167 | EO147: 143 | EQ147: =IF(BF147>=1,AG147,"") -> 143 | ER147: (140)
A148: 144 (141) | B148: Kenneth Andersson | C148: Dynapac | D148: 166 | F148: 1 | G148: 83 | Q148: 166 | AB148: 17 | AC148: - | AD148: - | AE148: - | AF148: 141 | AG148: 144 | AH148: - | AI148: 144 | AL148: 0 | AM148: 1 | AN148: 1 | AO148: 1 | AP148: 1 | AQ148: 1 | AR148: 1 | AS148: 1 | AT148: 2 | AU148: 2 | AV148: 1 | AW148: 1 | AX148: 1 | AY148: 1 | AZ148: 0 | BA148: 1 | BB148: 1 | BC148: 1 | BD148: 1 | BF148: 2 | BI148: 166 | BY148: - | BZ148: - | CA148: - | CB148: 14 | CD148: 166 | EO148: 144 | EQ148: =IF(BF148>=1,AG148,"") -> 144 | ER148: (141)
A149: 145 (143) | B149: Bo Lindekrans | C149: Livsnjutarna | D149: 157 | F149: 2 | G149: 39.25 | N149: 88 | Q149: 69 | AB149: 17 | AC149: - | AD149: - | AE149: - | AF149: 143 | AG149: 145 | AH149: 145 | AI149: 145 | AL149: 0 | AM149: 1 | AN149: 1 | AO149: 1 | AP149: 1 | AQ149: 2 | AR149: 2 | AS149: 1 | AT149: 2 | AU149: 2 | AV149: 1 | AW149: 1 | AX149: 1 | AY149: 1 | AZ149: 0 | BA149: 1 | BB149: 1 | BC149: 1 | BD149: 1 | BF149: 2 | BI149: 88 | BJ149: 69 | BY149: - | BZ149: - | CA149: - | CB149: 13 | CD149: 157 | EO149: 145 | EQ149: =IF(BF149>=1,AG149,"") -> 145 | ER149: (143)
A150: 146 (144) | B150: Towe Danielsson | C150: Korpen Nybro | D150: 156 | F150: 1 | G150: 78 | T150: 156 | AB150: 17 | AC150: - | AD150: - | AE150: - | AF150: 144 | AG150: 146 | AH150: - | AI150: 146 | AL150: 0 | AM150: 1 | AN150: 1 | AO150: 1 | AP150: 1 | AQ150: 1 | AR150: 1 | AS150: 1 | AT150: 1 | AU150: 1 | AV150: 1 | AW150: 2 | AX150: 2 | AY150: 1 | AZ150: 0 | BA150: 1 | BB150: 1 | BC150: 1 | BD150: 1 | BF150: 2 | BI150: 156 | BY150: - | BZ150: - | CA150: - | CB150: 14 | CD150: 156 | EO150: 175 | EQ150: =IF(BF150>1,AG150,"") -> 146 | ER150: (144)
A151: 147 (145) | B151: Krister Nygren | C151: Korpen Åseda | D151: 150 | F151: 1 | G151: 75 | S151: 150 | AB151: 17 | AC151: - | AD151: - | AE151: - | AF151: 145 | AG151: 147 | AH151: - | AI151: 147 | AL151: 0 | AM151: 1 | AN151: 1 | AO151: 1 | AP151: 1 | AQ151: 1 | AR151: 1 | AS151: 1 | AT151: 1 | AU151: 1 | AV151: 2 | AW151: 2 | AX151: 1 | AY151: 1 | AZ151: 0 | BA151: 1 | BB151: 1 | BC151: 1 | BD151: 1 | BF151: 2 | BI151: 150 | BY151: - | BZ151: - | CA151: - | CB151: 14 | CD151: 150 | EO151: 146 | EQ151: =IF(BF151>=1,AG151,"") -> 147 | ER151: (145)
A152: 147 (145) | B152: Bo Trulsson | C152: Korpen Åseda | D152: 150 | F152: 1 | G152: 75 | S152: 150 | AB152: 17 | AC152: - | AD152: - | AE152: - | AF152: 145 | AG152: 147 | AH152: - | AI152: 148 | AL152: 0 | AM152: 1 | AN152: 1 | AO152: 1 | AP152: 1 | AQ152: 1 | AR152: 1 | AS152: 1 | AT152: 1 | AU152: 1 | AV152: 2 | AW152: 2 | AX152: 1 | AY152: 1 | AZ152: 0 | BA152: 1 | BB152: 1 | BC152: 1 | BD152: 1 | BF152: 2 | BI152: 150 | BY152: - | BZ152: - | CA152: - | CB152: 14 | CD152: 150 | EO152: 147 | EQ152: 147 | ER152: (145)
A153: 147 (145) | B153: Carina Andersson | C153: Dynapac | D153: 150 | F153: 1 | G153: 75 | L153: 150 | AB153: 17 | AC153: - | AD153: - | AE153: - | AF153: 145 | AG153: 147 | AH153: - | AI153: 149 | AL153: 0 | AM153: 1 | AN153: 1 | AO153: 2 | AP153: 2 | AQ153: 1 | AR153: 1 | AS153: 1 | AT153: 1 | AU153: 1 | AV153: 1 | AW153: 1 | AX153: 1 | AY153: 1 | AZ153: 0 | BA153: 1 | BB153: 1 | BC153: 1 | BD153: 1 | BF153: 2 | BI153: 150 | BY153: - | BZ153: - | CA153: - | CB153: 14 | CD153: 150 | EO153: 148 | EQ153: 147 | ER153: (145)
A154: 150 (148) | B154: Oscar Stener | C154: Alvesta | D154: 147 | F154: 1 | G154: 73.5 | U154: 147 | AB154: 17 | AC154: - | AD154: - | AE154: - | AF154: 148 | AG154: 150 | AH154: - | AI154: 150 | AL154: 0 | AM154: 1 | AN154: 1 | AO154: 1 | AP154: 1 | AQ154: 1 | AR154: 1 | AS154: 1 | AT154: 1 | AU154: 1 | AV154: 1 | AW154: 1 | AX154: 2 | AY154: 2 | AZ154: 0 | BA154: 1 | BB154: 1 | BC154: 1 | BD154: 1 | BF154: 2 | BI154: 147 | BY154: - | BZ154: - | CA154: - | CB154: 14 | CD154: 147 | EO154: 149 | EQ154: 150 | ER154: (148)
A155: 151 (-) | B155: Christoffer Cederholm | C155: Tingsryd | D155: 141 | F155: 1 | G155: 70.5 | H155: x | AA155: 141 | AB155: 17 | AC155: - | AD155: - | AE155: - | AF155: 149 | AG155: 151 | AH155: - | AI155: 151 | AL155: 0 | AM155: 1 | AN155: 1 | AO155: 1 | AP155: 1 | AQ155: 1 | AR155: 1 | AS155: 1 | AT155: 1 | AU155: 1 | AV155: 1 | AW155: 1 | AX155: 1 | AY155: 1 | AZ155: 0 | BA155: 1 | BB155: 1 | BC155: 1 | BD155: 2 | BF155: 1 | BI155: 141 | BY155: - | BZ155: - | CA155: - | CB155: 14 | CD155: 141 | EO155: 150 | EQ155: 151 | ER155: (-)
A156: 152 (150) | B156: Joakim Hansson | C156: Cementa IF | D156: 136 | F156: 1 | G156: 68 | P156: 136 | AB156: 17 | AC156: - | AD156: - | AE156: - | AF156: 150 | AG156: 152 | AH156: - | AI156: 152 | AL156: 0 | AM156: 1 | AN156: 1 | AO156: 1 | AP156: 1 | AQ156: 1 | AR156: 1 | AS156: 2 | AT156: 2 | AU156: 1 | AV156: 1 | AW156: 1 | AX156: 1 | AY156: 1 | AZ156: 0 | BA156: 1 | BB156: 1 | BC156: 1 | BD156: 1 | BF156: 2 | BI156: 136 | BY156: - | BZ156: - | CA156: - | CB156: 14 | CD156: 136 | EO156: 151 | EQ156: 152 | ER156: (150)
A157: 153 (151) | B157: Inga-Lill Stühr | C157: Lessebo | D157: 131 | F157: 1 | G157: 65.5 | U157: 131 | AB157: 17 | AC157: - | AD157: - | AE157: - | AF157: 151 | AG157: 153 | AH157: - | AI157: 153 | AL157: 0 | AM157: 1 | AN157: 1 | AO157: 1 | AP157: 1 | AQ157: 1 | AR157: 1 | AS157: 1 | AT157: 1 | AU157: 1 | AV157: 1 | AW157: 1 | AX157: 2 | AY157: 2 | AZ157: 0 | BA157: 1 | BB157: 1 | BC157: 1 | BD157: 1 | BF157: 2 | BI157: =IF($F157>0,LARGE($I157:$AA157,1),"") -> 131 | BJ157: =IF($F157>1,LARGE($I157:$AA157,2),"") ->  | BK157: =IF($F157>2,LARGE($I157:$AA157,3),"") ->  | BL157: =IF($F157>3,LARGE($I157:$AA157,4),"") ->  | BM157: =IF($F157>4,LARGE($I157:$AA157,5),"") ->  | BN157: =IF($F157>5,LARGE($I157:$AA157,6),"") ->  | BO157: =IF($F157>6,LARGE($I157:$AA157,7),"") ->  | BP157: =IF($F157>7,LARGE($I157:$AA157,8),"") ->  | BQ157: =IF($F157>8,LARGE($I157:$AA157,9),"") ->  | BR157: =IF($F157>9,LARGE($I157:$AA157,10),"") ->  | BS157: =IF($F157>10,LARGE($I157:$AA157,11),"") ->  | BT157: =IF($F157>11,LARGE($I157:$AA157,12),"") ->  | BU157: =IF($F157>12,LARGE($I157:$AA157,13),"") ->  | BV157: =IF($F157>13,LARGE($I157:$AA157,14),"") ->  | BW157: =IF($F157>14,LARGE($I157:$AA157,15),"") ->  | BY157: - | BZ157: - | CA157: - | CB157: 14 | CD157: 131 | EO157: 184 | EQ157: =IF(BF157>1,AG157,"") -> 153 | ER157: (151)
A158: 153 (151) | B158: Hampus Borgström | C158: Carlskrona | D158: 131 | F158: 1 | G158: 65.5 | Y158: 131 | AB158: 17 | AC158: - | AD158: - | AE158: - | AF158: 151 | AG158: 153 | AH158: - | AI158: 154 | AL158: 0 | AM158: 1 | AN158: 1 | AO158: 1 | AP158: 1 | AQ158: 1 | AR158: 1 | AS158: 1 | AT158: 1 | AU158: 1 | AV158: 1 | AW158: 1 | AX158: 1 | AY158: 1 | AZ158: 0 | BA158: 1 | BB158: 2 | BC158: 2 | BD158: 1 | BF158: 2 | BI158: 131 | BY158: - | BZ158: - | CA158: - | CB158: 14 | CD158: 131 | EO158: 152 | EQ158: =IF(BF158>=1,AG158,"") -> 153 | ER158: (151)
A159: 155 (154) | B159: Britt-Marie Jarl | C159: Livsnjutarna | D159: 130 | F159: 2 | G159: 32.5 | N159: 62 | Q159: 68 | AB159: 17 | AC159: - | AD159: - | AE159: - | AF159: 154 | AG159: 155 | AH159: 155 | AI159: 155 | AL159: 0 | AM159: 1 | AN159: 1 | AO159: 1 | AP159: 1 | AQ159: 2 | AR159: 2 | AS159: 1 | AT159: 2 | AU159: 2 | AV159: 1 | AW159: 1 | AX159: 1 | AY159: 1 | AZ159: 0 | BA159: 1 | BB159: 1 | BC159: 1 | BD159: 1 | BF159: 2 | BI159: 68 | BJ159: 62 | BY159: - | BZ159: - | CA159: - | CB159: 13 | CD159: 130 | EO159: 153 | EQ159: 155 | ER159: (154)
A160: 156 (156) | B160: Tony Borgström | C160: Carlskrona | D160: 128 | F160: 1 | G160: 64 | Y160: 128 | AB160: 17 | AC160: - | AD160: - | AE160: - | AF160: 156 | AG160: 156 | AH160: - | AI160: 156 | AL160: 0 | AM160: 1 | AN160: 1 | AO160: 1 | AP160: 1 | AQ160: 1 | AR160: 1 | AS160: 1 | AT160: 1 | AU160: 1 | AV160: 1 | AW160: 1 | AX160: 1 | AY160: 1 | AZ160: 0 | BA160: 1 | BB160: 2 | BC160: 2 | BD160: 1 | BF160: 2 | BI160: 128 | BY160: - | BZ160: - | CA160: - | CB160: 14 | CD160: 128 | EO160: 154 | EQ160: 156 | ER160: (156)
A161: 157 (157) | B161: Elias Thomsson | C161: Sibbamåla | D161: 126 | F161: 1 | G161: 63 | Q161: 126 | AB161: 17 | AC161: - | AD161: - | AE161: - | AF161: 157 | AG161: 157 | AH161: - | AI161: 157 | AL161: 0 | AM161: 1 | AN161: 1 | AO161: 1 | AP161: 1 | AQ161: 1 | AR161: 1 | AS161: 1 | AT161: 2 | AU161: 2 | AV161: 1 | AW161: 1 | AX161: 1 | AY161: 1 | AZ161: 0 | BA161: 1 | BB161: 1 | BC161: 1 | BD161: 1 | BF161: 2 | BI161: 126 | BY161: - | BZ161: - | CA161: - | CB161: 14 | CD161: 126 | EO161: 156 | EQ161: 157 | ER161: (157)
A162: 158 (158) | B162: Malte Holm | C162: Brf Bågen Moheda | D162: 122 | F162: 1 | G162: 61 | M162: 122 | AB162: 17 | AC162: - | AD162: - | AE162: - | AF162: 158 | AG162: 158 | AH162: - | AI162: 158 | AL162: 0 | AM162: 1 | AN162: 1 | AO162: 1 | AP162: 2 | AQ162: 2 | AR162: 1 | AS162: 1 | AT162: 1 | AU162: 1 | AV162: 1 | AW162: 1 | AX162: 1 | AY162: 1 | AZ162: 0 | BA162: 1 | BB162: 1 | BC162: 1 | BD162: 1 | BF162: 2 | BI162: 122 | BY162: - | BZ162: - | CA162: - | CB162: 14 | CD162: 122 | EO162: 157 | EQ162: 158 | ER162: (158)
A163: 158 (158) | B163: Dag Strauke | C163: Boge Sels | D163: 122 | F163: 1 | G163: 61 | O163: 122 | AB163: 17 | AC163: - | AD163: - | AE163: - | AF163: 158 | AG163: 158 | AH163: - | AI163: 159 | AL163: 0 | AM163: 1 | AN163: 1 | AO163: 1 | AP163: 1 | AQ163: 1 | AR163: 2 | AS163: 2 | AT163: 1 | AU163: 1 | AV163: 1 | AW163: 1 | AX163: 1 | AY163: 1 | AZ163: 0 | BA163: 1 | BB163: 1 | BC163: 1 | BD163: 1 | BF163: 2 | BI163: 122 | BY163: - | BZ163: - | CA163: - | CB163: 14 | CD163: 122 | EO163: 158 | EQ163: 158 | ER163: (158)
A164: 160 (160) | B164: Ros-Marie Johansson | C164: Livsnjutarna | D164: 119 | F164: 2 | G164: 29.75 | N164: 97 | Q164: 22 | AB164: 17 | AC164: - | AD164: - | AE164: - | AF164: 160 | AG164: 160 | AH164: 160 | AI164: 160 | AL164: 0 | AM164: 1 | AN164: 1 | AO164: 1 | AP164: 1 | AQ164: 2 | AR164: 2 | AS164: 1 | AT164: 2 | AU164: 2 | AV164: 1 | AW164: 1 | AX164: 1 | AY164: 1 | AZ164: 0 | BA164: 1 | BB164: 1 | BC164: 1 | BD164: 1 | BF164: 2 | BI164: 97 | BJ164: 22 | BY164: - | BZ164: - | CA164: - | CB164: 13 | CD164: 119 | EO164: 159 | EQ164: 160 | ER164: (160)
A165: 161 (161) | B165: Hans Lundqvist | C165: Alvesta | D165: 117 | F165: 1 | G165: 58.5 | U165: 117 | AB165: 17 | AC165: - | AD165: - | AE165: - | AF165: 161 | AG165: 161 | AH165: - | AI165: 161 | AL165: =COUNT($I$3,I165,H165) -> 0 | AM165: =COUNT($J$3,J165,I165) -> 1 | AN165: =COUNT($K$3,K165,J165) -> 1 | AO165: =COUNT($L$3,L165,K165) -> 1 | AP165: =COUNT($M$3,M165,L165) -> 1 | AQ165: =COUNT($N$3,N165,M165) -> 1 | AR165: =COUNT($O$3,O165,N165) -> 1 | AS165: =COUNT($P$3,P165,O165) -> 1 | AT165: =COUNT($Q$3,Q165,P165) -> 1 | AU165: =COUNT($R$3,R165,Q165) -> 1 | AV165: =COUNT($S$3,S165,R165) -> 1 | AW165: =COUNT($T$3,T165,S165) -> 1 | AX165: =COUNT($U$3,U165,T165) -> 2 | AY165: =COUNT($V$3,V165,U165) -> 2 | AZ165: =COUNT($W$3,W165,V165) -> 0 | BA165: =COUNT($X$3,X165,W165) -> 1 | BB165: =COUNT($Y$3,Y165,X165) -> 1 | BC165: =COUNT($Z$3,Z165,Y165) -> 1 | BD165: =COUNT($AA$3,AA165,Z165) -> 1 | BF165: =IF(H165="x",1,2) -> 2 | BI165: 117 | BY165: - | BZ165: - | CA165: - | CB165: 14 | CD165: 117 | EO165: 206 | EQ165: =IF(BF165>1,AG165,"") -> 161 | ER165: (161)
A166: 162 (162) | B166: Mona Andersson | C166: Carlskrona | D166: 115 | F166: 1 | G166: 57.5 | Y166: 115 | AB166: 17 | AC166: - | AD166: - | AE166: - | AF166: 162 | AG166: =IF(D166<D165,AI166,AG165) -> 162 | AH166: - | AI166: 162 | AL166: 0 | AM166: 1 | AN166: 1 | AO166: 1 | AP166: 1 | AQ166: 1 | AR166: 1 | AS166: 1 | AT166: 1 | AU166: 1 | AV166: 1 | AW166: 1 | AX166: 1 | AY166: 1 | AZ166: 0 | BA166: 1 | BB166: 2 | BC166: 2 | BD166: 1 | BF166: 2 | BI166: 115 | BY166: - | BZ166: - | CA166: - | CB166: 14 | CD166: 115 | EO166: 160 | EQ166: =IF(BF166>=1,AG166,"") -> 162 | ER166: (162)
A167: 163 (163) | B167: Arne Nygren | C167: Korpen Åseda | D167: 109 | F167: 1 | G167: 54.5 | S167: 109 | AB167: 17 | AC167: - | AD167: - | AE167: - | AF167: 163 | AG167: 163 | AH167: - | AI167: 163 | AL167: 0 | AM167: 1 | AN167: 1 | AO167: 1 | AP167: 1 | AQ167: 1 | AR167: 1 | AS167: 1 | AT167: 1 | AU167: 1 | AV167: 2 | AW167: 2 | AX167: 1 | AY167: 1 | AZ167: 0 | BA167: 1 | BB167: 1 | BC167: 1 | BD167: 1 | BF167: 2 | BI167: 109 | BY167: - | BZ167: - | CA167: - | CB167: 14 | CD167: 109 | EO167: 161 | EQ167: 161 | ER167: (163)
A168: 164 (164) | B168: Ola Frost | C168: Sibbamåla | D168: 108 | F168: 1 | G168: 54 | N168: 108 | AB168: 17 | AC168: - | AD168: - | AE168: - | AF168: 164 | AG168: 164 | AH168: - | AI168: 164 | AL168: 0 | AM168: 1 | AN168: 1 | AO168: 1 | AP168: 1 | AQ168: 2 | AR168: 2 | AS168: 1 | AT168: 1 | AU168: 1 | AV168: 1 | AW168: 1 | AX168: 1 | AY168: 1 | AZ168: 0 | BA168: 1 | BB168: 1 | BC168: 1 | BD168: 1 | BF168: 2 | BI168: 108 | BY168: - | BZ168: - | CA168: - | CB168: 14 | CD168: 108 | EO168: 162 | EQ168: =IF(BF168>1,AG168,"") -> 164 | ER168: (164)
A169: 165 (165) | B169: Anna Olausson | C169: Sibbamåla | D169: 96 | F169: 1 | G169: 48 | Q169: 96 | AB169: 17 | AC169: - | AD169: - | AE169: - | AF169: 165 | AG169: 165 | AH169: - | AI169: 165 | AL169: 0 | AM169: 1 | AN169: 1 | AO169: 1 | AP169: 1 | AQ169: 1 | AR169: 1 | AS169: 1 | AT169: 2 | AU169: 2 | AV169: 1 | AW169: 1 | AX169: 1 | AY169: 1 | AZ169: 0 | BA169: 1 | BB169: 1 | BC169: 1 | BD169: 1 | BF169: 2 | BI169: 96 | BY169: - | BZ169: - | CA169: - | CB169: 14 | CD169: 96 | EO169: 163 | EQ169: =IF(BF169>1,AG169,"") -> 165 | ER169: (165)
A170: 166 (166) | B170: Daniel lito Wadman | C170: Vaxholm Hsk | D170: 95 | F170: 1 | G170: 47.5 | V170: 95 | AB170: 17 | AC170: - | AD170: - | AE170: - | AF170: 166 | AG170: 166 | AH170: - | AI170: 166 | AL170: 0 | AM170: 1 | AN170: 1 | AO170: 1 | AP170: 1 | AQ170: 1 | AR170: 1 | AS170: 1 | AT170: 1 | AU170: 1 | AV170: 1 | AW170: 1 | AX170: 1 | AY170: 2 | AZ170: 1 | BA170: 1 | BB170: 1 | BC170: 1 | BD170: 1 | BF170: 2 | BI170: 95 | BY170: - | BZ170: - | CA170: - | CB170: 14 | CD170: 95 | EO170: 164 | EQ170: =IF(BF170>1,AG170,"") -> 166 | ER170: (166)
A171: 167 (-) | B171: Lana Galea | C171: Tingsryd | D171: 84 | F171: 1 | G171: 42 | H171: x | AA171: 84 | AB171: 17 | AC171: - | AD171: - | AE171: - | AF171: 167 | AG171: 167 | AH171: - | AI171: 167 | AL171: 0 | AM171: 1 | AN171: 1 | AO171: 1 | AP171: 1 | AQ171: 1 | AR171: 1 | AS171: 1 | AT171: 1 | AU171: 1 | AV171: 1 | AW171: 1 | AX171: 1 | AY171: 1 | AZ171: 0 | BA171: 1 | BB171: 1 | BC171: 1 | BD171: 2 | BF171: 1 | BI171: 84 | BY171: - | BZ171: - | CA171: - | CB171: 14 | CD171: 84 | EO171: 165 | EQ171: =IF(BF171>1,AG171,"") ->  | ER171: (-)
A172: 168 (168) | B172: Bill Bergman | C172: Boge Sels | D172: 83 | F172: 1 | G172: 41.5 | O172: 83 | AB172: 17 | AC172: - | AD172: - | AE172: - | AF172: 168 | AG172: 168 | AH172: - | AI172: 168 | AL172: 0 | AM172: 1 | AN172: 1 | AO172: 1 | AP172: 1 | AQ172: 1 | AR172: 2 | AS172: 2 | AT172: 1 | AU172: 1 | AV172: 1 | AW172: 1 | AX172: 1 | AY172: 1 | AZ172: 0 | BA172: 1 | BB172: 1 | BC172: 1 | BD172: 1 | BF172: 2 | BI172: 83 | BY172: - | BZ172: - | CA172: - | CB172: 14 | CD172: 83 | EO172: 195 | EQ172: =IF(BF172>1,AG172,"") -> 168 | ER172: (168)
A173: 168 (168) | B173: Göte Andersson | C173: Boge Sels | D173: 83 | F173: 1 | G173: 41.5 | O173: 83 | AB173: 17 | AC173: - | AD173: - | AE173: - | AF173: 168 | AG173: 168 | AH173: - | AI173: 169 | AL173: 0 | AM173: 1 | AN173: 1 | AO173: 1 | AP173: 1 | AQ173: 1 | AR173: 2 | AS173: 2 | AT173: 1 | AU173: 1 | AV173: 1 | AW173: 1 | AX173: 1 | AY173: 1 | AZ173: 0 | BA173: 1 | BB173: 1 | BC173: 1 | BD173: 1 | BF173: 2 | BI173: 83 | BY173: - | BZ173: - | CA173: - | CB173: 14 | CD173: 83 | EO173: 134 | EQ173: =IF(BF173>=1,AG173,"") -> 168 | ER173: (168)
A174: 170 (171) | B174: Patrik Olausson | C174: Sibbamåla | D174: 80 | F174: 1 | G174: 40 | Q174: 80 | AB174: 17 | AC174: - | AD174: - | AE174: - | AF174: 171 | AG174: 170 | AH174: - | AI174: 170 | AL174: 0 | AM174: 1 | AN174: 1 | AO174: 1 | AP174: 1 | AQ174: 1 | AR174: 1 | AS174: 1 | AT174: 2 | AU174: 2 | AV174: 1 | AW174: 1 | AX174: 1 | AY174: 1 | AZ174: 0 | BA174: 1 | BB174: 1 | BC174: 1 | BD174: 1 | BF174: 2 | BI174: 80 | BY174: - | BZ174: - | CA174: - | CB174: 14 | CD174: 80 | EO174: 166 | EQ174: =IF(BF174>1,AG174,"") -> 170 | ER174: (171)
A175: 171 (172) | B175: Niclas Gunnarsson | C175: Sibbamåla | D175: 79 | F175: 1 | G175: 39.5 | N175: 79 | AB175: 17 | AC175: - | AD175: - | AE175: - | AF175: 172 | AG175: 171 | AH175: - | AI175: 171 | AL175: 0 | AM175: 1 | AN175: 1 | AO175: 1 | AP175: 1 | AQ175: 2 | AR175: 2 | AS175: 1 | AT175: 1 | AU175: 1 | AV175: 1 | AW175: 1 | AX175: 1 | AY175: 1 | AZ175: 0 | BA175: 1 | BB175: 1 | BC175: 1 | BD175: 1 | BF175: 2 | BI175: 79 | BY175: - | BZ175: - | CA175: - | CB175: 14 | CD175: 79 | EO175: 168 | EQ175: 168 | ER175: (172)
A176: 172 (173) | B176: Jonathan Holmqvist | C176: Lessebo Hsk | D176: 77 | F176: 1 | G176: 38.5 | Q176: 77 | AB176: 17 | AC176: - | AD176: - | AE176: - | AF176: 173 | AG176: 172 | AH176: - | AI176: 172 | AL176: 0 | AM176: 1 | AN176: 1 | AO176: 1 | AP176: 1 | AQ176: 1 | AR176: 1 | AS176: 1 | AT176: 2 | AU176: 2 | AV176: 1 | AW176: 1 | AX176: 1 | AY176: 1 | AZ176: 0 | BA176: 1 | BB176: 1 | BC176: 1 | BD176: 1 | BF176: 2 | BI176: 77 | BY176: - | BZ176: - | CA176: - | CB176: 14 | CD176: 77 | EO176: 215 | EQ176: =IF(BF176>1,AG176,"") -> 172 | ER176: (173)
A177: 173 (174) | B177: Malin Klarström | C177: Cementa IF | D177: 74 | F177: 1 | G177: 37 | P177: 74 | AB177: 17 | AC177: - | AD177: - | AE177: - | AF177: 174 | AG177: 173 | AH177: - | AI177: 173 | AL177: 0 | AM177: 1 | AN177: 1 | AO177: 1 | AP177: 1 | AQ177: 1 | AR177: 1 | AS177: 2 | AT177: 2 | AU177: 1 | AV177: 1 | AW177: 1 | AX177: 1 | AY177: 1 | AZ177: 0 | BA177: 1 | BB177: 1 | BC177: 1 | BD177: 1 | BF177: 2 | BI177: 74 | BY177: - | BZ177: - | CA177: - | CB177: 14 | CD177: 74 | EO177: 188 | EQ177: 188 | ER177: (174)
A178: 174 (175) | B178: Therese Frost | C178: Sibbamåla | D178: 67 | F178: 1 | G178: 33.5 | N178: 67 | AB178: 17 | AC178: - | AD178: - | AE178: - | AF178: 175 | AG178: 174 | AH178: - | AI178: 174 | AL178: 0 | AM178: 1 | AN178: 1 | AO178: 1 | AP178: 1 | AQ178: 2 | AR178: 2 | AS178: 1 | AT178: 1 | AU178: 1 | AV178: 1 | AW178: 1 | AX178: 1 | AY178: 1 | AZ178: 0 | BA178: 1 | BB178: 1 | BC178: 1 | BD178: 1 | BF178: 2 | BI178: 67 | BY178: - | BZ178: - | CA178: - | CB178: 14 | CD178: 67 | EO178: 170 | EQ178: =IF(BF178>1,AG178,"") -> 174 | ER178: (175)
A179: 175 (176) | B179: Malin Holmander | C179: Jämjö Hsk | D179: 54 | F179: 1 | G179: 27 | R179: 54 | AB179: 17 | AC179: - | AD179: - | AE179: - | AF179: 176 | AG179: 175 | AH179: - | AI179: 175 | AL179: 0 | AM179: 1 | AN179: 1 | AO179: 1 | AP179: 1 | AQ179: 1 | AR179: 1 | AS179: 1 | AT179: 1 | AU179: 2 | AV179: 2 | AW179: 1 | AX179: 1 | AY179: 1 | AZ179: 0 | BA179: 1 | BB179: 1 | BC179: 1 | BD179: 1 | BF179: 2 | BI179: 54 | BY179: - | BZ179: - | CA179: - | CB179: 14 | CD179: 54 | EO179: 171 | EQ179: 175 | ER179: (176)
A180: 176 (177) | B180: Amanda Olausson | C180: Sibbamåla | D180: 46 | F180: 1 | G180: 23 | Q180: 46 | AB180: 17 | AC180: - | AD180: - | AE180: - | AF180: 177 | AG180: 176 | AH180: - | AI180: 176 | AL180: 0 | AM180: 1 | AN180: 1 | AO180: 1 | AP180: 1 | AQ180: 1 | AR180: 1 | AS180: 1 | AT180: 2 | AU180: 2 | AV180: 1 | AW180: 1 | AX180: 1 | AY180: 1 | AZ180: 0 | BA180: 1 | BB180: 1 | BC180: 1 | BD180: 1 | BF180: 2 | BI180: 46 | BY180: - | BZ180: - | CA180: - | CB180: 14 | CD180: 46 | EO180: 172 | EQ180: 176 | ER180: (177)
A181: 177 (178) | B181: Göran Brincner | C181: Värends Hsk | D181: 40 | F181: 2 | G181: 10 | O181: 33 | P181: 7 | AB181: 17 | AC181: - | AD181: - | AE181: - | AF181: 178 | AG181: 177 | AH181: 177 | AI181: 177 | AL181: 0 | AM181: 1 | AN181: 1 | AO181: 1 | AP181: 1 | AQ181: 1 | AR181: 2 | AS181: 3 | AT181: 2 | AU181: 1 | AV181: 1 | AW181: 1 | AX181: 1 | AY181: 1 | AZ181: 0 | BA181: 1 | BB181: 1 | BC181: 1 | BD181: 1 | BF181: 2 | BI181: 33 | BJ181: 7 | BY181: - | BZ181: - | CA181: - | CB181: 13 | CD181: 40 | EO181: 173 | EQ181: 177 | ER181: (178)
A182: 177 (178) | B182: Ella Olausson | C182: Sibbamåla | D182: 40 | F182: 1 | G182: 20 | Q182: 40 | AB182: 17 | AC182: - | AD182: - | AE182: - | AF182: 178 | AG182: 177 | AH182: - | AI182: 178 | AL182: 0 | AM182: 1 | AN182: 1 | AO182: 1 | AP182: 1 | AQ182: 1 | AR182: 1 | AS182: 1 | AT182: 2 | AU182: 2 | AV182: 1 | AW182: 1 | AX182: 1 | AY182: 1 | AZ182: 0 | BA182: 1 | BB182: 1 | BC182: 1 | BD182: 1 | BF182: 2 | BI182: 40 | BY182: - | BZ182: - | CA182: - | CB182: 14 | CD182: 40 | EO182: 174 | EQ182: 177 | ER182: (178)
A183: 179 (180) | B183: Susanne Bergman | C183: Boge Sels | D183: 36 | F183: 1 | G183: 18 | O183: 36 | AB183: 17 | AC183: - | AD183: - | AE183: - | AF183: 180 | AG183: 179 | AH183: - | AI183: 179 | AL183: 0 | AM183: 1 | AN183: 1 | AO183: 1 | AP183: 1 | AQ183: 1 | AR183: 2 | AS183: 2 | AT183: 1 | AU183: 1 | AV183: 1 | AW183: 1 | AX183: 1 | AY183: 1 | AZ183: 0 | BA183: 1 | BB183: 1 | BC183: 1 | BD183: 1 | BF183: 2 | BI183: 36 | BY183: - | BZ183: - | CA183: - | CB183: 14 | CD183: 36 | EO183: 182 | EQ183: 179 | ER183: (180)
A184: 180 (170) | D184: 0 | F184: 0 | AB184: 17 | AC184: - | AD184: - | AE184: - | AF184: 170 | AG184: 180 | AH184: - | AI184: 180 | AL184: 0 | AM184: 1 | AN184: 1 | AO184: 1 | AP184: 1 | AQ184: 1 | AR184: 1 | AS184: 1 | AT184: 1 | AU184: 1 | AV184: 1 | AW184: 1 | AX184: 1 | AY184: 1 | AZ184: 0 | BA184: 1 | BB184: 1 | BC184: 1 | BD184: 1 | BF184: 2 | BY184: - | BZ184: - | CA184: - | CB184: 15 | CD184: 0 | EO184: 176 | EQ184: 180 | ER184: (170)
A185: 180 (181) | D185: 0 | F185: 0 | AB185: 17 | AC185: - | AD185: - | AE185: - | AF185: 181 | AG185: 180 | AH185: - | AI185: 181 | AL185: 0 | AM185: 1 | AN185: 1 | AO185: 1 | AP185: 1 | AQ185: 1 | AR185: 1 | AS185: 1 | AT185: 1 | AU185: 1 | AV185: 1 | AW185: 1 | AX185: 1 | AY185: 1 | AZ185: 0 | BA185: 1 | BB185: 1 | BC185: 1 | BD185: 1 | BF185: 2 | BY185: - | BZ185: - | CA185: - | CB185: 15 | CD185: 0 | EO185: 202 | EQ185: 180 | ER185: (181)
A186: 180 (181) | D186: 0 | F186: 0 | AB186: 17 | AC186: - | AD186: - | AE186: - | AF186: 181 | AG186: 180 | AH186: - | AI186: 182 | AL186: 0 | AM186: 1 | AN186: 1 | AO186: 1 | AP186: 1 | AQ186: 1 | AR186: 1 | AS186: 1 | AT186: 1 | AU186: 1 | AV186: 1 | AW186: 1 | AX186: 1 | AY186: 1 | AZ186: 0 | BA186: 1 | BB186: 1 | BC186: 1 | BD186: 1 | BF186: 2 | BY186: - | BZ186: - | CA186: - | CB186: 15 | CD186: 0 | EO186: 177 | EQ186: 177 | ER186: (181)
A187: 180 (181) | D187: 0 | F187: 0 | AB187: 17 | AC187: - | AD187: - | AE187: - | AF187: 181 | AG187: 180 | AH187: - | AI187: 183 | AL187: 0 | AM187: 1 | AN187: 1 | AO187: 1 | AP187: 1 | AQ187: 1 | AR187: 1 | AS187: 1 | AT187: 1 | AU187: 1 | AV187: 1 | AW187: 1 | AX187: 1 | AY187: 1 | AZ187: 0 | BA187: 1 | BB187: 1 | BC187: 1 | BD187: 1 | BF187: 2 | BY187: - | BZ187: - | CA187: - | CB187: 15 | CD187: 0 | EO187: 178 | EQ187: =IF(BF187>1,AG187,"") -> 180 | ER187: (181)
A188: 180 (181) | D188: 0 | F188: 0 | AB188: 17 | AC188: - | AD188: - | AE188: - | AF188: 181 | AG188: 180 | AH188: - | AI188: 184 | AL188: 0 | AM188: 1 | AN188: 1 | AO188: 1 | AP188: 1 | AQ188: 1 | AR188: 1 | AS188: 1 | AT188: 1 | AU188: 1 | AV188: 1 | AW188: 1 | AX188: 1 | AY188: 1 | AZ188: 0 | BA188: 1 | BB188: 1 | BC188: 1 | BD188: 1 | BF188: 2 | BY188: - | BZ188: - | CA188: - | CB188: 15 | CD188: 0 | EO188: 179 | EQ188: 179 | ER188: (181)
A189: 180 (181) | D189: 0 | F189: 0 | AB189: 17 | AC189: - | AD189: - | AE189: - | AF189: 181 | AG189: 180 | AH189: - | AI189: 185 | AL189: 0 | AM189: 1 | AN189: 1 | AO189: 1 | AP189: 1 | AQ189: 1 | AR189: 1 | AS189: 1 | AT189: 1 | AU189: 1 | AV189: 1 | AW189: 1 | AX189: 1 | AY189: 1 | AZ189: 0 | BA189: 1 | BB189: 1 | BC189: 1 | BD189: 1 | BF189: 2 | BY189: - | BZ189: - | CA189: - | CB189: 15 | CD189: 0 | EO189: 180 | EQ189: =IF(BF189>1,AG189,"") -> 180 | ER189: (181)
A190: 180 (181) | D190: 0 | F190: 0 | AB190: 17 | AC190: - | AD190: - | AE190: - | AF190: 181 | AG190: 180 | AH190: - | AI190: 186 | AL190: 0 | AM190: 1 | AN190: 1 | AO190: 1 | AP190: 1 | AQ190: 1 | AR190: 1 | AS190: 1 | AT190: 1 | AU190: 1 | AV190: 1 | AW190: 1 | AX190: 1 | AY190: 1 | AZ190: 0 | BA190: 1 | BB190: 1 | BC190: 1 | BD190: 1 | BF190: 2 | BY190: - | BZ190: - | CA190: - | CB190: 15 | CD190: 0 | EO190: 181 | EQ190: =IF(BF190>1,AG190,"") -> 180 | ER190: (181)
A191: 180 (181) | D191: 0 | F191: 0 | AB191: 17 | AC191: - | AD191: - | AE191: - | AF191: 181 | AG191: 180 | AH191: - | AI191: 187 | AL191: 0 | AM191: 1 | AN191: 1 | AO191: 1 | AP191: 1 | AQ191: 1 | AR191: 1 | AS191: 1 | AT191: 1 | AU191: 1 | AV191: 1 | AW191: 1 | AX191: 1 | AY191: 1 | AZ191: 0 | BA191: 1 | BB191: 1 | BC191: 1 | BD191: 1 | BF191: 2 | BY191: - | BZ191: - | CA191: - | CB191: 15 | CD191: 0 | EO191: 155 | EQ191: =IF(BF191>=1,AG191,"") -> 180 | ER191: (181)
A192: 180 (181) | D192: 0 | F192: 0 | AB192: 17 | AC192: - | AD192: - | AE192: - | AF192: 181 | AG192: 180 | AH192: - | AI192: 188 | AL192: 0 | AM192: 1 | AN192: 1 | AO192: 1 | AP192: 1 | AQ192: 1 | AR192: 1 | AS192: 1 | AT192: 1 | AU192: 1 | AV192: 1 | AW192: 1 | AX192: 1 | AY192: 1 | AZ192: 0 | BA192: 1 | BB192: 1 | BC192: 1 | BD192: 1 | BF192: 2 | BY192: - | BZ192: - | CA192: - | CB192: 15 | CD192: 0 | EO192: 183 | EQ192: =IF(BF192>1,AG192,"") -> 180 | ER192: (181)
A193: 180 (181) | D193: 0 | F193: 0 | AB193: 17 | AC193: - | AD193: - | AE193: - | AF193: 181 | AG193: 180 | AH193: - | AI193: 189 | AL193: 0 | AM193: 1 | AN193: 1 | AO193: 1 | AP193: 1 | AQ193: 1 | AR193: 1 | AS193: 1 | AT193: 1 | AU193: 1 | AV193: 1 | AW193: 1 | AX193: 1 | AY193: 1 | AZ193: 0 | BA193: 1 | BB193: 1 | BC193: 1 | BD193: 1 | BF193: 2 | BY193: - | BZ193: - | CA193: - | CB193: 15 | CD193: 0 | EO193: 185 | EQ193: 180 | ER193: (181)
A194: 180 (181) | D194: 0 | F194: 0 | AB194: 17 | AC194: - | AD194: - | AE194: - | AF194: 181 | AG194: 180 | AH194: - | AI194: 190 | AL194: 0 | AM194: 1 | AN194: 1 | AO194: 1 | AP194: 1 | AQ194: 1 | AR194: 1 | AS194: 1 | AT194: 1 | AU194: 1 | AV194: 1 | AW194: 1 | AX194: 1 | AY194: 1 | AZ194: 0 | BA194: 1 | BB194: 1 | BC194: 1 | BD194: 1 | BF194: 2 | BY194: - | BZ194: - | CA194: - | CB194: 15 | CD194: 0 | EO194: 186 | EQ194: 180 | ER194: (181)
A195: 180 (181) | D195: 0 | F195: 0 | AB195: 17 | AC195: - | AD195: - | AE195: - | AF195: 181 | AG195: 180 | AH195: - | AI195: 191 | AL195: 0 | AM195: 1 | AN195: 1 | AO195: 1 | AP195: 1 | AQ195: 1 | AR195: 1 | AS195: 1 | AT195: 1 | AU195: 1 | AV195: 1 | AW195: 1 | AX195: 1 | AY195: 1 | AZ195: 0 | BA195: 1 | BB195: 1 | BC195: 1 | BD195: 1 | BF195: 2 | BY195: - | BZ195: - | CA195: - | CB195: 15 | CD195: 0 | EO195: 187 | EQ195: 180 | ER195: (181)
A196: 180 (181) | D196: 0 | F196: 0 | AB196: 17 | AC196: - | AD196: - | AE196: - | AF196: 181 | AG196: 180 | AH196: - | AI196: 192 | AL196: 0 | AM196: 1 | AN196: 1 | AO196: 1 | AP196: 1 | AQ196: 1 | AR196: 1 | AS196: 1 | AT196: 1 | AU196: 1 | AV196: 1 | AW196: 1 | AX196: 1 | AY196: 1 | AZ196: 0 | BA196: 1 | BB196: 1 | BC196: 1 | BD196: 1 | BF196: 2 | BY196: - | BZ196: - | CA196: - | CB196: 15 | CD196: 0 | EO196: 205 | EQ196: 180 | ER196: (181)
A197: =IF(BF197>1,AG197&" ("&AF197&")",AG197&" ("&AH197&")") -> 180 (181) | D197: =SUM(BI197:BU197) -> 0 | F197: =COUNT(I197:AA197) -> 0 | G197: =SUM((CD197)/(F197*2)) ->  | AB197: =SUM($I$3:$AA$3) -> 17 | AC197: =BY197 -> - | AD197: =BZ197 -> - | AE197: =CA197 -> - | AF197: 181 | AG197: 180 | AH197: =IF(F197>1,ROW(193:193),"-") -> - | AI197: 193 | AL197: =COUNT($I$3,I197,H197) -> 0 | AM197: =COUNT($J$3,J197,I197) -> 1 | AN197: =COUNT($K$3,K197,J197) -> 1 | AO197: =COUNT($L$3,L197,K197) -> 1 | AP197: =COUNT($M$3,M197,L197) -> 1 | AQ197: =COUNT($N$3,N197,M197) -> 1 | AR197: =COUNT($O$3,O197,N197) -> 1 | AS197: =COUNT($P$3,P197,O197) -> 1 | AT197: =COUNT($Q$3,Q197,P197) -> 1 | AU197: =COUNT($R$3,R197,Q197) -> 1 | AV197: =COUNT($S$3,S197,R197) -> 1 | AW197: =COUNT($T$3,T197,S197) -> 1 | AX197: =COUNT($U$3,U197,T197) -> 1 | AY197: =COUNT($V$3,V197,U197) -> 1 | AZ197: =COUNT($W$3,W197,V197) -> 0 | BA197: =COUNT($X$3,X197,W197) -> 1 | BB197: =COUNT($Y$3,Y197,X197) -> 1 | BC197: =COUNT($Z$3,Z197,Y197) -> 1 | BD197: =COUNT($AA$3,AA197,Z197) -> 1 | BF197: =IF(H197="x",1,2) -> 2 | BY197: - | BZ197: - | CA197: - | CB197: 15 | CD197: =SUM(BI197:BX197) -> 0 | EO197: 216 | EQ197: 180 | ER197: =IF(BF197>1,"("&AF197&")","("&AH197&")") -> (181)
A198: 180 (181) | D198: 0 | F198: 0 | AB198: 17 | AC198: - | AD198: - | AE198: - | AF198: 181 | AG198: =IF(D198<D197,AI198,AG197) -> 180 | AH198: - | AI198: 194 | AL198: 0 | AM198: 1 | AN198: 1 | AO198: 1 | AP198: 1 | AQ198: 1 | AR198: 1 | AS198: 1 | AT198: 1 | AU198: 1 | AV198: 1 | AW198: 1 | AX198: 1 | AY198: 1 | AZ198: 0 | BA198: 1 | BB198: 1 | BC198: 1 | BD198: 1 | BF198: 2 | BX198: =IF($F198>15,LARGE($I198:$AA198,16),"") ->  | BY198: =IF($F198>13,LARGE($I198:$AA198,14),"-") -> - | BZ198: =IF($F198>14,LARGE($I198:$AA198,15),"-") -> - | CA198: =IF($F198>15,LARGE($I198:$AA198,16),"-") -> - | CB198: =SUM(AB198-F198)-2 -> 15 | CD198: 0 | EO198: 189 | EQ198: 180 | ER198: (181)
A199: 180 (181) | D199: 0 | F199: 0 | AB199: 17 | AC199: - | AD199: - | AE199: - | AF199: 181 | AG199: 180 | AH199: - | AI199: 195 | AL199: 0 | AM199: 1 | AN199: 1 | AO199: 1 | AP199: 1 | AQ199: 1 | AR199: 1 | AS199: 1 | AT199: 1 | AU199: 1 | AV199: 1 | AW199: 1 | AX199: 1 | AY199: 1 | AZ199: 0 | BA199: 1 | BB199: 1 | BC199: 1 | BD199: 1 | BF199: 2 | BY199: - | BZ199: - | CA199: - | CB199: 15 | CD199: 0 | EO199: 190 | EQ199: 180 | ER199: (181)
A200: 180 (181) | D200: 0 | F200: 0 | AB200: 17 | AC200: - | AD200: - | AE200: - | AF200: 181 | AG200: 180 | AH200: - | AI200: 196 | AL200: 0 | AM200: 1 | AN200: 1 | AO200: 1 | AP200: 1 | AQ200: 1 | AR200: 1 | AS200: 1 | AT200: 1 | AU200: 1 | AV200: 1 | AW200: 1 | AX200: 1 | AY200: 1 | AZ200: 0 | BA200: 1 | BB200: 1 | BC200: 1 | BD200: 1 | BF200: 2 | BY200: - | BZ200: - | CA200: - | CB200: 15 | CD200: 0 | EO200: 191 | EQ200: 180 | ER200: (181)
... 20 more rows

Sheet Regler
A1: Regler för Sverige-,Junior- o Miniorranking
A3: Rankingpoäng utgör den totala poängen från rankingtävlingar under säsongen
A4: som varje enskild kastare har fått ihop.
A5: Max från 13 tävlingar kan medräknas, och då räknas de 13 med högst resultat.
A7: Den som har högst poäng när säsongen är över vinner.
A9: Skulle det vara kastare som hamnar på samma poäng när säsongen är över, och är bland de
A10: tre bästa så gäller detta för att skilja dem åt.
A12: 1. Högst snitt per serie
A13: 2. Högst poäng på en tävling, sedan näst högst osv.
A14: 3. Högsta poängen på senaste tävlingen, sedan den dessför innan osv.(DM-tävlingar ej inräknade)
A15: 4. Skulle det fortfarande inte gå att skilja dem åt, så blir de på samma plats.
A18: Seriespelsranking
A20: Alla individuella seriespelsresultaten under säsongen räknas in.
A21: Den som har högst snitt när säsongen är över vinner.
A23: För att kunna vara bland de tre pristagarna, måste man spelat minst 7 serier.
A25: Skulle det vara kastare som hamnar på samma snitt när säsongen är över, och är bland de
A26: tre bästa så gäller detta för att skilja dem åt.
A28: 1. Det högsta serieresultatet, sedan näst högsta osv.
A29: 2. Skulle det fortfarande inte gå att skilja dem åt, så blir de på samma plats.

Sheet Miniorranking
B1: Svenska Hästskokastarförbundets Sverigeranking | AC1: =COUNT(I5:AA25) -> 9
C2: MINIOR
B3: SLUTSTÄLLNING | C3: Säsong 2018 / 2019 | I3: =IF(SUM(I5:I407)>100,1,"") ->  | L3: 1 | M3: 1 | Q3: 1 | S3: 1 | X3: 1 | Y3: 1
A4: Plac. | B4: Kastare | C4: Klubb | D4: Ranking-poäng | F4: Antal täv-lingar | G4: Snitt per serie | I4: Växjö Open | J4: Björkenäs Open | K4: Utomhus-SM Dag 1 | L4: Utomhus-SM Dag 2 | M4: Utomhus Smålandsmästaren | N4: Carlskrona Cup | O4: Gotland Open | P4: Septemberskon | Q4: Dynapac Open | R4: Blekinge-DM Ute | S4: Åseda Open | T4: Höstskon Nybro | U4: Novemberkampen | V4: Inomhus-SM | W4: Gotlands-DM inne | X4: Inomhus Smålandsmästaren | Y4: Blekinge DM Inne | Z4: Värendspokalen | AA4: Tingsryds Open
A5: =EJ5&EK5 -> 1(1) | B5: Sandra Widlund | C5: Växjö Hsk | D5: =SUM(I5:AA5) -> 997 | F5: =COUNT(I5:AA5) -> 5 | G5: =SUM((D5)/(F5*2)) -> 99.7 | L5: 125 | M5: 140 | Q5: 214 | S5: 281 | X5: 237 | AD5: 1 | AE5: =IF(D5>1,ROW(1:1),"-") -> 1 | AF5: =IF(F5>1,ROW(1:1),"-") -> 1 | AJ5: =COUNT($I$3,I5,H5) -> 0 | AK5: =COUNT($J$3,J5,I5) -> 0 | AL5: =COUNT($K$3,K5,J5) -> 0 | AM5: =COUNT($L$3,L5,K5) -> 2 | AN5: =COUNT($M$3,M5,L5) -> 3 | AO5: =COUNT($N$3,N5,M5) -> 1 | AP5: =COUNT($O$3,O5,N5) -> 0 | AQ5: =COUNT($P$3,P5,O5) -> 0 | AR5: =COUNT($Q$3,Q5,P5) -> 2 | AS5: =COUNT($R$3,R5,Q5) -> 1 | AT5: =COUNT($S$3,S5,R5) -> 2 | AU5: =COUNT($T$3,T5,S5) -> 1 | AV5: =COUNT($U$3,U5,T5) -> 0 | AW5: =COUNT($V$3,V5,U5) -> 0 | AX5: =COUNT($W$3,W5,V5) -> 0 | AY5: =COUNT($X$3,X5,W5) -> 2 | AZ5: =COUNT($Y$3,Y5,X5) -> 2 | BA5: =COUNT($Z$3,Z5,Y5) -> 0 | BB5: =COUNT($AA$3,AA5,Z5) -> 0 | BD5: =COUNTIF(AI5:BC5,">1") -> 6 | BE5: =IF(H5="x",1,2) -> 2 | EH5: 1 | EJ5: =IF(BD5>=1,AE5,"") -> 1 | EK5: =IF(BE5>1,"("&AD5&")","("&AF5&")") -> (1)
A6: 2(2) | B6: Saga Karlberg | C6: Jämjö Hsk | D6: 165 | F6: 2 | G6: 41.25 | N6: 74 | R6: 91 | AD6: 2 | AE6: =IF(AND(D6=D5,D6=D4),ROW(#REF!),IF(D6=D5,ROW(1:1),IF(D6>1,ROW(2:2),"-"))) -> 2 | AF6: 2 | AJ6: 0 | AK6: 0 | AL6: 0 | AM6: 1 | AN6: 1 | AO6: 1 | AP6: 1 | AQ6: 0 | AR6: 1 | AS6: 1 | AT6: 2 | AU6: 0 | AV6: 0 | AW6: 0 | AX6: 0 | AY6: 1 | AZ6: 1 | BA6: 0 | BB6: 0 | BD6: 1 | BE6: 2 | EH6: 3 | EJ6: 2 | EK6: (2)
A7: 3(3) | B7: Gustav Svensson | C7: Carlskrona Hsc | D7: 88 | F7: 1 | G7: 44 | Y7: 88 | AD7: 3 | AE7: =IF(AND(D7=D6,D7=D5,D7=D4),ROW(#REF!),IF(AND(D7=D6,D7=D5),ROW(1:1),IF(D7=D6,ROW(2:2),IF(D7>1,ROW(3:3),"-")))) -> 3 | AF7: - | AJ7: 0 | AK7: 0 | AL7: 0 | AM7: 1 | AN7: 1 | AO7: 0 | AP7: 0 | AQ7: 0 | AR7: 1 | AS7: 0 | AT7: 1 | AU7: 0 | AV7: 0 | AW7: 0 | AX7: 0 | AY7: 1 | AZ7: 2 | BA7: 1 | BB7: 0 | BD7: 1 | BE7: 2 | EH7: 4 | EJ7: 3 | EK7: (3)
A8: 4(4) | B8: Alfons Andersson | C8: Carlskrona Hsc | D8: 30 | F8: 1 | G8: 15 | Y8: 30 | AD8: 4 | AE8: =IF(AND(D8=D7,D8=D6,D8=D5,D8=D4),ROW(#REF!),IF(AND(D8=D7,D8=D6,D8=D5),ROW(1:1),IF(AND(D8=D7,D8=D6),ROW(2:2),IF(D8=D7,ROW(3:3),IF(D8>1,ROW(4:4),"-"))))) -> 4 | AF8: - | AJ8: 0 | AK8: 0 | AL8: 0 | AM8: 1 | AN8: 1 | AO8: 0 | AP8: 0 | AQ8: 0 | AR8: 1 | AS8: 0 | AT8: 1 | AU8: 0 | AV8: 0 | AW8: 0 | AX8: 0 | AY8: 1 | AZ8: 2 | BA8: 1 | BB8: 0 | BD8: 1 | BE8: 2 | EH8: 5 | EJ8: 4 | EK8: (4)
A9: (-) | D9: 0 | F9: 0 | AD9: - | AE9: =IF(AND(D9=D8,D9=D7,D9=D6,D9=D5),ROW(1:1),IF(AND(D9=D8,D9=D7,D9=D6),ROW(2:2),IF(AND(D9=D8,D9=D7),ROW(3:3),IF(D9=D8,ROW(4:4),IF(D9>1,ROW(5:5),"-"))))) -> - | AF9: - | AJ9: 0 | AK9: 0 | AL9: 0 | AM9: 1 | AN9: 1 | AO9: 0 | AP9: 0 | AQ9: 0 | AR9: 1 | AS9: 0 | AT9: 1 | AU9: 0 | AV9: 0 | AW9: 0 | AX9: 0 | AY9: 1 | AZ9: 1 | BA9: 0 | BB9: 0 | BD9: 0 | BE9: 2 | EH9: 6 | EK9: (-)
A10: (5) | D10: 0 | F10: 0 | AD10: 5 | AE10: =IF(AND(D10=D9,D10=D8,D10=D7,D10=D6),ROW(2:2),IF(AND(D10=D9,D10=D8,D10=D7),ROW(3:3),IF(AND(D10=D9,D10=D8),ROW(4:4),IF(D10=D9,ROW(5:5),IF(D10>1,ROW(6:6),"-"))))) -> 5 | AF10: - | AJ10: 0 | AK10: 0 | AL10: 0 | AM10: 1 | AN10: 1 | AO10: 0 | AP10: 0 | AQ10: 0 | AR10: 1 | AS10: 0 | AT10: 1 | AU10: 0 | AV10: 0 | AW10: 0 | AX10: 0 | AY10: 1 | AZ10: 1 | BA10: 0 | BB10: 0 | BD10: 0 | BE10: 2 | EH10: 7 | EK10: (5)
A11: (5) | D11: 0 | F11: 0 | AD11: 5 | AE11: =IF(AND(D11=D10,D11=D9,D11=D8,D11=D7),ROW(3:3),IF(AND(D11=D10,D11=D9,D11=D8),ROW(4:4),IF(AND(D11=D10,D11=D9),ROW(5:5),IF(D11=D10,ROW(6:6),IF(D11>1,ROW(7:7),"-"))))) -> 5 | AF11: - | AJ11: 0 | AK11: 0 | AL11: 0 | AM11: 1 | AN11: 1 | AO11: 0 | AP11: 0 | AQ11: 0 | AR11: 1 | AS11: 0 | AT11: 1 | AU11: 0 | AV11: 0 | AW11: 0 | AX11: 0 | AY11: 1 | AZ11: 1 | BA11: 0 | BB11: 0 | BD11: 0 | BE11: 2 | EH11: 8 | EK11: (5)
A12: (5) | D12: 0 | F12: 0 | AD12: 5 | AE12: =IF(AND(D12=D11,D12=D10,D12=D9,D12=D8),ROW(4:4),IF(AND(D12=D11,D12=D10,D12=D9),ROW(5:5),IF(AND(D12=D11,D12=D10),ROW(6:6),IF(D12=D11,ROW(7:7),IF(D12>1,ROW(8:8),"-"))))) -> 5 | AF12: - | AJ12: 0 | AK12: 0 | AL12: 0 | AM12: 1 | AN12: 1 | AO12: 0 | AP12: 0 | AQ12: 0 | AR12: 1 | AS12: 0 | AT12: 1 | AU12: 0 | AV12: 0 | AW12: 0 | AX12: 0 | AY12: 1 | AZ12: 1 | BA12: 0 | BB12: 0 | BD12: 0 | BE12: 2 | EH12: 9 | EK12: (5)
A13: (8) | D13: 0 | F13: 0 | AD13: 8 | AE13: =IF(D13=D12,ROW(8:8),IF(D13>1,ROW(9:9),"-")) -> 8 | AF13: - | AJ13: 0 | AK13: 0 | AL13: 0 | AM13: 1 | AN13: 1 | AO13: 0 | AP13: 0 | AQ13: 0 | AR13: 1 | AS13: 0 | AT13: 1 | AU13: 0 | AV13: 0 | AW13: 0 | AX13: 0 | AY13: 1 | AZ13: 1 | BA13: 0 | BB13: 0 | BD13: 0 | BE13: 2 | EH13: 2 | EK13: (8)
A14: =EJ14&EK14 -> (6) | D14: 0 | F14: 0 | AD14: 6 | AE14: =IF(AND(D14=D13,D14=D12,D14=D11,D14=D10),ROW(6:6),IF(AND(D14=D13,D14=D12,D14=D11),ROW(7:7),IF(AND(D14=D13,D14=D12),ROW(8:8),IF(D14=D13,ROW(9:9),IF(D14>1,ROW(10:10),"-"))))) -> 6 | AF14: =IF(F14>1,ROW(10:10),"-") -> - | AJ14: =COUNT($I$3,I14,H14) -> 0 | AK14: =COUNT($J$3,J14,I14) -> 0 | AL14: =COUNT($K$3,K14,J14) -> 0 | AM14: =COUNT($L$3,L14,K14) -> 1 | AN14: =COUNT($M$3,M14,L14) -> 1 | AO14: =COUNT($N$3,N14,M14) -> 0 | AP14: =COUNT($O$3,O14,N14) -> 0 | AQ14: =COUNT($P$3,P14,O14) -> 0 | AR14: =COUNT($Q$3,Q14,P14) -> 1 | AS14: =COUNT($R$3,R14,Q14) -> 0 | AT14: =COUNT($S$3,S14,R14) -> 1 | AU14: =COUNT($T$3,T14,S14) -> 0 | AV14: =COUNT($U$3,U14,T14) -> 0 | AW14: =COUNT($V$3,V14,U14) -> 0 | AX14: =COUNT($W$3,W14,V14) -> 0 | AY14: =COUNT($X$3,X14,W14) -> 1 | AZ14: =COUNT($Y$3,Y14,X14) -> 1 | BA14: =COUNT($Z$3,Z14,Y14) -> 0 | BB14: =COUNT($AA$3,AA14,Z14) -> 0 | BD14: =COUNTIF(AI14:BC14,">1") -> 0 | BE14: =IF(H14="x",1,2) -> 2 | EH14: 10 | EJ14: =IF(BD14>=1,AE14,"") ->  | EK14: =IF(BE14>1,"("&AD14&")","("&AF14&")") -> (6)
A15: (7) | D15: 0 | F15: 0 | AD15: 7 | AE15: 7 | AF15: - | AJ15: 0 | AK15: 0 | AL15: 0 | AM15: 1 | AN15: 1 | AO15: 0 | AP15: 0 | AQ15: 0 | AR15: 1 | AS15: 0 | AT15: 1 | AU15: 0 | AV15: 0 | AW15: 0 | AX15: 0 | AY15: 1 | AZ15: 1 | BA15: 0 | BB15: 0 | BD15: 0 | BE15: 2 | EH15: 11 | EK15: (7)
A16: (8) | D16: 0 | F16: 0 | AD16: 8 | AE16: 8 | AF16: - | AJ16: 0 | AK16: 0 | AL16: 0 | AM16: 1 | AN16: 1 | AO16: 0 | AP16: 0 | AQ16: 0 | AR16: 1 | AS16: 0 | AT16: 1 | AU16: 0 | AV16: 0 | AW16: 0 | AX16: 0 | AY16: 1 | AZ16: 1 | BA16: 0 | BB16: 0 | BD16: 0 | BE16: 2 | EH16: 12 | EK16: (8)
A17: (9) | D17: 0 | F17: 0 | AD17: 9 | AE17: 9 | AF17: - | AJ17: 0 | AK17: 0 | AL17: 0 | AM17: 1 | AN17: 1 | AO17: 0 | AP17: 0 | AQ17: 0 | AR17: 1 | AS17: 0 | AT17: 1 | AU17: 0 | AV17: 0 | AW17: 0 | AX17: 0 | AY17: 1 | AZ17: 1 | BA17: 0 | BB17: 0 | BD17: 0 | BE17: 2 | EH17: 13 | EK17: (9)
A18: (10) | D18: 0 | F18: 0 | AD18: 10 | AE18: 10 | AF18: - | AJ18: 0 | AK18: 0 | AL18: 0 | AM18: 1 | AN18: 1 | AO18: 0 | AP18: 0 | AQ18: 0 | AR18: 1 | AS18: 0 | AT18: 1 | AU18: 0 | AV18: 0 | AW18: 0 | AX18: 0 | AY18: 1 | AZ18: 1 | BA18: 0 | BB18: 0 | BD18: 0 | BE18: 2 | EH18: 14 | EJ18: =IF(BD18>=1,AE18,"") ->  | EK18: (10)
A19: (11) | D19: 0 | F19: 0 | AD19: 11 | AE19: 11 | AF19: - | AJ19: 0 | AK19: 0 | AL19: 0 | AM19: 1 | AN19: 1 | AO19: 0 | AP19: 0 | AQ19: 0 | AR19: 1 | AS19: 0 | AT19: 1 | AU19: 0 | AV19: 0 | AW19: 0 | AX19: 0 | AY19: 1 | AZ19: 1 | BA19: 0 | BB19: 0 | BD19: 0 | BE19: 2 | EH19: 15 | EK19: (11)
A20: (12) | D20: 0 | F20: 0 | AD20: 12 | AE20: 12 | AF20: - | AJ20: 0 | AK20: 0 | AL20: 0 | AM20: 1 | AN20: 1 | AO20: 0 | AP20: 0 | AQ20: 0 | AR20: 1 | AS20: 0 | AT20: 1 | AU20: 0 | AV20: 0 | AW20: 0 | AX20: 0 | AY20: 1 | AZ20: 1 | BA20: 0 | BB20: 0 | BD20: 0 | BE20: 2 | EH20: 16 | EJ20: =IF(BD20>=1,AE20,"") ->  | EK20: (12)
A21: (13) | D21: 0 | F21: 0 | AD21: 13 | AE21: 13 | AF21: - | AJ21: 0 | AK21: 0 | AL21: 0 | AM21: 1 | AN21: 1 | AO21: 0 | AP21: 0 | AQ21: 0 | AR21: 1 | AS21: 0 | AT21: 1 | AU21: 0 | AV21: 0 | AW21: 0 | AX21: 0 | AY21: 1 | AZ21: 1 | BA21: 0 | BB21: 0 | BD21: 0 | BE21: 2 | EH21: 17 | EK21: (13)
A22: =EJ22&EK22 -> (14) | D22: 0 | F22: 0 | AD22: 14 | AE22: 14 | AF22: - | AJ22: 0 | AK22: 0 | AL22: 0 | AM22: 1 | AN22: 1 | AO22: 0 | AP22: 0 | AQ22: 0 | AR22: 1 | AS22: 0 | AT22: 1 | AU22: 0 | AV22: 0 | AW22: 0 | AX22: 0 | AY22: 1 | AZ22: 1 | BA22: 0 | BB22: 0 | BD22: 0 | BE22: 2 | EH22: 18 | EK22: (14)
A23: =EJ23&EK23 -> (15) | D23: 0 | F23: 0 | AD23: 15 | AE23: =IF(AND(D23=D22,D23=D21,D23=D20,D23=D19),ROW(15:15),IF(AND(D23=D22,D23=D21,D23=D20),ROW(16:16),IF(AND(D23=D22,D23=D21),ROW(17:17),IF(D23=D22,ROW(18:18),IF(D23>1,ROW(19:19),"-"))))) -> 15 | AF23: =IF(F23>1,ROW(19:19),"-") -> - | AJ23: =COUNT($I$3,I23,H23) -> 0 | AK23: =COUNT($J$3,J23,I23) -> 0 | AL23: =COUNT($K$3,K23,J23) -> 0 | AM23: =COUNT($L$3,L23,K23) -> 1 | AN23: =COUNT($M$3,M23,L23) -> 1 | AO23: =COUNT($N$3,N23,M23) -> 0 | AP23: =COUNT($O$3,O23,N23) -> 0 | AQ23: =COUNT($P$3,P23,O23) -> 0 | AR23: =COUNT($Q$3,Q23,P23) -> 1 | AS23: =COUNT($R$3,R23,Q23) -> 0 | AT23: =COUNT($S$3,S23,R23) -> 1 | AU23: =COUNT($T$3,T23,S23) -> 0 | AV23: =COUNT($U$3,U23,T23) -> 0 | AW23: =COUNT($V$3,V23,U23) -> 0 | AX23: =COUNT($W$3,W23,V23) -> 0 | AY23: =COUNT($X$3,X23,W23) -> 1 | AZ23: =COUNT($Y$3,Y23,X23) -> 1 | BA23: =COUNT($Z$3,Z23,Y23) -> 0 | BB23: =COUNT($AA$3,AA23,Z23) -> 0 | BD23: =COUNTIF(AI23:BC23,">1") -> 0 | BE23: =IF(H23="x",1,2) -> 2 | EH23: 19 | EK23: =IF(BE23>1,"("&AD23&")","("&AF23&")") -> (15)
A24: (16) | D24: 0 | F24: 0 | AD24: 16 | AE24: 16 | AF24: - | AJ24: 0 | AK24: 0 | AL24: 0 | AM24: 1 | AN24: 1 | AO24: 0 | AP24: 0 | AQ24: 0 | AR24: 1 | AS24: 0 | AT24: 1 | AU24: 0 | AV24: 0 | AW24: 0 | AX24: 0 | AY24: 1 | AZ24: 1 | BA24: 0 | BB24: 0 | BD24: 0 | BE24: 2 | EH24: 20 | EK24: (16)
A25: =EJ25&EK25 -> (17) | D25: 0 | F25: 0 | AD25: 17 | AE25: =IF(AND(D25=D24,D25=D23,D25=D22,D25=D21),ROW(17:17),IF(AND(D25=D24,D25=D23,D25=D22),ROW(18:18),IF(AND(D25=D24,D25=D23),ROW(19:19),IF(D25=D24,ROW(20:20),IF(D25>1,ROW(21:21),"-"))))) -> 17 | AF25: =IF(F25>1,ROW(21:21),"-") -> - | AJ25: =COUNT($I$3,I25,H25) -> 0 | AK25: =COUNT($J$3,J25,I25) -> 0 | AL25: =COUNT($K$3,K25,J25) -> 0 | AM25: =COUNT($L$3,L25,K25) -> 1 | AN25: =COUNT($M$3,M25,L25) -> 1 | AO25: =COUNT($N$3,N25,M25) -> 0 | AP25: =COUNT($O$3,O25,N25) -> 0 | AQ25: =COUNT($P$3,P25,O25) -> 0 | AR25: =COUNT($Q$3,Q25,P25) -> 1 | AS25: =COUNT($R$3,R25,Q25) -> 0 | AT25: =COUNT($S$3,S25,R25) -> 1 | AU25: =COUNT($T$3,T25,S25) -> 0 | AV25: =COUNT($U$3,U25,T25) -> 0 | AW25: =COUNT($V$3,V25,U25) -> 0 | AX25: =COUNT($W$3,W25,V25) -> 0 | AY25: =COUNT($X$3,X25,W25) -> 1 | AZ25: =COUNT($Y$3,Y25,X25) -> 1 | BA25: =COUNT($Z$3,Z25,Y25) -> 0 | BB25: =COUNT($AA$3,AA25,Z25) -> 0 | BD25: =COUNTIF(AI25:BC25,">1") -> 0 | BE25: =IF(H25="x",1,2) -> 2 | EH25: 21 | EK25: =IF(BE25>1,"("&AD25&")","("&AF25&")") -> (17)
EH28: 1 | EJ28: =IF(BD28>=1,AE28,"") ->  | EK28: =IF(BD28>1,"("&AD28&")","("&AF28&")") -> ()
EH29: 3 | EK29: ()
EH30: 4 | EK30: ()
EH31: 5 | EK31: ()
EH32: 6 | EK32: ()
EH33: 7 | EK33: ()
EH34: 8 | EK34: ()
EH35: 9 | EK35: ()
EH36: 10 | EK36: ()
EH37: 11 | EK37: ()
EH38: 12 | EK38: ()
EH39: 13 | EK39: ()
EH40: 14 | EJ40: =IF(BD40>=1,AE40,14) -> 14 | EK40: ()
EH41: 15 | EJ41: =IF(BD41>=1,AE41,"") ->  | EK41: ()
EH42: 16 | EJ42: =IF(BD42>=1,AE42,"") ->  | EK42: ()
EH43: 2 | EJ43: =IF(BD43>=1,AE43,"") ->  | EK43: ()
EH44: 17 | EJ44: =IF(BD44>=1,AE44,"") ->  | EK44: =IF(BD44>2,"("&AD44&")","("&AF44&")") -> ()
EH45: 18 | EJ45: 18 | EK45: =IF(BD45>1,"("&AD45&")","("&AF45&")") -> ()
EH46: 19 | EJ46: 19 | EK46: =IF(BD46>1,"("&AD46&")","("&AF46&")") -> ()
EH47: 20 | EJ47: 20 | EK47: =IF(BD47>1,"("&AD47&")","("&AF47&")") -> ()

Sheet Seriespelsranking
B1: Svenska Hästskokastarförbundets Seriespelsranking
B2: 2018_2019
B3: SLUTSTÄLLNING
A4: Plac. | B4: Kastare | C4: Klubb | D4: Ranking-snitt | F4: Antal serie-resultat | G4: Total-poäng serie-resultat | I4: Antal vunna dubblar | J4: Antal förlorade dubblar | K4: Antal vunna singlar | L4: Antal förlorade singlar | M4: Antal vunna matcher i % | N4: Inskrivning resultat | BQ4: Uträkning för | BR4: statistik vunna resp. | BS4: förlorade | BT4: dubblar och singlar.
A5: =IF(H5="x",DU5&EF5,DU5&EE5) -> 1(1) | B5: Kent Sundahl | C5: Carlskrona | D5: =IF(F5>0.5,(G5/F5),0) -> 206.8055556 | F5: =COUNT(N5:BO5) -> 36 | G5: =SUM(N5:BO5) -> 7445 | I5: =COUNTIF(BQ5:DR5,2) -> 0 | J5: =COUNTIF(BQ5:DR5,-2) -> 0 | K5: =COUNTIF(BQ5:DR5,1) -> 0 | L5: =COUNTIF(BQ5:DR5,-1) -> 0 | M5: =IF(F5>0,(I5+K5)/(F5),0) -> 0 | N5: 245 | O5: 223 | P5: 198 | Q5: 266 | R5: 278 | S5: 141 | T5: 209 | U5: 231 | V5: 243 | W5: 158 | X5: 180 | Y5: 289 | Z5: 246 | AA5: 212 | AB5: 232 | AC5: 287 | AD5: 224 | AE5: 154 | AF5: 154 | AG5: 245 | AH5: 234 | AI5: 131 | AJ5: 166 | AK5: 139 | AL5: 195 | AM5: 191 | AN5: 152 | AO5: 247 | AP5: 147 | AQ5: 214 | AR5: 218 | AS5: 184 | AT5: 194 | AU5: 159 | AV5: 281 | AW5: 178 | DT5: 1 | DU5: =IF(AND(D5=D4,D5=D3,D5=D2,D5=D1),ROW(1:1),IF(AND(D5=D4,D5=D3,D5=D2),ROW(1:1),IF(AND(D5=D4,D5=D3),ROW(1:1),IF(D5=D4,ROW(1:1),IF(D5>1,ROW(1:1),"-"))))) -> 1 | DV5: =IF(DX5=1,ROW(1:1),"-") -> 1 | DX5: 1 | EB5: 11 | ED5: =IF(DX5=1,DU5,IF(DX5="",DU5,"")) -> 1 | EE5: =IF(DX5=1,"("&DT5&")","("&DV5&")") -> (1) | EF5: (-)
A6: =IF(H6="x",DU6&EF6,DU6&EE6) -> 2(2) | B6: Tobias Gneupel | C6: Sibbamåla | D6: 205.175 | F6: 40 | G6: 8207 | I6: 0 | J6: 0 | K6: 0 | L6: 0 | M6: 0 | N6: 226 | O6: 188 | P6: 234 | Q6: 275 | R6: 163 | S6: 211 | T6: 190 | U6: 273 | V6: 220 | W6: 250 | X6: 259 | Y6: 189 | Z6: 124 | AA6: 231 | AB6: 202 | AC6: 213 | AD6: 199 | AE6: 236 | AF6: 189 | AG6: 230 | AH6: 229 | AI6: 178 | AJ6: 180 | AK6: 209 | AL6: 215 | AM6: 232 | AN6: 182 | AO6: 176 | AP6: 234 | AQ6: 140 | AR6: 198 | AS6: 193 | AT6: 245 | AU6: 206 | AV6: 227 | AW6: 201 | AX6: 151 | AY6: 157 | AZ6: 160 | BA6: 192 | DT6: 2 | DU6: =IF(AND(D6=D5,D6=D4,D6=D3,D6=D2),ROW(1:1),IF(AND(D6=D5,D6=D4,D6=D3),ROW(1:1),IF(AND(D6=D5,D6=D4),ROW(1:1),IF(D6=D5,ROW(1:1),IF(D6>1,ROW(2:2),"-"))))) -> 2 | DV6: 2 | DX6: 1 | EB6: 16 | ED6: 2 | EE6: (2) | EF6: (-)
A7: 3(3) | B7: Sandor Bodi | C7: Växjö | D7: 196.2894737 | F7: 38 | G7: 7459 | I7: 0 | J7: 0 | K7: 0 | L7: 0 | M7: 0 | N7: 200 | O7: 168 | P7: 196 | Q7: 217 | R7: 193 | S7: 212 | T7: 232 | U7: 267 | V7: 143 | W7: 184 | X7: 236 | Y7: 246 | Z7: 127 | AA7: 226 | AB7: 162 | AC7: 144 | AD7: 153 | AE7: 211 | AF7: 180 | AG7: 170 | AH7: 236 | AI7: 153 | AJ7: 112 | AK7: 181 | AL7: 175 | AM7: 207 | AN7: 199 | AO7: 245 | AP7: 118 | AQ7: 226 | AR7: 207 | AS7: 118 | AT7: 224 | AU7: 231 | AV7: 227 | AW7: 252 | AX7: 223 | AY7: 258 | DT7: 3 | DU7: =IF(AND(D7=D6,D7=D5,D7=D4,D7=D3),ROW(1:1),IF(AND(D7=D6,D7=D5,D7=D4),ROW(1:1),IF(AND(D7=D6,D7=D5),ROW(1:1),IF(D7=D6,ROW(2:2),IF(D7>1,ROW(3:3),"-"))))) -> 3 | DV7: 3 | DX7: 1 | EB7: 20 | ED7: 3 | EE7: (3) | EF7: (-)
A8: 4(4) | B8: Ingvar Eriksson | C8: Carlskrona | D8: 186.2631579 | F8: 38 | G8: 7078 | I8: 0 | J8: 0 | K8: 0 | L8: 0 | M8: 0 | N8: 140 | O8: 257 | P8: 165 | Q8: 228 | R8: 190 | S8: 207 | T8: 226 | U8: 204 | V8: 207 | W8: 107 | X8: 189 | Y8: 205 | Z8: 207 | AA8: 142 | AB8: 214 | AC8: 201 | AD8: 208 | AE8: 217 | AF8: 173 | AG8: 172 | AH8: 219 | AI8: 172 | AJ8: 112 | AK8: 156 | AL8: 174 | AM8: 229 | AN8: 220 | AO8: 196 | AP8: 73 | AQ8: 205 | AR8: 219 | AS8: 159 | AT8: 203 | AU8: 191 | AV8: 146 | AW8: 181 | AX8: 148 | AY8: 216 | DT8: 4 | DU8: =IF(AND(D8=D7,D8=D6,D8=D5),ROW(1:1),IF(AND(D8=D7,D8=D6),ROW(2:2),IF(D8=D7,ROW(3:3),IF(D8>1,ROW(4:4),"-")))) -> 4 | DV8: 4 | DX8: 1 | EB8: 4 | ED8: 4 | EE8: (4) | EF8: (-)
A9: 5(5) | B9: Olle Ottosson | C9: Dynapac | D9: 185.7222222 | F9: 18 | G9: 3343 | I9: 0 | J9: 0 | K9: 0 | L9: 0 | M9: 0 | N9: 213 | O9: 151 | P9: 230 | Q9: 237 | R9: 226 | S9: 194 | T9: 218 | U9: 130 | V9: 168 | W9: 164 | X9: 197 | Y9: 162 | Z9: 150 | AA9: 164 | AB9: 207 | AC9: 230 | AD9: 164 | AE9: 138 | DT9: 5 | DU9: =IF(D9>1,ROW(5:5),"-") -> 5 | DV9: 5 | DX9: 1 | EB9: 1 | ED9: 5 | EE9: (5) | EF9: (-)
A10: 6(6) | B10: Matz Karlsson | C10: Korpen Åseda | D10: 176.3888889 | F10: 36 | G10: 6350 | I10: 0 | J10: 0 | K10: 0 | L10: 0 | M10: 0 | N10: 179 | O10: 172 | P10: 208 | Q10: 240 | R10: 95 | S10: 196 | T10: 128 | U10: 241 | V10: 106 | W10: 151 | X10: 195 | Y10: 169 | Z10: 196 | AA10: 149 | AB10: 201 | AC10: 132 | AD10: 155 | AE10: 161 | AF10: 223 | AG10: 241 | AH10: 160 | AI10: 167 | AJ10: 147 | AK10: 115 | AL10: 197 | AM10: 165 | AN10: 222 | AO10: 130 | AP10: 206 | AQ10: 250 | AR10: 185 | AS10: 176 | AT10: 218 | AU10: 207 | AV10: 146 | AW10: 121 | DT10: 6 | DU10: =IF(D10=D9,ROW(5:5),IF(D10>1,ROW(6:6),"-")) -> 6 | DV10: 6 | DX10: 1 | EB10: 2 | ED10: 6 | EE10: (6) | EF10: (-)
A11: 7(7) | B11: Gebriela Kostantinos | C11: Korpen Åseda | D11: 176.0645161 | F11: 31 | G11: 5458 | I11: 0 | J11: 0 | K11: 0 | L11: 0 | M11: 0 | N11: 140 | O11: 180 | P11: 193 | Q11: 172 | R11: 129 | S11: 130 | T11: 189 | U11: 161 | V11: 179 | W11: 165 | X11: 165 | Y11: 228 | Z11: 219 | AA11: 236 | AB11: 187 | AC11: 104 | AD11: 185 | AE11: 199 | AF11: 186 | AG11: 201 | AH11: 159 | AI11: 139 | AJ11: 173 | AK11: 137 | AL11: 187 | AM11: 189 | AN11: 182 | AO11: 206 | AP11: 224 | AQ11: 151 | AR11: 163 | DT11: 7 | DU11: =IF(AND(D11=D10,D11=D9,D11=D8,D11=D7),ROW(3:3),IF(AND(D11=D10,D11=D9,D11=D8),ROW(4:4),IF(AND(D11=D10,D11=D9),ROW(5:5),IF(D11=D10,ROW(6:6),IF(D11>1,ROW(7:7),"-"))))) -> 7 | DV11: 7 | DX11: 1 | EB11: 5 | ED11: 7 | EE11: (7) | EF11: (-)
A12: 8(8) | B12: Gert Karlsson | C12: Korpen Åseda | D12: 174.6666667 | F12: 24 | G12: 4192 | I12: 0 | J12: 0 | K12: 0 | L12: 0 | M12: 0 | N12: 245 | O12: 200 | P12: 211 | Q12: 181 | R12: 182 | S12: 258 | T12: 196 | U12: 120 | V12: 136 | W12: 136 | X12: 185 | Y12: 190 | Z12: 121 | AA12: 165 | AB12: 129 | AC12: 192 | AD12: 134 | AE12: 177 | AF12: 134 | AG12: 155 | AH12: 174 | AI12: 202 | AJ12: 195 | AK12: 174 | DT12: 8 | DU12: 8 | DV12: 8 | DX12: 1 | EB12: 6 | ED12: 8 | EE12: (8) | EF12: (-)
A13: 9(9) | B13: Johan Johansson | C13: Tingsryd | D13: 168.1714286 | F13: 35 | G13: 5886 | I13: 0 | J13: 0 | K13: 0 | L13: 0 | M13: 0 | N13: 145 | O13: 109 | P13: 139 | Q13: 190 | R13: 161 | S13: 246 | T13: 184 | U13: 209 | V13: 202 | W13: 182 | X13: 209 | Y13: 142 | Z13: 196 | AA13: 190 | AB13: 123 | AC13: 143 | AD13: 119 | AE13: 229 | AF13: 229 | AG13: 174 | AH13: 142 | AI13: 135 | AJ13: 186 | AK13: 158 | AL13: 216 | AM13: 229 | AN13: 128 | AO13: 184 | AP13: 148 | AQ13: 144 | AR13: 130 | AS13: 119 | AT13: 155 | AU13: 172 | AV13: 119 | DT13: 9 | DU13: 9 | DV13: 9 | DX13: 1 | EB13: 8 | ED13: 9 | EE13: (9) | EF13: (-)
A14: 10(10) | B14: Armin Sisic | C14: Värends Hsk | D14: 164.2222222 | F14: 18 | G14: 2956 | I14: 0 | J14: 0 | K14: 0 | L14: 0 | M14: 0 | N14: 115 | O14: 154 | P14: 155 | Q14: 181 | R14: 169 | S14: 100 | T14: 158 | U14: 152 | V14: 236 | W14: 239 | X14: 179 | Y14: 149 | Z14: 163 | AA14: 142 | AB14: 166 | AC14: 198 | AD14: 150 | AE14: 150 | DT14: 10 | DU14: 10 | DV14: 10 | DX14: 1 | EB14: 12 | ED14: 10 | EE14: (10) | EF14: (-)
A15: 11(11) | B15: Jom Jem | C15: Växjö Hsk | D15: 160.1666667 | F15: 30 | G15: 4805 | I15: 0 | J15: 0 | K15: 0 | L15: 0 | M15: 0 | N15: 146 | O15: 182 | P15: 145 | Q15: 127 | R15: 183 | S15: 113 | T15: 108 | U15: 131 | V15: 170 | W15: 127 | X15: 193 | Y15: 170 | Z15: 144 | AA15: 170 | AB15: 158 | AC15: 133 | AD15: 212 | AE15: 196 | AF15: 105 | AG15: 138 | AH15: 219 | AI15: 190 | AJ15: 159 | AK15: 177 | AL15: 136 | AM15: 196 | AN15: 196 | AO15: 147 | AP15: 199 | AQ15: 135 | DT15: 11 | DU15: 11 | DV15: 11 | DX15: 1 | EB15: 15 | ED15: 11 | EE15: (11) | EF15: (-)
A16: 12(12) | B16: Magnus Israelsson | C16: Sibbamåla | D16: 152.9230769 | F16: 26 | G16: 3976 | I16: 0 | J16: 0 | K16: 0 | L16: 0 | M16: 0 | N16: 122 | O16: 84 | P16: 138 | Q16: 138 | R16: 131 | S16: 203 | T16: 155 | U16: 153 | V16: 131 | W16: 176 | X16: 186 | Y16: 123 | Z16: 201 | AA16: 167 | AB16: 106 | AC16: 123 | AD16: 119 | AE16: 148 | AF16: 148 | AG16: 172 | AH16: 171 | AI16: 213 | AJ16: 141 | AK16: 215 | AL16: 103 | AM16: 209 | DT16: 12 | DU16: 12 | DV16: 12 | DX16: 1 | EB16: 21 | ED16: 12 | EE16: (12) | EF16: (-)
A17: 13(13) | B17: Mattias Gneupel | C17: Sibbamåla | D17: 149.5151515 | F17: 33 | G17: 4934 | I17: 0 | J17: 0 | K17: 0 | L17: 0 | M17: 0 | N17: 187 | O17: 126 | P17: 133 | Q17: 116 | R17: 137 | S17: 131 | T17: 124 | U17: 144 | V17: 134 | W17: 167 | X17: 174 | Y17: 214 | Z17: 84 | AA17: 152 | AB17: 106 | AC17: 191 | AD17: 143 | AE17: 165 | AF17: 162 | AG17: 142 | AH17: 120 | AI17: 131 | AJ17: 188 | AK17: 170 | AL17: 161 | AM17: 150 | AN17: 132 | AO17: 157 | AP17: 128 | AQ17: 242 | AR17: 128 | AS17: 137 | AT17: 158 | DT17: 13 | DU17: 13 | DV17: 13 | DX17: 1 | EB17: 3 | ED17: 13 | EE17: (13) | EF17: (-)
A18: 14(14) | B18: Dan Madayang | C18: Korpen Åseda | D18: 145.5882353 | F18: 17 | G18: 2475 | I18: 0 | J18: 0 | K18: 0 | L18: 0 | M18: 0 | N18: 101 | O18: 123 | P18: 187 | Q18: 132 | R18: 154 | S18: 157 | T18: 218 | U18: 148 | V18: 161 | W18: 145 | X18: 185 | Y18: 181 | Z18: 108 | AA18: 139 | AB18: 147 | AC18: 92 | AD18: 97 | DT18: 14 | DU18: 14 | DV18: 14 | DX18: 1 | EB18: 7 | ED18: 14 | EE18: (14) | EF18: (-)
A19: 15(21) | B19: Joel Sundahl | C19: Carlskrona | D19: 144.8076923 | F19: 26 | G19: 3765 | I19: 0 | J19: 0 | K19: 0 | L19: 0 | M19: 0 | N19: 149 | O19: 147 | P19: 178 | Q19: 105 | R19: 139 | S19: 84 | T19: 120 | U19: 103 | V19: 147 | W19: 177 | X19: 173 | Y19: 143 | Z19: 108 | AA19: 156 | AB19: 176 | AC19: 89 | AD19: 113 | AE19: 102 | AF19: 114 | AG19: 147 | AH19: 131 | AI19: 148 | AJ19: 251 | AK19: 115 | AL19: 232 | AM19: 218 | DT19: 21 | DU19: 15 | DV19: 15 | DX19: 1 | EB19: 17 | ED19: 15 | EE19: (21) | EF19: (-)
A20: 16(16) | B20: Lisbeth Nygaard-Karlsson | C20: Tingsryd | D20: 141.7567568 | F20: 37 | G20: 5245 | I20: 0 | J20: 0 | K20: 0 | L20: 0 | M20: 0 | N20: 117 | O20: 130 | P20: 126 | Q20: 152 | R20: 109 | S20: 192 | T20: 159 | U20: 225 | V20: 161 | W20: 185 | X20: 124 | Y20: 200 | Z20: 206 | AA20: 195 | AB20: 129 | AC20: 128 | AD20: 109 | AE20: 98 | AF20: 108 | AG20: 146 | AH20: 101 | AI20: 130 | AJ20: 102 | AK20: 176 | AL20: 105 | AM20: 138 | AN20: 147 | AO20: 165 | AP20: 108 | AQ20: 160 | AR20: 89 | AS20: 100 | AT20: 119 | AU20: 148 | AV20: 118 | AW20: 148 | AX20: 192 | DT20: 16 | DU20: 16 | DV20: 16 | DX20: 1 | EB20: 18 | ED20: 16 | EE20: (16) | EF20: (-)
A21: 17(17) | B21: Leif Sundahl | C21: Carlskrona | D21: 138.2 | F21: 5 | G21: 691 | I21: 0 | J21: 0 | K21: 0 | L21: 0 | M21: 0 | N21: 147 | O21: 101 | P21: 157 | Q21: 103 | R21: 183 | DT21: 17 | DU21: 17 | DV21: 17 | DX21: 1 | EB21: 24 | ED21: 17 | EE21: (17) | EF21: (-)
A22: 18(15) | B22: Mathias Karlberg | C22: Jämjö Hsk | D22: 137.4857143 | F22: 35 | G22: 4812 | I22: 0 | J22: 0 | K22: 0 | L22: 0 | M22: 0 | N22: 204 | O22: 125 | P22: 122 | Q22: 148 | R22: 86 | S22: 92 | T22: 120 | U22: 124 | V22: 177 | W22: 202 | X22: 83 | Y22: 97 | Z22: 79 | AA22: 197 | AB22: 194 | AC22: 172 | AD22: 111 | AE22: 116 | AF22: 141 | AG22: 141 | AH22: 161 | AI22: 100 | AJ22: 108 | AK22: 159 | AL22: 212 | AM22: 152 | AN22: 134 | AO22: 165 | AP22: 162 | AQ22: 128 | AR22: 97 | AS22: 118 | AT22: 108 | AU22: 146 | AV22: 131 | DT22: 15 | DU22: 18 | DV22: 18 | DX22: 1 | EB22: 9 | ED22: 18 | EE22: (15) | EF22: (-)
A23: 19(18) | B23: Maj-Britt Jarl | C23: Växjö | D23: 136.6666667 | F23: 18 | G23: 2460 | I23: 0 | J23: 0 | K23: 0 | L23: 0 | M23: 0 | N23: 179 | O23: 115 | P23: 145 | Q23: 86 | R23: 92 | S23: 104 | T23: 159 | U23: 113 | V23: 178 | W23: 107 | X23: 122 | Y23: 149 | Z23: 125 | AA23: 217 | AB23: 171 | AC23: 121 | AD23: 116 | AE23: 161 | DT23: 18 | DU23: 19 | DV23: 19 | DX23: 1 | EB23: 10 | ED23: 19 | EE23: (18) | EF23: (-)
A24: 20(20) | B24: Tomas Lindahl | C24: Korpen Åseda | D24: 135.0588235 | F24: 17 | G24: 2296 | I24: 0 | J24: 0 | K24: 0 | L24: 0 | M24: 0 | N24: 112 | O24: 61 | P24: 244 | Q24: 128 | R24: 122 | S24: 96 | T24: 138 | U24: 145 | V24: 202 | W24: 125 | X24: 101 | Y24: 119 | Z24: 150 | AA24: 189 | AB24: 137 | AC24: 126 | AD24: 101 | DT24: 20 | DU24: 20 | DV24: 20 | DX24: 1 | EB24: 22 | ED24: 20 | EE24: (20) | EF24: (-)
A25: 21(22) | B25: Lennart Karlsson | C25: Tingsryd | D25: 132.7368421 | F25: 38 | G25: 5044 | I25: 0 | J25: 0 | K25: 0 | L25: 0 | M25: 0 | N25: 124 | O25: 129 | P25: 121 | Q25: 113 | R25: 113 | S25: 113 | T25: 185 | U25: 83 | V25: 144 | W25: 166 | X25: 149 | Y25: 145 | Z25: 101 | AA25: 128 | AB25: 161 | AC25: 139 | AD25: 117 | AE25: 105 | AF25: 105 | AG25: 174 | AH25: 106 | AI25: 195 | AJ25: 152 | AK25: 111 | AL25: 139 | AM25: 159 | AN25: 127 | AO25: 97 | AP25: 162 | AQ25: 149 | AR25: 84 | AS25: 95 | AT25: 185 | AU25: 209 | AV25: 67 | AW25: 162 | AX25: 127 | AY25: 103 | DT25: 22 | DU25: 21 | DV25: 21 | DX25: 1 | EB25: 14 | ED25: 21 | EE25: (22) | EF25: (-)
A26: 22(25) | B26: Ewa Malmqvist | C26: Jämjö Hsk | D26: 132.6 | F26: 25 | G26: 3315 | I26: 0 | J26: 0 | K26: 0 | L26: 0 | M26: 0 | N26: 151 | O26: 146 | P26: 78 | Q26: 177 | R26: 118 | S26: 138 | T26: 141 | U26: 128 | V26: 96 | W26: 146 | X26: 82 | Y26: 174 | Z26: 162 | AA26: 108 | AB26: 78 | AC26: 108 | AD26: 119 | AE26: 122 | AF26: 129 | AG26: 161 | AH26: 191 | AI26: 129 | AJ26: 116 | AK26: 136 | AL26: 181 | DT26: 25 | DU26: 22 | DV26: 22 | DX26: 1 | EB26: 13 | ED26: 22 | EE26: (25) | EF26: (-)
A27: 23(23) | B27: Stefan Olofsson | C27: Korpen Nybro | D27: 132.25 | F27: 4 | G27: 529 | I27: 0 | J27: 0 | K27: 0 | L27: 0 | M27: 0 | N27: 106 | O27: 166 | P27: 125 | Q27: 132 | DT27: 23 | DU27: 23 | DV27: 23 | DX27: 1 | EB27: 19 | ED27: 23 | EE27: (23) | EF27: (-)
A28: 24(19) | B28: Leo Andersson | C28: Carlskrona | D28: 131.32 | F28: 25 | G28: 3283 | I28: 0 | J28: 0 | K28: 0 | L28: 0 | M28: 0 | N28: 83 | O28: 172 | P28: 145 | Q28: 152 | R28: 148 | S28: 126 | T28: 132 | U28: 99 | V28: 80 | W28: 98 | X28: 190 | Y28: 176 | Z28: 122 | AA28: 67 | AB28: 152 | AC28: 137 | AD28: 165 | AE28: 149 | AF28: 160 | AG28: 123 | AH28: 194 | AI28: 135 | AJ28: 118 | AK28: 94 | AL28: 66 | DT28: 19 | DU28: =IF(AND(D28=D27,D28=D26,D28=D25,D28=D24),ROW(20:20),IF(AND(D28=D27,D28=D26,D28=D25),ROW(21:21),IF(AND(D28=D27,D28=D26),ROW(22:22),IF(D28=D27,ROW(23:23),IF(D28>1,ROW(24:24),"-"))))) -> 24 | DV28: =IF(DX28=1,ROW(24:24),"-") -> 24 | DX28: 1 | EB28: 28 | ED28: =IF(DX28=1,DU28,IF(DX28="",DU28,"")) -> 24 | EE28: =IF(DX28=1,"("&DT28&")","("&DV28&")") -> (19) | EF28: (-)
A29: 25(24) | B29: Dan Hallstan | C29: Växjö | D29: 130.375 | F29: 48 | G29: 6258 | I29: 0 | J29: 0 | K29: 0 | L29: 0 | M29: 0 | N29: 88 | O29: 107 | P29: 92 | Q29: 143 | R29: 78 | S29: 119 | T29: 109 | U29: 115 | V29: 149 | W29: 137 | X29: 135 | Y29: 120 | Z29: 152 | AA29: 163 | AB29: 138 | AC29: 135 | AD29: 125 | AE29: 114 | AF29: 132 | AG29: 164 | AH29: 115 | AI29: 130 | AJ29: 138 | AK29: 138 | AL29: 104 | AM29: 135 | AN29: 122 | AO29: 104 | AP29: 89 | AQ29: 118 | AR29: 107 | AS29: 115 | AT29: 146 | AU29: 168 | AV29: 151 | AW29: 188 | AX29: 115 | AY29: 149 | AZ29: 187 | BA29: 171 | BB29: 175 | BC29: 158 | BD29: 125 | BE29: 115 | BF29: 135 | BG29: 165 | BH29: 76 | BI29: 104 | DT29: 24 | DU29: =IF(AND(D29=D28,D29=D27,D29=D26,D29=D25),ROW(21:21),IF(AND(D29=D28,D29=D27,D29=D26),ROW(22:22),IF(AND(D29=D28,D29=D27),ROW(23:23),IF(D29=D28,ROW(24:24),IF(D29>1,ROW(25:25),"-"))))) -> 25 | DV29: =IF(DX29=1,ROW(25:25),"-") -> 25 | DX29: 1 | EB29: 23 | ED29: =IF(DX29=1,DU29,IF(DX29="",DU29,"")) -> 25 | EE29: =IF(DX29=1,"("&DT29&")","("&DV29&")") -> (24) | EF29: (-)
A30: 26(31) | B30: Bo Petersson | C30: Korpen Nybro | D30: 126.24 | F30: 25 | G30: 3156 | I30: 0 | J30: 0 | K30: 0 | L30: 0 | M30: 0 | N30: 132 | O30: 153 | P30: 100 | Q30: 139 | R30: 176 | S30: 196 | T30: 170 | U30: 119 | V30: 89 | W30: 84 | X30: 118 | Y30: 54 | Z30: 170 | AA30: 114 | AB30: 109 | AC30: 91 | AD30: 125 | AE30: 121 | AF30: 111 | AG30: 87 | AH30: 151 | AI30: 151 | AJ30: 159 | AK30: 102 | AL30: 135 | DT30: 31 | DU30: =IF(AND(D30=D29,D30=D28,D30=D27,D30=D26),ROW(22:22),IF(AND(D30=D29,D30=D28,D30=D27),ROW(23:23),IF(AND(D30=D29,D30=D28),ROW(24:24),IF(D30=D29,ROW(25:25),IF(D30>1,ROW(26:26),"-"))))) -> 26 | DV30: =IF(DX30=1,ROW(26:26),"-") -> 26 | DX30: 1 | EB30: 25 | ED30: =IF(DX30=1,DU30,IF(DX30="",DU30,"")) -> 26 | EE30: =IF(DX30=1,"("&DT30&")","("&DV30&")") -> (31) | EF30: (-)
A31: 27(27) | B31: Christer Lööv | C31: Värends Hsk | D31: 125 | F31: 2 | G31: 250 | I31: 0 | J31: 0 | K31: 0 | L31: 0 | M31: 0 | N31: 115 | O31: 135 | DT31: 27 | DU31: =IF(AND(D31=D30,D31=D29,D31=D28,D31=D27),ROW(23:23),IF(AND(D31=D30,D31=D29,D31=D28),ROW(24:24),IF(AND(D31=D30,D31=D29),ROW(25:25),IF(D31=D30,ROW(26:26),IF(D31>1,ROW(27:27),"-"))))) -> 27 | DV31: =IF(DX31=1,ROW(27:27),"-") -> 27 | DX31: 1 | EB31: 26 | ED31: =IF(DX31=1,DU31,IF(DX31="",DU31,"")) -> 27 | EE31: =IF(DX31=1,"("&DT31&")","("&DV31&")") -> (27) | EF31: (-)
A32: 28(28) | B32: Hans Johansson | C32: Tingsryd | D32: 124.3714286 | F32: 35 | G32: 4353 | I32: 0 | J32: 0 | K32: 0 | L32: 0 | M32: 0 | N32: 103 | O32: 110 | P32: 86 | Q32: 139 | R32: 136 | S32: 120 | T32: 169 | U32: 88 | V32: 75 | W32: 95 | X32: 136 | Y32: 120 | Z32: 114 | AA32: 194 | AB32: 165 | AC32: 183 | AD32: 125 | AE32: 169 | AF32: 165 | AG32: 98 | AH32: 104 | AI32: 115 | AJ32: 112 | AK32: 150 | AL32: 146 | AM32: 190 | AN32: 102 | AO32: 142 | AP32: 114 | AQ32: 126 | AR32: 99 | AS32: 133 | AT32: 88 | AU32: 47 | AV32: 95 | DT32: 28 | DU32: =IF(AND(D32=D31,D32=D30,D32=D29,D32=D28),ROW(24:24),IF(AND(D32=D31,D32=D30,D32=D29),ROW(25:25),IF(AND(D32=D31,D32=D30),ROW(26:26),IF(D32=D31,ROW(27:27),IF(D32>1,ROW(28:28),"-"))))) -> 28 | DV32: =IF(DX32=1,ROW(28:28),"-") -> 28 | DX32: 1 | EB32: 27 | ED32: =IF(DX32=1,DU32,IF(DX32="",DU32,"")) -> 28 | EE32: =IF(DX32=1,"("&DT32&")","("&DV32&")") -> (28) | EF32: (-)
A33: 29(29) | B33: Bengt Andersson | C33: Växjö | D33: 123.5 | F33: 26 | G33: 3211 | I33: 0 | J33: 0 | K33: 0 | L33: 0 | M33: 0 | N33: 117 | O33: 104 | P33: 117 | Q33: 119 | R33: 115 | S33: 93 | T33: 112 | U33: 139 | V33: 189 | W33: 155 | X33: 124 | Y33: 109 | Z33: 122 | AA33: 117 | AB33: 79 | AC33: 141 | AD33: 123 | AE33: 124 | AF33: 75 | AG33: 120 | AH33: 138 | AI33: 105 | AJ33: 122 | AK33: 159 | AL33: 102 | AM33: 191 | DT33: 29 | DU33: 29 | DV33: 29 | DX33: 1 | EB33: 29 | ED33: 29 | EE33: (29) | EF33: (-)
A34: 30(30) | B34: Maire Johansson | C34: Växjö | D34: 123.2564103 | F34: 39 | G34: 4807 | I34: 0 | J34: 0 | K34: 0 | L34: 0 | M34: 0 | N34: 136 | O34: 158 | P34: 116 | Q34: 120 | R34: 99 | S34: 213 | T34: 140 | U34: 87 | V34: 126 | W34: 99 | X34: 119 | Y34: 136 | Z34: 105 | AA34: 108 | AB34: 137 | AC34: 128 | AD34: 171 | AE34: 100 | AF34: 96 | AG34: 117 | AH34: 113 | AI34: 90 | AJ34: 98 | AK34: 112 | AL34: 82 | AM34: 117 | AN34: 109 | AO34: 127 | AP34: 121 | AQ34: 164 | AR34: 110 | AS34: 109 | AT34: 95 | AU34: 140 | AV34: 84 | AW34: 153 | AX34: 155 | AY34: 163 | AZ34: 154 | DT34: 30 | DU34: 30 | DV34: 30 | DX34: 1 | EB34: 30 | ED34: 30 | EE34: (30) | EF34: (-)
A35: 31(32) | B35: Peter Edlund | C35: Dynapac | D35: 122.4285714 | F35: 7 | G35: 857 | I35: 0 | J35: 0 | K35: 0 | L35: 0 | M35: 0 | N35: 105 | O35: 144 | P35: 111 | Q35: 68 | R35: 90 | S35: 177 | T35: 162 | DT35: 32 | DU35: 31 | DV35: 31 | DX35: 1 | EB35: 31 | ED35: 31 | EE35: (32) | EF35: (-)
A36: 32(33) | B36: Bengt Fabbeke | C36: Dynapac | D36: 122.3076923 | F36: 13 | G36: 1590 | I36: 0 | J36: 0 | K36: 0 | L36: 0 | M36: 0 | N36: 84 | O36: 137 | P36: 137 | Q36: 97 | R36: 129 | S36: 118 | T36: 162 | U36: 104 | V36: 135 | W36: 103 | X36: 182 | Y36: 87 | Z36: 115 | DT36: 33 | DU36: 32 | DV36: 32 | DX36: 1 | EB36: 32 | ED36: 32 | EE36: (33) | EF36: (-)
A37: 33(26) | B37: Lasse Brincner | C37: Värends Hsk | D37: =IF(F37>0.5,(G37/F37),0) -> 121.5925926 | F37: =COUNT(N37:BO37) -> 27 | G37: =SUM(N37:BO37) -> 3283 | I37: =COUNTIF(BQ37:DR37,2) -> 0 | J37: =COUNTIF(BQ37:DR37,-2) -> 0 | K37: =COUNTIF(BQ37:DR37,1) -> 0 | L37: =COUNTIF(BQ37:DR37,-1) -> 0 | M37: =IF(F37>0,(I37+K37)/(F37),0) -> 0 | N37: 124 | O37: 169 | P37: 155 | Q37: 126 | R37: 160 | S37: 79 | T37: 130 | U37: 158 | V37: 165 | W37: 104 | X37: 191 | Y37: 191 | Z37: 91 | AA37: 94 | AB37: 148 | AC37: 84 | AD37: 94 | AE37: 135 | AF37: 98 | AG37: 128 | AH37: 137 | AI37: 116 | AJ37: 91 | AK37: 94 | AL37: 91 | AM37: 69 | AN37: 61 | DT37: 26 | DU37: 33 | DV37: =IF(DX37=1,ROW(33:33),"-") -> 33 | DX37: 1 | EB37: 33 | ED37: =IF(DX37=1,DU37,IF(DX37="",DU37,"")) -> 33 | EE37: =IF(DX37=1,"("&DT37&")","("&DV37&")") -> (26) | EF37: (-)
A38: 34(34) | B38: Göran Olofsson | C38: Korpen Nybro | D38: 121.1212121 | F38: 33 | G38: 3997 | I38: 0 | J38: 0 | K38: 0 | L38: 0 | M38: 0 | N38: 155 | O38: 136 | P38: 113 | Q38: 105 | R38: 102 | S38: 135 | T38: 119 | U38: 135 | V38: 125 | W38: 128 | X38: 115 | Y38: 112 | Z38: 158 | AA38: 191 | AB38: 106 | AC38: 119 | AD38: 147 | AE38: 124 | AF38: 87 | AG38: 110 | AH38: 145 | AI38: 75 | AJ38: 135 | AK38: 147 | AL38: 114 | AM38: 82 | AN38: 73 | AO38: 89 | AP38: 82 | AQ38: 127 | AR38: 84 | AS38: 125 | AT38: 197 | DT38: 34 | DU38: 34 | DV38: 34 | DX38: 1 | EB38: 34 | ED38: 34 | EE38: (34) | EF38: (-)
A39: 35(36) | B39: Ingegerd Pettersson | C39: Lanternan | D39: 119.9583333 | F39: 24 | G39: 2879 | I39: 0 | J39: 0 | K39: 0 | L39: 0 | M39: 0 | N39: 106 | O39: 114 | P39: 102 | Q39: 143 | R39: 130 | S39: 112 | T39: 190 | U39: 95 | V39: 108 | W39: 124 | X39: 67 | Y39: 115 | Z39: 130 | AA39: 141 | AB39: 128 | AC39: 75 | AD39: 102 | AE39: 138 | AF39: 145 | AG39: 135 | AH39: 93 | AI39: 111 | AJ39: 142 | AK39: 133 | DT39: 36 | DU39: 35 | DV39: 35 | DX39: 1 | EB39: 35 | ED39: 35 | EE39: (36) | EF39: (-)
A40: 36(35) | B40: Roy Dahlén | C40: Dynapac | D40: 119.483871 | F40: 31 | G40: 3704 | I40: 0 | J40: 0 | K40: 0 | L40: 0 | M40: 0 | N40: 115 | O40: 158 | P40: 205 | Q40: 134 | R40: 103 | S40: 120 | T40: 144 | U40: 91 | V40: 153 | W40: 138 | X40: 83 | Y40: 113 | Z40: 154 | AA40: 104 | AB40: 125 | AC40: 98 | AD40: 133 | AE40: 137 | AF40: 154 | AG40: 182 | AH40: 195 | AI40: 87 | AJ40: 85 | AK40: 66 | AL40: 64 | AM40: 107 | AN40: 96 | AO40: 90 | AP40: 93 | AQ40: 96 | AR40: 81 | DT40: 35 | DU40: 36 | DV40: 36 | DX40: 1 | EB40: 36 | ED40: 36 | EE40: (35) | EF40: (-)
A41: 37(37) | B41: Peter Olsson | C41: Dynapac | D41: 118.9473684 | F41: 38 | G41: 4520 | I41: 0 | J41: 0 | K41: 0 | L41: 0 | M41: 0 | N41: 78 | O41: 113 | P41: 138 | Q41: 122 | R41: 72 | S41: 64 | T41: 103 | U41: 70 | V41: 93 | W41: 137 | X41: 99 | Y41: 167 | Z41: 104 | AA41: 110 | AB41: 170 | AC41: 157 | AD41: 162 | AE41: 102 | AF41: 100 | AG41: 128 | AH41: 131 | AI41: 95 | AJ41: 62 | AK41: 89 | AL41: 88 | AM41: 81 | AN41: 91 | AO41: 172 | AP41: 208 | AQ41: 216 | AR41: 129 | AS41: 116 | AT41: 41 | AU41: 106 | AV41: 119 | AW41: 171 | AX41: 195 | AY41: 121 | DT41: 37 | DU41: 37 | DV41: 37 | DX41: 1 | EB41: 37 | ED41: 37 | EE41: (37) | EF41: (-)
A42: 38(38) | B42: Marianne Karlsson | C42: Jämjö Hsk | D42: 116.71875 | F42: 32 | G42: 3735 | I42: 0 | J42: 0 | K42: 0 | L42: 0 | M42: 0 | N42: 120 | O42: 104 | P42: 112 | Q42: 91 | R42: 97 | S42: 117 | T42: 88 | U42: 148 | V42: 137 | W42: 110 | X42: 97 | Y42: 85 | Z42: 117 | AA42: 163 | AB42: 82 | AC42: 157 | AD42: 127 | AE42: 163 | AF42: 100 | AG42: 94 | AH42: 124 | AI42: 75 | AJ42: 93 | AK42: 133 | AL42: 136 | AM42: 110 | AN42: 149 | AO42: 152 | AP42: 129 | AQ42: 120 | AR42: 79 | AS42: 126 | DT42: 38 | DU42: 38 | DV42: 38 | DX42: 1 | EB42: 38 | ED42: 38 | EE42: (38) | EF42: (-)
A43: 39(54) | B43: Sandra Widlund | C43: Växjö Hsk | D43: 116.12 | F43: 25 | G43: 2903 | I43: 0 | J43: 0 | K43: 0 | L43: 0 | M43: 0 | N43: 94 | O43: 44 | P43: 43 | Q43: 87 | R43: 85 | S43: 83 | T43: 88 | U43: 133 | V43: 116 | W43: 118 | X43: 135 | Y43: 92 | Z43: 116 | AA43: 132 | AB43: 109 | AC43: 113 | AD43: 113 | AE43: 200 | AF43: 132 | AG43: 252 | AH43: 152 | AI43: 161 | AJ43: 159 | AK43: 79 | AL43: 67 | DT43: 54 | DU43: =IF(AND(D43=D42,D43=D41,D43=D40,D43=D39),ROW(35:35),IF(AND(D43=D42,D43=D41,D43=D40),ROW(36:36),IF(AND(D43=D42,D43=D41),ROW(37:37),IF(D43=D42,ROW(38:38),IF(D43>1,ROW(39:39),"-"))))) -> 39 | DV43: 39 | DX43: 1 | EB43: 39 | ED43: 39 | EE43: (54) | EF43: (-)
A44: 40(40) | B44: Janne Johansson | C44: Tingsryd | D44: 115 | F44: 6 | G44: 690 | I44: 0 | J44: 0 | K44: 0 | L44: 0 | M44: 0 | N44: 91 | O44: 110 | P44: 141 | Q44: 52 | R44: 114 | S44: 182 | DT44: 40 | DU44: 40 | DV44: 40 | DX44: 1 | EB44: 40 | ED44: 40 | EE44: (40) | EF44: (-)
A45: 40(40) | B45: Sebastian Israelsson | C45: Sibbamåla | D45: 115 | F45: 31 | G45: 3565 | I45: 0 | J45: 0 | K45: 0 | L45: 0 | M45: 0 | N45: 139 | O45: 112 | P45: 105 | Q45: 113 | R45: 118 | S45: 101 | T45: 169 | U45: 117 | V45: 71 | W45: 91 | X45: 139 | Y45: 111 | Z45: 115 | AA45: 127 | AB45: 74 | AC45: 84 | AD45: 64 | AE45: 197 | AF45: 113 | AG45: 125 | AH45: 129 | AI45: 100 | AJ45: 70 | AK45: 133 | AL45: 92 | AM45: 164 | AN45: 152 | AO45: 191 | AP45: 109 | AQ45: 80 | AR45: 60 | DT45: 40 | DU45: 40 | DV45: 41 | DX45: 1 | EB45: 41 | ED45: 40 | EE45: (40) | EF45: (-)
A46: 42(43) | B46: Berndt Petersson | C46: Lanternan | D46: 114.2333333 | F46: 30 | G46: 3427 | I46: 0 | J46: 0 | K46: 0 | L46: 0 | M46: 0 | N46: 128 | O46: 126 | P46: 146 | Q46: 137 | R46: 108 | S46: 89 | T46: 147 | U46: 134 | V46: 156 | W46: 80 | X46: 148 | Y46: 149 | Z46: 136 | AA46: 174 | AB46: 87 | AC46: 92 | AD46: 87 | AE46: 103 | AF46: 91 | AG46: 82 | AH46: 85 | AI46: 160 | AJ46: 99 | AK46: 61 | AL46: 85 | AM46: 77 | AN46: 103 | AO46: 88 | AP46: 139 | AQ46: 130 | DT46: 43 | DU46: 42 | DV46: 42 | DX46: 1 | EB46: 42 | ED46: 42 | EE46: (43) | EF46: (-)
A47: 43(44) | B47: Ronny Lundberg | C47: Lanternan | D47: 113.5714286 | F47: 21 | G47: 2385 | I47: 0 | J47: 0 | K47: 0 | L47: 0 | M47: 0 | N47: 115 | O47: 114 | P47: 95 | Q47: 109 | R47: 34 | S47: 92 | T47: 121 | U47: 119 | V47: 125 | W47: 122 | X47: 163 | Y47: 78 | Z47: 144 | AA47: 96 | AB47: 105 | AC47: 100 | AD47: 125 | AE47: 166 | AF47: 100 | AG47: 143 | AH47: 119 | DT47: 44 | DU47: 43 | DV47: 43 | DX47: 1 | EB47: 43 | ED47: 43 | EE47: (44) | EF47: (-)
A48: 44(39) | B48: Christian Balsiger | C48: Värends Hsk | D48: 113.3214286 | F48: 28 | G48: 3173 | I48: 0 | J48: 0 | K48: 0 | L48: 0 | M48: 0 | N48: 93 | O48: 100 | P48: 97 | Q48: 119 | R48: 97 | S48: 119 | T48: 80 | U48: 87 | V48: 151 | W48: 105 | X48: 116 | Y48: 68 | Z48: 86 | AA48: 143 | AB48: 139 | AC48: 113 | AD48: 101 | AE48: 168 | AF48: 150 | AG48: 118 | AH48: 126 | AI48: 105 | AJ48: 90 | AK48: 171 | AL48: 152 | AM48: 104 | AN48: 67 | AO48: 108 | DT48: 39 | DU48: 44 | DV48: 44 | DX48: 1 | EB48: 52 | ED48: 44 | EE48: (39) | EF48: (-)
A49: 45(46) | B49: Göran Mårtensson | C49: Jämjö Hsk | D49: 113.2 | F49: 20 | G49: 2264 | I49: 0 | J49: 0 | K49: 0 | L49: 0 | M49: 0 | N49: 116 | O49: 152 | P49: 147 | Q49: 178 | R49: 106 | S49: 178 | T49: 109 | U49: 97 | V49: 160 | W49: 108 | X49: 95 | Y49: 147 | Z49: 94 | AA49: 122 | AB49: 112 | AC49: 90 | AD49: 68 | AE49: 46 | AF49: 71 | AG49: 68 | DT49: 46 | DU49: 45 | DV49: 45 | DX49: 1 | EB49: 44 | ED49: 45 | EE49: (46) | EF49: (-)
A50: 46(48) | B50: Jan Petersson | C50: Lanternan | D50: 111.1052632 | F50: 19 | G50: 2111 | I50: 0 | J50: 0 | K50: 0 | L50: 0 | M50: 0 | N50: 95 | O50: 108 | P50: 147 | Q50: 103 | R50: 130 | S50: 65 | T50: 162 | U50: 192 | V50: 72 | W50: 84 | X50: 106 | Y50: 114 | Z50: 112 | AA50: 89 | AB50: 79 | AC50: 96 | AD50: 155 | AE50: 120 | AF50: 82 | DT50: 48 | DU50: 46 | DV50: 46 | DX50: 1 | EB50: 45 | ED50: 46 | EE50: (48) | EF50: (-)
A51: 47(49) | B51: Stephan Gervide | C51: Korpen Nybro | D51: 110.8181818 | F51: 22 | G51: 2438 | I51: 0 | J51: 0 | K51: 0 | L51: 0 | M51: 0 | N51: 114 | O51: 107 | P51: 90 | Q51: 133 | R51: 132 | S51: 115 | T51: 142 | U51: 117 | V51: 96 | W51: 81 | X51: 85 | Y51: 67 | Z51: 91 | AA51: 72 | AB51: 117 | AC51: 154 | AD51: 136 | AE51: 115 | AF51: 129 | AG51: 150 | AH51: 85 | AI51: 110 | DT51: 49 | DU51: 47 | DV51: 47 | DX51: 1 | EB51: 46 | ED51: 47 | EE51: (49) | EF51: (-)
A52: 48(47) | B52: Carina Gneupel | C52: Sibbamåla | D52: 110.75 | F52: 8 | G52: 886 | I52: 0 | J52: 0 | K52: 0 | L52: 0 | M52: 0 | N52: 99 | O52: 74 | P52: 76 | Q52: 121 | R52: 144 | S52: 94 | T52: 97 | U52: 181 | DT52: 47 | DU52: 48 | DV52: 48 | DX52: 1 | EB52: 47 | ED52: 48 | EE52: (47) | EF52: (-)
A53: 49(50) | B53: Bela Bodi | C53: Växjö | D53: 110.6363636 | F53: 22 | G53: 2434 | I53: 0 | J53: 0 | K53: 0 | L53: 0 | M53: 0 | N53: 58 | O53: 150 | P53: 74 | Q53: 106 | R53: 92 | S53: 150 | T53: 114 | U53: 125 | V53: 139 | W53: 159 | X53: 113 | Y53: 71 | Z53: 120 | AA53: 84 | AB53: 71 | AC53: 145 | AD53: 141 | AE53: 108 | AF53: 133 | AG53: 140 | AH53: 63 | AI53: 78 | DT53: 50 | DU53: 49 | DV53: 49 | DX53: 1 | EB53: 48 | ED53: 49 | EE53: (50) | EF53: (-)
A54: 50(45) | B54: Marcus Karlsson | C54: Jämjö Hsk | D54: 110.2142857 | F54: 28 | G54: 3086 | I54: 0 | J54: 0 | K54: 0 | L54: 0 | M54: 0 | N54: 118 | O54: 126 | P54: 103 | Q54: 78 | R54: 108 | S54: 97 | T54: 161 | U54: 81 | V54: 141 | W54: 105 | X54: 102 | Y54: 103 | Z54: 84 | AA54: 70 | AB54: 121 | AC54: 144 | AD54: 145 | AE54: 159 | AF54: 98 | AG54: 107 | AH54: 130 | AI54: 111 | AJ54: 113 | AK54: 104 | AL54: 77 | AM54: 74 | AN54: 94 | AO54: 132 | DT54: 45 | DU54: 50 | DV54: 50 | DX54: 1 | EB54: 49 | ED54: 50 | EE54: (45) | EF54: (-)
A55: 51(52) | B55: Yamolada Damnoegam | C55: Växjö Hsk | D55: 109.1666667 | F55: 18 | G55: 1965 | I55: 0 | J55: 0 | K55: 0 | L55: 0 | M55: 0 | N55: 48 | O55: 93 | P55: 72 | Q55: 104 | R55: 146 | S55: 94 | T55: 132 | U55: 94 | V55: 137 | W55: 115 | X55: 112 | Y55: 151 | Z55: 113 | AA55: 53 | AB55: 108 | AC55: 94 | AD55: 135 | AE55: 164 | DT55: 52 | DU55: 51 | DV55: 51 | DX55: 1 | EB55: 50 | ED55: 51 | EE55: (52) | EF55: (-)
A56: 52(51) | B56: Christer Blomgren | C56: Lanternan | D56: 108.7 | F56: 20 | G56: 2174 | I56: 0 | J56: 0 | K56: 0 | L56: 0 | M56: 0 | N56: 105 | O56: 127 | P56: 88 | Q56: 86 | R56: 98 | S56: 78 | T56: 145 | U56: 68 | V56: 101 | W56: 144 | X56: 115 | Y56: 101 | Z56: 122 | AA56: 116 | AB56: 74 | AC56: 129 | AD56: 131 | AE56: 116 | AF56: 119 | AG56: 111 | DT56: 51 | DU56: 52 | DV56: 52 | DX56: 1 | EB56: 51 | ED56: 52 | EE56: (51) | EF56: (-)
A57: 53(55) | B57: Gilbert Pettersson | C57: Lanternan | D57: 105.8888889 | F57: 9 | G57: 953 | I57: 0 | J57: 0 | K57: 0 | L57: 0 | M57: 0 | N57: 131 | O57: 99 | P57: 110 | Q57: 113 | R57: 80 | S57: 108 | T57: 131 | U57: 112 | V57: 69 | DT57: 55 | DU57: 53 | DV57: 53 | DX57: 1 | EB57: 53 | ED57: 53 | EE57: (55) | EF57: (-)
A58: 54(56) | B58: Lasse Nilsson | C58: Värends Hsk | D58: 105.7037037 | F58: 27 | G58: 2854 | I58: 0 | J58: 0 | K58: 0 | L58: 0 | M58: 0 | N58: 70 | O58: 103 | P58: 61 | Q58: 78 | R58: 84 | S58: 94 | T58: 140 | U58: 110 | V58: 129 | W58: 99 | X58: 89 | Y58: 140 | Z58: 85 | AA58: 99 | AB58: 111 | AC58: 129 | AD58: 152 | AE58: 108 | AF58: 156 | AG58: 158 | AH58: 75 | AI58: 49 | AJ58: 111 | AK58: 88 | AL58: 79 | AM58: 132 | AN58: 125 | DT58: 56 | DU58: 54 | DV58: 54 | DX58: 1 | EB58: 109 | ED58: 54 | EE58: (56) | EF58: (-)
A59: 55(42) | B59: Irene Petersson | C59: Lanternan | D59: 104 | F59: 10 | G59: 1040 | I59: 0 | J59: 0 | K59: 0 | L59: 0 | M59: 0 | N59: 119 | O59: 109 | P59: 99 | Q59: 128 | R59: 118 | S59: 123 | T59: 99 | U59: 78 | V59: 109 | W59: 58 | DT59: 42 | DU59: 55 | DV59: 55 | DX59: 1 | EB59: 54 | ED59: 55 | EE59: (42) | EF59: (-)
A60: 56(58) | B60: Nathalie Sundahl | C60: Carlskrona | D60: 103.4117647 | F60: 17 | G60: 1758 | I60: 0 | J60: 0 | K60: 0 | L60: 0 | M60: 0 | N60: 86 | O60: 71 | P60: 91 | Q60: 83 | R60: 155 | S60: 103 | T60: 74 | U60: 96 | V60: 123 | W60: 83 | X60: 122 | Y60: 117 | Z60: 76 | AA60: 102 | AB60: 157 | AC60: 94 | AD60: 125 | DT60: 58 | DU60: 56 | DV60: 56 | DX60: 1 | EB60: 55 | ED60: 56 | EE60: (58) | EF60: (-)
A61: 57(53) | B61: Alf Svensson | C61: Korpen Åseda | D61: 102.4615385 | F61: 13 | G61: 1332 | I61: 0 | J61: 0 | K61: 0 | L61: 0 | M61: 0 | N61: 95 | O61: 109 | P61: 95 | Q61: 77 | R61: 156 | S61: 122 | T61: 119 | U61: 77 | V61: 118 | W61: 103 | X61: 70 | Y61: 92 | Z61: 99 | DT61: 53 | DU61: 57 | DV61: 57 | DX61: 1 | EB61: 56 | ED61: 57 | EE61: (53) | EF61: (-)
A62: 58(57) | B62: Martin Antic | C62: Värends Hsk | D62: 102.2333333 | F62: 30 | G62: 3067 | I62: 0 | J62: 0 | K62: 0 | L62: 0 | M62: 0 | N62: 113 | O62: 166 | P62: 65 | Q62: 125 | R62: 162 | S62: 88 | T62: 122 | U62: 68 | V62: 92 | W62: 98 | X62: 136 | Y62: 157 | Z62: 71 | AA62: 36 | AB62: 98 | AC62: 93 | AD62: 85 | AE62: 111 | AF62: 120 | AG62: 74 | AH62: 115 | AI62: 61 | AJ62: 67 | AK62: 139 | AL62: 88 | AM62: 146 | AN62: 99 | AO62: 110 | AP62: 106 | AQ62: 56 | DT62: 57 | DU62: 58 | DV62: 58 | DX62: 1 | EB62: 57 | ED62: 58 | EE62: (57) | EF62: (-)
A63: 59(59) | B63: Anders Karlsson | C63: Värends Hsk | D63: 102 | F63: 20 | G63: 2040 | I63: 0 | J63: 0 | K63: 0 | L63: 0 | M63: 0 | N63: 143 | O63: 145 | P63: 103 | Q63: 66 | R63: 70 | S63: 93 | T63: 108 | U63: 88 | V63: 69 | W63: 104 | X63: 80 | Y63: 111 | Z63: 87 | AA63: 90 | AB63: 150 | AC63: 105 | AD63: 112 | AE63: 116 | AF63: 121 | AG63: 79 | DT63: 59 | DU63: 59 | DV63: 59 | DX63: 1 | EB63: 58 | ED63: 59 | EE63: (59) | EF63: (-)
A64: 60(62) | B64: Åke Bergkvist | C64: Tingsryd | D64: 101.8461538 | F64: 26 | G64: 2648 | I64: 0 | J64: 0 | K64: 0 | L64: 0 | M64: 0 | N64: 118 | O64: 84 | P64: 67 | Q64: 123 | R64: 94 | S64: 118 | T64: 97 | U64: 79 | V64: 87 | W64: 92 | X64: 85 | Y64: 92 | Z64: 112 | AA64: 94 | AB64: 104 | AC64: 107 | AD64: 85 | AE64: 81 | AF64: 109 | AG64: 94 | AH64: 136 | AI64: 120 | AJ64: 95 | AK64: 136 | AL64: 126 | AM64: 113 | DT64: 62 | DU64: 60 | DV64: 60 | DX64: 1 | EB64: 59 | ED64: 60 | EE64: (62) | EF64: (-)
A65: 61(60) | B65: Ulrika Rydell | C65: Värends Hsk | D65: 101.3125 | F65: 16 | G65: 1621 | I65: 0 | J65: 0 | K65: 0 | L65: 0 | M65: 0 | N65: 102 | O65: 182 | P65: 47 | Q65: 62 | R65: 99 | S65: 105 | T65: 101 | U65: 107 | V65: 93 | W65: 70 | X65: 182 | Y65: 159 | Z65: 92 | AA65: 92 | AB65: 49 | AC65: 79 | DT65: 60 | DU65: 61 | DV65: 61 | DX65: 1 | EB65: 60 | ED65: 61 | EE65: (60) | EF65: (-)
A66: =IF(H66="x",DU66&" ("&EF66&")",DU66&" ("&DT66&")") -> 62 (61) | B66: Klara Larsson | C66: Värends Hsk | D66: 100.2352941 | F66: 17 | G66: 1704 | I66: 0 | J66: 0 | K66: 0 | L66: 0 | M66: 0 | N66: 132 | O66: 113 | P66: 85 | Q66: 57 | R66: 105 | S66: 76 | T66: 109 | U66: 122 | V66: 72 | W66: 108 | X66: 91 | Y66: 112 | Z66: 111 | AA66: 122 | AB66: 113 | AC66: 78 | AD66: 98 | DT66: 61 | DU66: 62 | DV66: 62 | DX66: 1 | EB66: 61 | ED66: 62 | EE66: (61) | EF66: (-)
A67: 63 (64) | B67: Anders Johansson | C67: Dynapac | D67: 98.63636364 | F67: 33 | G67: 3255 | I67: 0 | J67: 0 | K67: 0 | L67: 0 | M67: 0 | N67: 43 | O67: 77 | P67: 126 | Q67: 65 | R67: 96 | S67: 116 | T67: 121 | U67: 98 | V67: 73 | W67: 64 | X67: 125 | Y67: 102 | Z67: 86 | AA67: 94 | AB67: 136 | AC67: 53 | AD67: 123 | AE67: 125 | AF67: 114 | AG67: 122 | AH67: 110 | AI67: 132 | AJ67: 86 | AK67: 122 | AL67: 119 | AM67: 129 | AN67: 145 | AO67: 37 | AP67: 79 | AQ67: 117 | AR67: 120 | AS67: 71 | AT67: 29 | DT67: 64 | DU67: 63 | DV67: 63 | DX67: 1 | EB67: 62 | ED67: 63 | EE67: (64) | EF67: (-)
A68: 64 (66) | B68: Nils-Åke Hansson | C68: Korpen Nybro | D68: 97 | F68: 9 | G68: 873 | I68: 0 | J68: 0 | K68: 0 | L68: 0 | M68: 0 | N68: 60 | O68: 84 | P68: 111 | Q68: 118 | R68: 109 | S68: 119 | T68: 85 | U68: 92 | V68: 95 | DT68: 66 | DU68: 64 | DV68: 64 | DX68: 1 | EB68: 64 | ED68: 64 | EE68: (66) | EF68: (-)
A69: 65 (67) | B69: Bertil Westergren | C69: Växjö | D69: =IF(F69>0.5,(G69/F69),0) -> 96.5 | F69: =COUNT(N69:BO69) -> 4 | G69: =SUM(N69:BO69) -> 386 | I69: =COUNTIF(BQ69:DR69,2) -> 0 | J69: =COUNTIF(BQ69:DR69,-2) -> 0 | K69: =COUNTIF(BQ69:DR69,1) -> 0 | L69: =COUNTIF(BQ69:DR69,-1) -> 0 | M69: =IF(F69>0,(I69+K69)/(F69),0) -> 0 | N69: 132 | O69: 102 | P69: 56 | Q69: 96 | DT69: 67 | DU69: 65 | DV69: =IF(DX69=1,ROW(65:65),"-") -> 65 | DX69: 1 | EB69: 65 | ED69: =IF(DX69=1,DU69,IF(DX69="",DU69,"")) -> 65 | EE69: =IF(DX69=1,"("&DT69&")","("&DV69&")") -> (67) | EF69: (-)
A70: =IF(H70="x",DU70&" ("&EF70&")",DU70&" ("&DT70&")") -> 66 (63) | B70: Bernt Olsson | C70: Jämjö Hsk | D70: 96.48148148 | F70: 27 | G70: 2605 | I70: 0 | J70: 0 | K70: 0 | L70: 0 | M70: 0 | N70: 81 | O70: 101 | P70: 84 | Q70: 88 | R70: 109 | S70: 105 | T70: 69 | U70: 79 | V70: 87 | W70: 59 | X70: 96 | Y70: 121 | Z70: 157 | AA70: 107 | AB70: 77 | AC70: 67 | AD70: 97 | AE70: 80 | AF70: 69 | AG70: 105 | AH70: 125 | AI70: 154 | AJ70: 115 | AK70: 98 | AL70: 142 | AM70: 80 | AN70: 53 | DT70: 63 | DU70: 66 | DV70: 66 | DX70: 1 | EB70: 66 | ED70: 66 | EE70: (63) | EF70: (-)
A71: 67 (72) | B71: Kjell Åkesson | C71: Lanternan | D71: 95.47826087 | F71: 23 | G71: 2196 | I71: 0 | J71: 0 | K71: 0 | L71: 0 | M71: 0 | N71: 70 | O71: 90 | P71: 70 | Q71: 134 | R71: 95 | S71: 103 | T71: 75 | U71: 55 | V71: 88 | W71: 68 | X71: 66 | Y71: 64 | Z71: 90 | AA71: 85 | AB71: 97 | AC71: 142 | AD71: 142 | AE71: 112 | AF71: 125 | AG71: 107 | AH71: 126 | AI71: 95 | AJ71: 97 | DT71: 72 | DU71: 67 | DV71: 67 | DX71: 1 | EB71: 67 | ED71: 67 | EE71: (72) | EF71: (-)
A72: 68 (68) | B72: Lennart Karlsson | C72: Lanternan | D72: 95 | F72: 4 | G72: 380 | I72: 0 | J72: 0 | K72: 0 | L72: 0 | M72: 0 | N72: 104 | O72: 90 | P72: 105 | Q72: 81 | DT72: 68 | DU72: 68 | DV72: 68 | DX72: 1 | EB72: 68 | ED72: 68 | EE72: (68) | EF72: (-)
A73: 69 (69) | B73: Stefan Tollstam | C73: Dynapac | D73: 94.2 | F73: 5 | G73: 471 | I73: 0 | J73: 0 | K73: 0 | L73: 0 | M73: 0 | N73: 97 | O73: 101 | P73: 85 | Q73: 98 | R73: 90 | DT73: 69 | DU73: 69 | DV73: 69 | DX73: 1 | EB73: 69 | ED73: 69 | EE73: (69) | EF73: (-)
A74: 70 (70) | B74: Kjell Rydh | C74: Korpen Nybro | D74: 93.08695652 | F74: 23 | G74: 2141 | I74: 0 | J74: 0 | K74: 0 | L74: 0 | M74: 0 | N74: 90 | O74: 182 | P74: 90 | Q74: 109 | R74: 74 | S74: 85 | T74: 88 | U74: 98 | V74: 129 | W74: 118 | X74: 81 | Y74: 81 | Z74: 120 | AA74: 66 | AB74: 68 | AC74: 94 | AD74: 45 | AE74: 67 | AF74: 81 | AG74: 84 | AH74: 78 | AI74: 82 | AJ74: 131 | DT74: 70 | DU74: 70 | DV74: 70 | DX74: 1 | EB74: 70 | ED74: 70 | EE74: (70) | EF74: (-)
A75: 71 (71) | B75: Julius Gneupel | C75: Sibbamåla | D75: 92.75 | F75: 4 | G75: 371 | I75: 0 | J75: 0 | K75: 0 | L75: 0 | M75: 0 | N75: 87 | O75: 88 | P75: 61 | Q75: 135 | DT75: 71 | DU75: =IF(AND(D75=D74,D75=D73,D75=D72,D75=D71),ROW(67:67),IF(AND(D75=D74,D75=D73,D75=D72),ROW(68:68),IF(AND(D75=D74,D75=D73),ROW(69:69),IF(D75=D74,ROW(70:70),IF(D75>1,ROW(71:71),"-"))))) -> 71 | DV75: 71 | DX75: 1 | EB75: 114 | ED75: 71 | EE75: (71) | EF75: (-)
A76: 72 (65) | B76: Inge Skoglöw | C76: Jämjö Hsk | D76: 92.68421053 | F76: 19 | G76: 1761 | I76: 0 | J76: 0 | K76: 0 | L76: 0 | M76: 0 | N76: 101 | O76: 110 | P76: 92 | Q76: 160 | R76: 104 | S76: 72 | T76: 27 | U76: 99 | V76: 134 | W76: 86 | X76: 96 | Y76: 80 | Z76: 101 | AA76: 99 | AB76: 83 | AC76: 59 | AD76: 104 | AE76: 91 | AF76: 63 | DT76: 65 | DU76: 72 | DV76: 72 | DX76: 1 | EB76: 71 | ED76: 72 | EE76: (65) | EF76: (-)
A77: 73 ((-)) | B77: Roland Andreasson | C77: Lanternan | D77: 91.6 | F77: 5 | G77: 458 | H77: x | I77: 0 | J77: 0 | K77: 0 | L77: 0 | M77: 0 | N77: 122 | O77: 65 | P77: 112 | Q77: 81 | R77: 78 | DT77: 94 | DU77: 73 | DV77: 73 | DX77: 1 | EB77: 111 | ED77: 73 | EE77: (94) | EF77: (-)
A78: 74 (73) | B78: Lisbeth Blihd | C78: Lanternan | D78: 90.4375 | F78: 32 | G78: 2894 | I78: 0 | J78: 0 | K78: 0 | L78: 0 | M78: 0 | N78: 108 | O78: 77 | P78: 52 | Q78: 45 | R78: 68 | S78: 133 | T78: 89 | U78: 59 | V78: 125 | W78: 81 | X78: 98 | Y78: 111 | Z78: 137 | AA78: 118 | AB78: 88 | AC78: 78 | AD78: 81 | AE78: 69 | AF78: 37 | AG78: 96 | AH78: 99 | AI78: 89 | AJ78: 91 | AK78: 101 | AL78: 157 | AM78: 85 | AN78: 95 | AO78: 84 | AP78: 81 | AQ78: 85 | AR78: 79 | AS78: 98 | DT78: 73 | DU78: 74 | DV78: 74 | DX78: 1 | EB78: 72 | ED78: 74 | EE78: (73) | EF78: (-)
A79: 75 (74) | B79: Sune Olsson | C79: Korpen Nybro | D79: 89.8 | F79: 5 | G79: 449 | I79: 0 | J79: 0 | K79: 0 | L79: 0 | M79: 0 | N79: 90 | O79: 79 | P79: 63 | Q79: 150 | R79: 67 | DT79: 74 | DU79: 75 | DV79: 75 | DX79: 1 | EB79: 73 | ED79: 75 | EE79: (74) | EF79: (-)
A80: 76 (75) | B80: Linnea Gneupel | C80: Sibbamåla | D80: 89.5 | F80: 2 | G80: 179 | I80: 0 | J80: 0 | K80: 0 | L80: 0 | M80: 0 | N80: 98 | O80: 81 | DT80: 75 | DU80: 76 | DV80: 76 | DX80: 1 | EB80: 74 | ED80: 76 | EE80: (75) | EF80: (-)
A81: 76 (75) | B81: Mattias Olsson | C81: Dynapac | D81: 89.5 | F81: 4 | G81: 358 | I81: 0 | J81: 0 | K81: 0 | L81: 0 | M81: 0 | N81: 43 | O81: 84 | P81: 103 | Q81: 128 | DT81: 75 | DU81: 76 | DV81: 77 | DX81: 1 | EB81: 75 | ED81: 76 | EE81: (75) | EF81: (-)
A82: 78 (77) | B82: Christer Eriksson | C82: Korpen Nybro | D82: 87.75 | F82: 4 | G82: 351 | I82: 0 | J82: 0 | K82: 0 | L82: 0 | M82: 0 | N82: 105 | O82: 92 | P82: 96 | Q82: 58 | DT82: 77 | DU82: 78 | DV82: 78 | DX82: 1 | EB82: 76 | ED82: 78 | EE82: (77) | EF82: (-)
A83: 79 ((-)) | B83: Susanne Simonsson | C83: Lanternan | D83: 83.8 | F83: 5 | G83: 419 | H83: x | I83: 0 | J83: 0 | K83: 0 | L83: 0 | M83: 0 | N83: 104 | O83: 88 | P83: 72 | Q83: 71 | R83: 84 | DT83: 95 | DU83: 79 | DV83: 79 | DX83: 1 | EB83: 77 | ED83: 79 | EE83: (95) | EF83: (-)
A84: 80 (78) | B84: Annika K. Milsten | C84: Tingsryd | D84: 83.75 | F84: 16 | G84: 1340 | I84: 0 | J84: 0 | K84: 0 | L84: 0 | M84: 0 | N84: 97 | O84: 122 | P84: 109 | Q84: 75 | R84: 42 | S84: 78 | T84: 65 | U84: 88 | V84: 96 | W84: 51 | X84: 53 | Y84: 127 | Z84: 117 | AA84: 54 | AB84: 109 | AC84: 57 | DT84: 78 | DU84: 80 | DV84: 80 | DX84: 1 | EB84: 78 | ED84: 80 | EE84: (78) | EF84: (-)
A85: 81 (80) | B85: Ann-Marie Larsson | C85: Tingsryd | D85: 81.15625 | F85: 32 | G85: 2597 | I85: 0 | J85: 0 | K85: 0 | L85: 0 | M85: 0 | N85: 111 | O85: 55 | P85: 124 | Q85: 72 | R85: 72 | S85: 76 | T85: 86 | U85: 99 | V85: 102 | W85: 95 | X85: 58 | Y85: 34 | Z85: 80 | AA85: 94 | AB85: 111 | AC85: 35 | AD85: 73 | AE85: 52 | AF85: 81 | AG85: 120 | AH85: 74 | AI85: 72 | AJ85: 71 | AK85: 86 | AL85: 58 | AM85: 64 | AN85: 119 | AO85: 91 | AP85: 44 | AQ85: 106 | AR85: 70 | AS85: 112 | DT85: 80 | DU85: 81 | DV85: 81 | DX85: 1 | EB85: 79 | ED85: 81 | EE85: (80) | EF85: (-)
A86: 82 (82) | B86: Gunnar Lundbeck | C86: Tingsryd | D86: 80.4 | F86: 20 | G86: 1608 | I86: 0 | J86: 0 | K86: 0 | L86: 0 | M86: 0 | N86: 66 | O86: 126 | P86: 91 | Q86: 88 | R86: 69 | S86: 71 | T86: 65 | U86: 79 | V86: 92 | W86: 99 | X86: 45 | Y86: 38 | Z86: 117 | AA86: 106 | AB86: 131 | AC86: 88 | AD86: 24 | AE86: 51 | AF86: 71 | AG86: 91 | DT86: 82 | DU86: 82 | DV86: 82 | DX86: 1 | EB86: 80 | ED86: 82 | EE86: (82) | EF86: (-)
A87: 83 (84) | B87: Lars-Åke Karlsson | C87: Jämjö Hsk | D87: 79.34615385 | F87: 26 | G87: 2063 | I87: 0 | J87: 0 | K87: 0 | L87: 0 | M87: 0 | N87: 105 | O87: 81 | P87: 105 | Q87: 70 | R87: 100 | S87: 81 | T87: 98 | U87: 69 | V87: 99 | W87: 86 | X87: 81 | Y87: 37 | Z87: 64 | AA87: 43 | AB87: 80 | AC87: 79 | AD87: 89 | AE87: 41 | AF87: 78 | AG87: 73 | AH87: 139 | AI87: 40 | AJ87: 42 | AK87: 76 | AL87: 119 | AM87: 88 | DT87: 84 | DU87: 83 | DV87: 83 | DX87: 1 | EB87: 81 | ED87: 83 | EE87: (84) | EF87: (-)
A88: 84 (79) | B88: Hanna Karlberg | C88: Jämjö Hsk | D88: 78.91304348 | F88: 23 | G88: 1815 | I88: 0 | J88: 0 | K88: 0 | L88: 0 | M88: 0 | N88: 52 | O88: 83 | P88: 50 | Q88: 67 | R88: 38 | S88: 44 | T88: 111 | U88: 61 | V88: 135 | W88: 81 | X88: 112 | Y88: 127 | Z88: 104 | AA88: 98 | AB88: 130 | AC88: 78 | AD88: 54 | AE88: 51 | AF88: 71 | AG88: 88 | AH88: 80 | AI88: 67 | AJ88: 33 | DT88: 79 | DU88: 84 | DV88: 84 | DX88: 1 | EB88: 82 | ED88: 84 | EE88: (79) | EF88: (-)
A89: 85 (81) | B89: Daniel Mårtensson | C89: Jämjö Hsk | D89: 77.7 | F89: 10 | G89: 777 | I89: 0 | J89: 0 | K89: 0 | L89: 0 | M89: 0 | N89: 109 | O89: 86 | P89: 74 | Q89: 51 | R89: 73 | S89: 112 | T89: 58 | U89: 50 | V89: 69 | W89: 95 | DT89: 81 | DU89: 85 | DV89: 85 | DX89: 1 | EB89: 83 | ED89: 85 | EE89: (81) | EF89: (-)
A90: 86 (83) | B90: Eva Åkesson | C90: Lanternan | D90: 77.4 | F90: 25 | G90: 1935 | I90: 0 | J90: 0 | K90: 0 | L90: 0 | M90: 0 | N90: 102 | O90: 58 | P90: 49 | Q90: 42 | R90: 95 | S90: 75 | T90: 51 | U90: 97 | V90: 44 | W90: 34 | X90: 71 | Y90: 57 | Z90: 54 | AA90: 55 | AB90: 44 | AC90: 55 | AD90: 81 | AE90: 86 | AF90: 81 | AG90: 112 | AH90: 158 | AI90: 139 | AJ90: 105 | AK90: 125 | AL90: 65 | DT90: 83 | DU90: 86 | DV90: 86 | DX90: 1 | EB90: 84 | ED90: 86 | EE90: (83) | EF90: (-)
A91: 87 (85) | B91: Rolf Johannesson | C91: Värends Hsk | D91: 74 | F91: 8 | G91: 592 | I91: 0 | J91: 0 | K91: 0 | L91: 0 | M91: 0 | N91: 94 | O91: 76 | P91: 92 | Q91: 57 | R91: 77 | S91: 72 | T91: 71 | U91: 53 | DT91: 85 | DU91: 87 | DV91: 87 | DX91: 1 | EB91: 85 | ED91: 87 | EE91: (85) | EF91: (-)
A92: 88 (86) | B92: Thomas Dahl | C92: Växjö | D92: 73.92307692 | F92: 13 | G92: 961 | I92: 0 | J92: 0 | K92: 0 | L92: 0 | M92: 0 | N92: 64 | O92: 82 | P92: 44 | Q92: 87 | R92: 54 | S92: 58 | T92: 105 | U92: 91 | V92: 126 | W92: 59 | X92: 56 | Y92: 44 | Z92: 91 | DT92: 86 | DU92: 88 | DV92: 88 | DX92: 1 | EB92: 86 | ED92: 88 | EE92: (86) | EF92: (-)
A93: 89 (87) | B93: Karin Gullbrand | C93: Värends Hsk | D93: 71.91666667 | F93: 12 | G93: 863 | I93: 0 | J93: 0 | K93: 0 | L93: 0 | M93: 0 | N93: 64 | O93: 73 | P93: 81 | Q93: 47 | R93: 98 | S93: 44 | T93: 51 | U93: 61 | V93: 78 | W93: 47 | X93: 100 | Y93: 119 | DT93: 87 | DU93: 89 | DV93: 89 | DX93: 1 | EB93: 87 | ED93: 89 | EE93: (87) | EF93: (-)
A94: 90 (88) | B94: Anita Streliny | C94: Tingsryd | D94: 71 | F94: 5 | G94: 355 | I94: 0 | J94: 0 | K94: 0 | L94: 0 | M94: 0 | N94: 45 | O94: 77 | P94: 82 | Q94: 111 | R94: 40 | DT94: 88 | DU94: 90 | DV94: 90 | DX94: 1 | EB94: 88 | ED94: 90 | EE94: (88) | EF94: (-)
A95: 91 (89) | B95: Olle Nilsson | C95: Tingsryd | D95: 68.375 | F95: 8 | G95: 547 | I95: 0 | J95: 0 | K95: 0 | L95: 0 | M95: 0 | N95: 70 | O95: 99 | P95: 57 | Q95: 71 | R95: 54 | S95: 68 | T95: 41 | U95: 87 | DT95: 89 | DU95: 91 | DV95: 91 | DX95: 1 | EB95: 89 | ED95: 91 | EE95: (89) | EF95: (-)
A96: 92 (90) | B96: Leif Danielsson | C96: Korpen Nybro | D96: 64.25 | F96: 4 | G96: 257 | I96: 0 | J96: 0 | K96: 0 | L96: 0 | M96: 0 | N96: 71 | O96: 85 | P96: 37 | Q96: 64 | DT96: 90 | DU96: 92 | DV96: 92 | DX96: 1 | EB96: 112 | ED96: 92 | EE96: (90) | EF96: (-)
A97: 93 (91) | B97: Arne Blidh | C97: Lanternan | D97: 60.84375 | F97: 32 | G97: 1947 | I97: 0 | J97: 0 | K97: 0 | L97: 0 | M97: 0 | N97: 21 | O97: 100 | P97: 112 | Q97: 46 | R97: 58 | S97: 65 | T97: 92 | U97: 76 | V97: 128 | W97: 50 | X97: 39 | Y97: 71 | Z97: 17 | AA97: 33 | AB97: 37 | AC97: 58 | AD97: 97 | AE97: 14 | AF97: 57 | AG97: 54 | AH97: 84 | AI97: 67 | AJ97: 67 | AK97: 38 | AL97: 47 | AM97: 38 | AN97: 64 | AO97: 31 | AP97: 73 | AQ97: 60 | AR97: 81 | AS97: 72 | DT97: 91 | DU97: 93 | DV97: 93 | DX97: 1 | EB97: 90 | ED97: 93 | EE97: (91) | EF97: (-)
A98: 94 (92) | B98: Tommy Svensson | C98: Värends Hsk | D98: 60 | F98: 15 | G98: 900 | I98: 0 | J98: 0 | K98: 0 | L98: 0 | M98: 0 | N98: 109 | O98: 55 | P98: 46 | Q98: 67 | R98: 66 | S98: 55 | T98: 114 | U98: 53 | V98: 41 | W98: 62 | X98: 27 | Y98: 43 | Z98: 87 | AA98: 32 | AB98: 43 | DT98: 92 | DU98: 94 | DV98: 94 | DX98: 1 | EB98: 91 | ED98: 94 | EE98: (92) | EF98: (-)
A99: 95 (93) | B99: Alf Johansson | C99: Värends Hsk | D99: 59.28 | F99: 25 | G99: 1482 | I99: 0 | J99: 0 | K99: 0 | L99: 0 | M99: 0 | N99: 35 | O99: 102 | P99: 45 | Q99: 79 | R99: 70 | S99: 67 | T99: 58 | U99: 49 | V99: 54 | W99: 34 | X99: 71 | Y99: 50 | Z99: 21 | AA99: 51 | AB99: 66 | AC99: 9 | AD99: 72 | AE99: 17 | AF99: 111 | AG99: 72 | AH99: 61 | AI99: 35 | AJ99: 91 | AK99: 61 | AL99: 101 | DT99: 93 | DU99: 95 | DV99: 95 | DX99: 1 | EB99: 92 | ED99: 95 | EE99: (93) | EF99: (-)
A100: - (-) | B100: Niklas Berglund | C100: Växjö | D100: 0 | F100: 0 | G100: 0 | I100: 0 | J100: 0 | K100: 0 | L100: 0 | M100: 0 | DT100: - | DU100: - | DV100: 96 | DX100: 1 | EB100: 63 | ED100: - | EE100: (-) | EF100: (-)
A101: 96 (96) | B101: Kerstin Svensson | C101: Växjö | D101: =IF(F101>0.5,(G101/F101),0) -> 0 | F101: =COUNT(N101:BO101) -> 0 | G101: =SUM(N101:BO101) -> 0 | I101: =COUNTIF(BQ101:DR101,2) -> 0 | J101: =COUNTIF(BQ101:DR101,-2) -> 0 | K101: =COUNTIF(BQ101:DR101,1) -> 0 | L101: =COUNTIF(BQ101:DR101,-1) -> 0 | M101: =IF(F101>0,(I101+K101)/(F101),0) -> 0 | DT101: 96 | DU101: 96 | DV101: =IF(DX101=1,ROW(97:97),"-") -> 97 | DX101: 1 | EB101: 93 | ED101: =IF(DX101=1,DU101,IF(DX101="",DU101,"")) -> 96 | EE101: =IF(DX101=1,"("&DT101&")","("&DV101&")") -> (96) | EF101: (-)
A102: 96 (96) | B102: Mats Mårtensson | C102: Jämjö Hsk | D102: 0 | F102: 0 | G102: 0 | I102: 0 | J102: 0 | K102: 0 | L102: 0 | M102: 0 | DT102: 96 | DU102: 96 | DV102: 98 | DX102: 1 | EB102: 94 | ED102: 96 | EE102: (96) | EF102: (-)
A103: 96 (96) | B103: Göran Persson | C103: Dynapac | D103: 0 | F103: 0 | G103: 0 | I103: 0 | J103: 0 | K103: 0 | L103: 0 | M103: 0 | DT103: 96 | DU103: 96 | DV103: 99 | DX103: 1 | EB103: 95 | ED103: 96 | EE103: (96) | EF103: (-)
A104: 96 (96) | B104: Kevin Rydell | C104: Värends Hsk | D104: 0 | F104: 0 | G104: 0 | I104: 0 | J104: 0 | K104: 0 | L104: 0 | M104: 0 | DT104: 96 | DU104: 96 | DV104: 100 | DX104: 1 | EB104: 96 | ED104: 96 | EE104: (96) | EF104: (-)
A105: 97 (97) | B105: Kerstin Magnusson | C105: Växjö | D105: 0 | F105: 0 | G105: 0 | I105: 0 | J105: 0 | K105: 0 | L105: 0 | M105: 0 | DT105: 97 | DU105: 97 | DV105: 101 | DX105: 1 | EB105: 97 | ED105: 97 | EE105: (97) | EF105: (-)
A106: 98 (98) | B106: Mikael Bodi | C106: Växjö | D106: 0 | F106: 0 | G106: 0 | I106: 0 | J106: 0 | K106: 0 | L106: 0 | M106: 0 | DT106: 98 | DU106: 98 | DV106: 102 | DX106: 1 | EB106: 98 | ED106: 98 | EE106: (98) | EF106: (-)
A107: 99 (99) | B107: Allan Persson | C107: Tingsryd | D107: 0 | F107: 0 | G107: 0 | I107: 0 | J107: 0 | K107: 0 | L107: 0 | M107: 0 | DT107: 99 | DU107: =IF(AND(D107=D106,D107=D105,D107=D104,D107=D103),ROW(99:99),IF(AND(D107=D106,D107=D105,D107=D104),ROW(100:100),IF(AND(D107=D106,D107=D105),ROW(101:101),IF(D107=D106,ROW(102:102),IF(D107>1,ROW(103:103),"-"))))) -> 99 | DV107: 103 | DX107: 1 | EB107: 99 | ED107: 99 | EE107: (99) | EF107: (-)
A108: 100 (100) | B108: Ulrika Strandahl | C108: Växjö | D108: 0 | F108: 0 | G108: 0 | I108: 0 | J108: 0 | K108: 0 | L108: 0 | M108: 0 | DT108: 100 | DU108: 100 | DV108: 104 | DX108: 1 | EB108: 100 | ED108: 100 | EE108: (100) | EF108: (-)
A109: 101 (101) | B109: Solveig Brincner | C109: Värends Hsk | D109: 0 | F109: 0 | G109: 0 | I109: 0 | J109: 0 | K109: 0 | L109: 0 | M109: 0 | DT109: 101 | DU109: 101 | DV109: 105 | DX109: 1 | EB109: 101 | ED109: 101 | EE109: (101) | EF109: (-)
A110: 102 (102) | D110: 0 | F110: 0 | G110: 0 | I110: 0 | J110: 0 | K110: 0 | L110: 0 | M110: 0 | DT110: 102 | DU110: 102 | DV110: 106 | DX110: 1 | EB110: 102 | ED110: 102 | EE110: (102) | EF110: (-)
A111: 103 (103) | D111: 0 | F111: 0 | G111: 0 | I111: 0 | J111: 0 | K111: 0 | L111: 0 | M111: 0 | DT111: 103 | DU111: 103 | DV111: 107 | DX111: 1 | EB111: 110 | ED111: 103 | EE111: (103) | EF111: (-)
A112: 104 (104) | D112: 0 | F112: 0 | G112: 0 | I112: 0 | J112: 0 | K112: 0 | L112: 0 | M112: 0 | DT112: 104 | DU112: 104 | DV112: 108 | DX112: 1 | EB112: 103 | ED112: 104 | EE112: (104) | EF112: (-)
A113: 105 (105) | D113: 0 | F113: 0 | G113: 0 | I113: 0 | J113: 0 | K113: 0 | L113: 0 | M113: 0 | DT113: 105 | DU113: 105 | DV113: 109 | DX113: 1 | EB113: 104 | ED113: 105 | EE113: (105) | EF113: (-)
A114: 106 (106) | D114: 0 | F114: 0 | G114: 0 | I114: 0 | J114: 0 | K114: 0 | L114: 0 | M114: 0 | DT114: 106 | DU114: 106 | DV114: 110 | DX114: 1 | EB114: 105 | ED114: 106 | EE114: (106) | EF114: (-)
A115: 107 (107) | D115: 0 | F115: 0 | G115: 0 | I115: 0 | J115: 0 | K115: 0 | L115: 0 | M115: 0 | DT115: 107 | DU115: 107 | DV115: 111 | DX115: 1 | EB115: 106 | ED115: 107 | EE115: (107) | EF115: (-)
A116: 108 (108) | D116: 0 | F116: 0 | G116: 0 | I116: 0 | J116: 0 | K116: 0 | L116: 0 | M116: 0 | DT116: 108 | DU116: 108 | DV116: 112 | DX116: 1 | EB116: 107 | ED116: 108 | EE116: (108) | EF116: (-)
A117: 109 (109) | D117: 0 | F117: 0 | G117: 0 | I117: 0 | J117: 0 | K117: 0 | L117: 0 | M117: 0 | DT117: 109 | DU117: 109 | DV117: 113 | DX117: 1 | EB117: 108 | ED117: 109 | EE117: (109) | EF117: (-)
A118: 110 (110) | D118: 0 | F118: 0 | G118: 0 | I118: 0 | J118: 0 | K118: 0 | L118: 0 | M118: 0 | DT118: 110 | DU118: 110 | DV118: 114 | DX118: 1 | EB118: 109 | ED118: 110 | EE118: (110) | EF118: (-)
A119: 111 (111) | D119: 0 | F119: 0 | G119: 0 | I119: 0 | J119: 0 | K119: 0 | L119: 0 | M119: 0 | DT119: 111 | DU119: 111 | DV119: 115 | DX119: 1 | EB119: 112 | ED119: 111 | EE119: (111) | EF119: (-)
A120: 112 (112) | D120: 0 | F120: 0 | G120: 0 | I120: 0 | J120: 0 | K120: 0 | L120: 0 | M120: 0 | DT120: 112 | DU120: 112 | DV120: 116 | DX120: 1 | EB120: 110 | ED120: 112 | EE120: (112) | EF120: (-)
A121: 113 (113) | D121: 0 | F121: 0 | G121: 0 | I121: 0 | J121: 0 | K121: 0 | L121: 0 | M121: 0 | DT121: 113 | DU121: =IF(AND(D121=D120,D121=D119,D121=D118,D121=D117),ROW(113:113),IF(AND(D121=D120,D121=D119,D121=D118),ROW(114:114),IF(AND(D121=D120,D121=D119),ROW(115:115),IF(D121=D120,ROW(116:116),IF(D121>1,ROW(117:117),"-"))))) -> 113 | DV121: =IF(DX121=1,ROW(117:117),"-") -> 117 | DX121: 1 | EB121: 111 | ED121: =IF(DX121=1,DU121,IF(DX121="",DU121,"")) -> 113 | EE121: =IF(DX121=1,"("&DT121&")","("&DV121&")") -> (113) | EF121: (-)
A122: 114 (114) | D122: 0 | F122: 0 | G122: 0 | I122: 0 | J122: 0 | K122: 0 | L122: 0 | M122: 0 | DT122: 114 | DU122: =IF(AND(D122=D121,D122=D120,D122=D119,D122=D118),ROW(114:114),IF(AND(D122=D121,D122=D120,D122=D119),ROW(115:115),IF(AND(D122=D121,D122=D120),ROW(116:116),IF(D122=D121,ROW(117:117),IF(D122>1,ROW(118:118),"-"))))) -> 114 | DV122: =IF(DX122=1,ROW(118:118),"-") -> 118 | DX122: 1 | EB122: 113 | ED122: =IF(DX122=1,DU122,IF(DX122="",DU122,"")) -> 114 | EE122: =IF(DX122=1,"("&DT122&")","("&DV122&")") -> (114) | EF122: (-)
A123: 115 (115) | D123: 0 | F123: 0 | G123: 0 | I123: 0 | J123: 0 | K123: 0 | L123: 0 | M123: 0 | DT123: 115 | DU123: =IF(AND(D123=D122,D123=D121,D123=D120,D123=D119),ROW(115:115),IF(AND(D123=D122,D123=D121,D123=D120),ROW(116:116),IF(AND(D123=D122,D123=D121),ROW(117:117),IF(D123=D122,ROW(118:118),IF(D123>1,ROW(119:119),"-"))))) -> 115 | DV123: =IF(DX123=1,ROW(119:119),"-") -> 119 | DX123: 1 | EB123: 113 | ED123: =IF(DX123=1,DU123,IF(DX123="",DU123,"")) -> 115 | EE123: =IF(DX123=1,"("&DT123&")","("&DV123&")") -> (115) | EF123: (-)
